date,department/service,beneficiary,amount,summary of purpose,category,transaction number,SAP vendor number
01.08.2020,ADULT SOCIAL CARE,SYED & QUINN LTD,400.00,ADULTS MULTI-AGENCY SAFEGUARDING TRNG,TRAINING,5902426193,1000029554
01.08.2020,CHILDREN'S SERVICES,REDACTED PERSONAL DATA,593.31,FAMILY GROUP CONF�S,PROFESSIONAL FEES,REDACTED,REDACTED
01.08.2020,CUSTOMER EXPERIENCE HGF,EMS EVENTS LTD,387.00,CORONER'S,PROFESSIONAL FEES,5902426357,1000057494
01.08.2020,CUSTOMER EXPERIENCE HGF,IMPERIAL COLLEGE PROJECTS LTD,408.00,CORONER'S,PROFESSIONAL FEES,5902426609,1000080106
01.08.2020,CUSTOMER EXPERIENCE HGF,IMPERIAL COLLEGE PROJECTS LTD,472.00,CORONER'S,PROFESSIONAL FEES,5902426611,1000080106
01.08.2020,CUSTOMER EXPERIENCE HGF,IMPERIAL COLLEGE PROJECTS LTD,500.00,CORONER'S,PROFESSIONAL FEES,5902426616,1000080106
01.08.2020,CUSTOMER EXPERIENCE HGF,IMPERIAL COLLEGE PROJECTS LTD,552.00,CORONER'S,PROFESSIONAL FEES,5902426613,1000080106
01.08.2020,CUSTOMER EXPERIENCE HGF,EURO HOTELS (THORNTON HEATH) LTD,"66,000.00",COVID-19 SUPPORT,EXTERNAL AGENCIES AND BODIES,5902426526,1000057571
01.08.2020,CUSTOMER EXPERIENCE HGF,AM PM ESTATES LTD,"1,587.96",HOMELESS PROJECTS,GRANTS,5902427026,1000078587
01.08.2020,CUSTOMER EXPERIENCE HGF,AM PM ESTATES LTD,"1,587.96",HOMELESS PROJECTS,GRANTS,5902427027,1000078587
01.08.2020,CUSTOMER EXPERIENCE HGF,AM PM ESTATES LTD,"1,587.96",HOMELESS PROJECTS,GRANTS,5902427028,1000078587
01.08.2020,CUSTOMER EXPERIENCE HGF,ALEXANDER NORTON,"1,644.00",HOMELESS PROJECTS,GRANTS,5902426028,1000084932
01.08.2020,CUSTOMER EXPERIENCE HGF,EMMANUEL & LINDA GANIGA,"3,000.00",HOMELESS PROJECTS,GRANTS,5902426215,1000084931
01.08.2020,CUSTOMER EXPERIENCE HGF,REDACTED PERSONAL DATA,"3,000.00",HOMELESS PROJECTS,GRANTS,REDACTED,REDACTED
01.08.2020,ENVIRONMENT DIRECTORATE,THE T P PARTNERSHIP,400.00,ESTATE CLEANING-GENERAL,OTHER CONTRACTORS,5902426832,1000045906
01.08.2020,ENVIRONMENT DIRECTORATE,PROJECT CENTRE LTD,"3,610.34",PROJECT SUPPORT,OTHER CONTRACTORS,5902426776,1000072621
01.08.2020,EXCHEQUER SERVICES,DSI BILLING SERVICES LTD,"1,515.36",ADMINISTRATIVE SUPPORT,POSTAGES,5902426871,1000058640
01.08.2020,EXCHEQUER SERVICES,BUDGET CARPETS,270.83,SESS,OTHER PAYMENTS FOR CLIENTS,5902426478,11319076
01.08.2020,EXCHEQUER SERVICES,BUDGET CARPETS,279.17,SESS,OTHER PAYMENTS FOR CLIENTS,5902426477,11319076
01.08.2020,EXCHEQUER SERVICES,BUDGET CARPETS,375.00,SESS,OTHER PAYMENTS FOR CLIENTS,5902426475,11319076
01.08.2020,LEISURE DIRECTORATE,P D CONSTRUCTION LTD,692.00,HOMERSTALL ROAD SPORTS GROUND,BUILDING R&M,5902426376,1000000390
02.08.2020,CENTRAL FUNCTIONS,KENT COUNTY COUNCIL - LASER,"3,190.26",HEATING ACCOUNT,ELECTRICITY,5902426550,1000012926
02.08.2020,CENTRAL FUNCTIONS,KENT COUNTY COUNCIL - LASER,"29,109.00",HEATING ACCOUNT,GAS,5902426563,1000012926
02.08.2020,CENTRAL FUNCTIONS,KENT COUNTY COUNCIL - LASER,"38,351.22",HEATING ACCOUNT,ELECTRICITY,5902426550,1000012926
02.08.2020,CENTRAL FUNCTIONS,KENT COUNTY COUNCIL - LASER,"250,028.65",HEATING ACCOUNT,GAS,5902426563,1000012926
02.08.2020,CHIEF EXECUTIVE,LAMBERT SMITH HAMPTON GROUP LTD,300.00,CAPITAL PS (REGEN),CONSTRUCTION FEES  - EXTERNAL,5902426513,1000060045
02.08.2020,CHIEF EXECUTIVE,CARTER JONAS LLP,"5,090.74",CAPITAL PS (REGEN),CONSTRUCTION FEES,5902426904,1000073124
02.08.2020,CHILDREN'S SERVICES,ITL NORTH EAST LTD,543.36,ADOPTION CONVERSIONS FROM FOSTERING,INTERPRETING SERVICES,5902426784,1000082415
02.08.2020,CHILDREN'S SERVICES,JESS MALLY,469.01,CHILDREN IN CARE EVENTS,EXTERNAL AGENCIES AND BODIES,5902426865,1000083015
02.08.2020,CHILDREN'S SERVICES,MEDIA SERVICES FOR EDUCATION,750.00,EDUCATIONAL TRADE SERVICES,PRINTING,5902426408,11005338
02.08.2020,CHILDREN'S SERVICES,ITL NORTH EAST LTD,256.43,FINANCE,INTERPRETING SERVICES,5902426784,1000082415
02.08.2020,CHILDREN'S SERVICES,ITL NORTH EAST LTD,363.75,FINANCE,INTERPRETING SERVICES,5902426784,1000082415
02.08.2020,CHILDREN'S SERVICES,ITL NORTH EAST LTD,364.90,FINANCE,INTERPRETING SERVICES,5902426784,1000082415
02.08.2020,CHILDREN'S SERVICES,ITL NORTH EAST LTD,460.95,FINANCE,INTERPRETING SERVICES,5902426784,1000082415
02.08.2020,CHILDREN'S SERVICES,ITL NORTH EAST LTD,"2,069.30",FINANCE,INTERPRETING SERVICES,5902426784,1000082415
02.08.2020,COMMUNITIES,CENTRAL SOUTHWARK COMMUNITY HUB,"5,000.00",WEST CENTRAL,GRANTS,5902426404,1000083089
02.08.2020,CUSTOMER EXPERIENCE HGF,IMPERIAL COLLEGE PROJECTS LTD,292.00,CORONER'S,PROFESSIONAL FEES,5902426632,1000080106
02.08.2020,CUSTOMER EXPERIENCE HGF,IMPERIAL COLLEGE PROJECTS LTD,336.00,CORONER'S,PROFESSIONAL FEES,5902426633,1000080106
02.08.2020,CUSTOMER EXPERIENCE HGF,IMPERIAL COLLEGE PROJECTS LTD,356.00,CORONER'S,PROFESSIONAL FEES,5902426634,1000080106
02.08.2020,CUSTOMER EXPERIENCE HGF,REST UP,"8,400.00",COVID-19 SUPPORT,EXTERNAL AGENCIES AND BODIES,5902426802,1000084299
02.08.2020,CUSTOMER EXPERIENCE HGF,REST UP,"37,800.00",COVID-19 SUPPORT,EXTERNAL AGENCIES AND BODIES,5902426804,1000084299
02.08.2020,CUSTOMER EXPERIENCE HGF,IKEA LTD,490.01,REGISTRARS,OFFICE EXPENSES,5902426667,11108725
02.08.2020,ENVIRONMENT DIRECTORATE,GREENHAM TRADING LTD,"1,114.90",ESTATE CLEANING-GENERAL,MATERIALS,5902426433,1000006610
02.08.2020,ENVIRONMENT DIRECTORATE,SOUTHWARK NEWSPAPER LTD,480.00,HIGHWAYS DEVELOPMENT,MARKETING & PUBLICITY SERVICES,5902426472,1556957
02.08.2020,ENVIRONMENT DIRECTORATE,SOUTHWARK NEWSPAPER LTD,312.00,STREET WORKS OVERHEADS,MARKETING & PUBLICITY SERVICES,5902426883,1556957
02.08.2020,ENVIRONMENT DIRECTORATE,SOUTHWARK NEWSPAPER LTD,324.00,STREET WORKS OVERHEADS,MARKETING & PUBLICITY SERVICES,5902426884,1556957
02.08.2020,ENVIRONMENT DIRECTORATE,SOUTHWARK NEWSPAPER LTD,336.00,STREET WORKS OVERHEADS,MARKETING & PUBLICITY SERVICES,5902426887,1556957
02.08.2020,ENVIRONMENT DIRECTORATE,SOUTHWARK NEWSPAPER LTD,348.00,STREET WORKS OVERHEADS,MARKETING & PUBLICITY SERVICES,5902426885,1556957
02.08.2020,ENVIRONMENT DIRECTORATE,SOUTHWARK NEWSPAPER LTD,360.00,STREET WORKS OVERHEADS,MARKETING & PUBLICITY SERVICES,5902426886,1556957
02.08.2020,ENVIRONMENT DIRECTORATE,SOUTHWARK NEWSPAPER LTD,384.00,STREET WORKS OVERHEADS,MARKETING & PUBLICITY SERVICES,5902426882,1556957
02.08.2020,ENVIRONMENT DIRECTORATE,SOUTHWARK NEWSPAPER LTD,384.00,STREET WORKS OVERHEADS,MARKETING & PUBLICITY SERVICES,5902426889,1556957
02.08.2020,ENVIRONMENT DIRECTORATE,PTRC EDUCATION & RESEARCH SERVICES,345.00,TRANSPORT PROJECTS,TRAINING,5902426770,1078335
02.08.2020,LEISURE DIRECTORATE,SECURE-A-FIELD LTD,878.11,CREMATORIUM,STATIONERY,5902426415,1000072371
03.08.2020,CHILDREN AND ADULT,PELLINGS LLP,962.50,CAPITAL PS (EDUCATION),FIT-OUT,5902426823,1009262
03.08.2020,CHILDREN AND ADULT,PELLINGS LLP,"1,443.75",CAPITAL PS (EDUCATION),FIT-OUT,5902426799,1009262
03.08.2020,CHILDREN AND ADULT,PELLINGS LLP,"1,443.75",CAPITAL PS (EDUCATION),FIT-OUT,5902426820,1009262
03.08.2020,CUSTOMER EXPERIENCE HGF,REST UP,"8,400.00",COVID-19 SUPPORT,EXTERNAL AGENCIES AND BODIES,5902426797,1000084299
03.08.2020,CUSTOMER EXPERIENCE HGF,REST UP,"37,800.00",COVID-19 SUPPORT,EXTERNAL AGENCIES AND BODIES,5902426798,1000084299
03.08.2020,ENVIRONMENT DIRECTORATE,ALPHA PARKING LTD,"3,500.00",PARKING MANAGEMENT OVERHEAD,PROFESSIONAL FEES,5902426372,1000063598
03.08.2020,HOUSING HRA,OVE ARUP & PARTNERS LTD,"8,065.00",CAPITAL PS (HRA),CONSTRUCTION FEES  - EXTERNAL,5902426675,1000066606
03.08.2020,HOUSING HRA,DDS DEMOLITION LTD,"116,277.27",CAPITAL PS (REGEN),CONSTRUCTION SITE COSTS,2103129257,3000002058
03.08.2020,MODERNISATION HGF,EDF ENERGY PLC,630.40,34 PECKHAM ROAD,ELECTRICITY,5902426815,1008746
03.08.2020,MODERNISATION HGF,PIONEER PRODUCTS,738.00,TSFM CONTINGENCY,INTEGRATED FACILITIES MANAGEMENT CONTRACT,5902426639,1000084131
04.08.2020,ADULT SOCIAL CARE,REDACTED PERSONAL DATA,395.20,APPOINTEESHIPS,OTHER PAYMENTS FOR CLIENTS,REDACTED,REDACTED
04.08.2020,ADULT SOCIAL CARE,SAGECARE LTD,"5,484.48",DISCHARGE TO ACCESS,HOMECARE - C&V,2103131026,1000080924
04.08.2020,ADULT SOCIAL CARE,SAGECARE LTD,"1,837.68",PHY LTS 18-64,HOMECARE - C&V,2103131031,1000080924
04.08.2020,ADULT SOCIAL CARE,SAGECARE LTD,"4,873.97",PHY LTS 18-64,HOMECARE - C&V,2103131027,1000080924
04.08.2020,ADULT SOCIAL CARE,SAGECARE LTD,"4,503.50",PHY LTS 65+,HOMECARE - C&V,2103131030,1000080924
04.08.2020,ADULT SOCIAL CARE,SAGECARE LTD,"7,198.90",PHY LTS 65+,HOMECARE - C&V,2103131034,1000080924
04.08.2020,ADULT SOCIAL CARE,SAGECARE LTD,"9,844.90",PHY LTS 65+,HOMECARE - C&V,2103131033,1000080924
04.08.2020,ADULT SOCIAL CARE,THAMES HOMECARE SERVICE LTD,438.56,PHY STS 65+,HOMECARE - IC,2103131013,1000079295
04.08.2020,CENTRAL FUNCTIONS,BLAKENEY LEIGH LTD,"2,914.43",AYLESBURY,PROFESSIONAL FEES,5902427171,1438839
04.08.2020,CENTRAL FUNCTIONS,BLAKENEY LEIGH LTD,"4,328.78",AYLESBURY,PROFESSIONAL FEES,5902427172,1438839
04.08.2020,CHIEF EXECUTIVE'S OFFICE,MENIER CAFE LTD,"25,000.00",DISCRETIONARY GRANTS,GRANTS,2103129339,1000041902
04.08.2020,CHIEF EXECUTIVE'S OFFICE,ECSI LTD,250.84,RESILIENCE AND EMERGENCY PLANNING,CATERING MATERIALS & SUPPLIES,5902427183,1000081715
04.08.2020,CHILDREN'S SERVICES,LOGICOUS LTD,"1,296.00",FRIENDS &FAMILY FOST,NURSING PLACEMENTS FEES,5902427166,1000073852
04.08.2020,CHILDREN'S SERVICES,CAROL NUDDS,375.00,P & R CARE TEAM,OTHER PAYMENTS FOR CLIENTS,5902427126,1000076989
04.08.2020,CHILDREN'S SERVICES,CAMBRIDGE SCHOOL,768.00,PUPIL PREMIUM CURRENT YEAR,SCHOOLS CAPITATION,5902426987,1000085070
04.08.2020,CHILDREN'S SERVICES,REDACTED PERSONAL DATA,480.00,SPECIAL GUARDIANSHIP,EXTERNAL AGENCIES AND BODIES,REDACTED,REDACTED
04.08.2020,CHILDREN'S SERVICES,MAGIC ROUNDABOUT NURSERIES LTD,"1,100.00",SPECIAL GUARDIANSHIP,EXTERNAL AGENCIES AND BODIES,5902427096,1000045128
04.08.2020,CHILDREN'S SERVICES,IVELAW CRAWFORD,"9,500.00",SUMMERHOUSE,BUILDING R&M,2103130971,3000001626
04.08.2020,CHILDREN'S SERVICES,ROYAL VILLAGE DAY NURSERY,"1,096.00",TEAM C,OTHER PAYMENTS FOR CLIENTS,5902427168,1000082242
04.08.2020,COLLECTION FUNDS,GREATER LONDON AUTHORITY,"3,572,197.39",GLA PRECEPT,LEVIES,5902427073,1000015827
04.08.2020,COMMUNITIES,THE CONSULTATION INSTITUTE,795.00,COMMUNITIES PROJECTS,ELECTRICITY,5902427060,1000047850
04.08.2020,COMMUNITIES,BRUCE MARCUS,500.00,MAYORAL SUPPORT,PROFESSIONAL FEES,5902427057,1000084818
04.08.2020,COMMUNITIES,THAMES HOMECARE SERVICE LTD,286.18,NO RECOURSE TO PUBLIC FUNDS,HOMECARE - C&V,2103131035,1000079295
04.08.2020,COMMUNITIES,THAMES HOMECARE SERVICE LTD,286.18,NO RECOURSE TO PUBLIC FUNDS,HOMECARE - C&V,2103131036,1000079295
04.08.2020,COMMUNITIES,THAMES HOMECARE SERVICE LTD,286.18,NO RECOURSE TO PUBLIC FUNDS,HOMECARE - C&V,2103131038,1000079295
04.08.2020,COMMUNITIES,THAMES HOMECARE SERVICE LTD,286.18,NO RECOURSE TO PUBLIC FUNDS,HOMECARE - C&V,2103131041,1000079295
04.08.2020,COMMUNITIES,THAMES HOMECARE SERVICE LTD,286.18,NO RECOURSE TO PUBLIC FUNDS,HOMECARE - C&V,2103131044,1000079295
04.08.2020,COMMUNITIES,SAGECARE LTD,"4,474.27",NO RECOURSE TO PUBLIC FUNDS,HOMECARE - C&V,2103131029,1000080924
04.08.2020,COMMUNITIES,SAGECARE LTD,"5,095.64",NO RECOURSE TO PUBLIC FUNDS,HOMECARE - C&V,2103131032,1000080924
04.08.2020,COMMUNITIES,SAGECARE LTD,"11,558.58",NO RECOURSE TO PUBLIC FUNDS,HOMECARE - C&V,2103131025,1000080924
04.08.2020,COMMUNITIES,SAGECARE LTD,"16,796.79",NO RECOURSE TO PUBLIC FUNDS,HOMECARE - C&V,2103131028,1000080924
04.08.2020,COMMUNITIES,COUNTISBURY HOUSE ASSOCIATION,"1,300.00",TENANTS FUND,GRANTS,5902427051,1000080661
04.08.2020,CUSTOMER EXPERIENCE HGF,ALEXANDRA FAYE,"1,564.00",HOMELESS PROJECTS,GRANTS,5902427052,1000084938
04.08.2020,CUSTOMER EXPERIENCE HGF,EASY LET HOUSING,"2,485.44",HOMELESS PROJECTS,GRANTS,5902427160,1000068714
04.08.2020,ENVIRONMENT AND LEISURE,ACCON UK LIMITED,"1,125.00",CAPITAL PS (LEISURE),CONSTRUCTION FEES  - EXTERNAL,5902427182,1000079816
04.08.2020,ENVIRONMENT AND LEISURE,HARRISON DESIGN DEVELOPMENT LTD,"3,450.00",CAPITAL PS (LEISURE),CONSTRUCTION FEES  - EXTERNAL,5902427185,1000066896
04.08.2020,ENVIRONMENT DIRECTORATE,KILLGERM CHEMICALS LTD,360.16,PEST CONTROL,MATERIALS,5902427091,1000045706
04.08.2020,ENVIRONMENT DIRECTORATE,KILLGERM CHEMICALS LTD,715.12,PEST CONTROL,MATERIALS,5902427109,1000045706
04.08.2020,ENVIRONMENT DIRECTORATE,KILLGERM CHEMICALS LTD,359.92,PEST CONTROL-CDN A/C,MATERIALS,5902427124,1000045706
04.08.2020,ENVIRONMENT DIRECTORATE,VEOLIA ES SOUTHWARK LTD,"10,052.44",WASTE PFI,PFI/PPP PAYMENTS,5902427163,1000056979
04.08.2020,HOUSING,A & E ELKINS LTD,"67,104.21",A&E ELKINS,I-WORLD CONTRACTORS HOLDING ACCOUNT,2103130972,4012501
04.08.2020,HOUSING,SMITH & BYFORD LTD,"113,765.58",SMITH AND BYFORD,I-WORLD CONTRACTORS HOLDING ACCOUNT,5902427072,11212119
04.08.2020,HOUSING HRA,MOTT MACDONALD LTD,"57,000.00",CAPITAL PS (HRA),CONSTRUCTION SITE COSTS,5902427070,1000067305
04.08.2020,HOUSING HRA,MOTT MACDONALD LTD,"68,828.86",CAPITAL PS (HRA),CONSTRUCTION SITE COSTS,5902427070,1000067305
04.08.2020,LEISURE DIRECTORATE,TECHNICAL SURFACES,582.05,BURGESS SPORTS CENTRE,GROUNDS MAINTENANCE,5902427065,1000011451
04.08.2020,LEISURE DIRECTORATE,TECHNICAL SURFACES,582.05,BURGESS SPORTS CENTRE,GROUNDS MAINTENANCE,5902427066,1000011451
04.08.2020,LEISURE DIRECTORATE,P D CONSTRUCTION LTD,"3,380.00",BURGESS SPORTS CENTRE,OTHER R&M,5902427064,1000000390
04.08.2020,LEISURE DIRECTORATE,PORTABLE SPACE LTD,"1,920.00",CEMETERIES,BUILDING R&M,5902427189,1000083256
04.08.2020,LEISURE DIRECTORATE,BIBLIOTHECA LTD,793.39,STOCK SERVICES,STATIONERY,5902427069,1000069536
04.08.2020,LEVIES & PRECEPTS,GREATER LONDON AUTHORITY,"152,024.00",LONDON PENSION FUND,LEVIES,5902427074,1000015827
04.08.2020,MODERNISATION HGF,VIRGIN MEDIA,276.14,IT MANAGEMENT,DATA COMMUNICATIONS,5902427136,1000026457
04.08.2020,MODERNISATION HGF,VIRGIN MEDIA,315.00,IT MANAGEMENT,DATA COMMUNICATIONS,5902427138,1000026457
04.08.2020,MODERNISATION HGF,VIRGIN MEDIA,"1,040.00",IT MANAGEMENT,DATA COMMUNICATIONS,5902427145,1000026457
04.08.2020,MODERNISATION HGF,VIRGIN MEDIA,"5,284.21",IT MANAGEMENT,DATA COMMUNICATIONS,5902427134,1000026457
04.08.2020,MODERNISATION HGF,VIRGIN MEDIA,"7,362.64",IT MANAGEMENT,DATA COMMUNICATIONS,5902427141,1000026457
04.08.2020,MODERNISATION HGF,CAPITA SECURE INFORMATION,"16,610.13",IT MANAGEMENT,COMMS & COMPUTING CONTRACT CHARGES,5902427156,1000070739
04.08.2020,NEW BUILD,BROWNE JACOBSON,"7,500.00",DEVELOPMENT DELIVERY,PAYMENTS FOR LEGAL SERVICES,5902427187,1000081338
04.08.2020,RESIDENT SERVICES,EDEN SPRINGS (UK) LTD,270.83,OPERATIONS/OFFICES ACCOMMODATION,WATER,5902426787,1000037350
04.08.2020,RESIDENT SERVICES,NPOWER,"1,522.59",SHELTERED NORTH,ELECTRICITY,5902427157,1000064203
04.08.2020,RESIDENT SERVICES,NPOWER,299.50,TA HOSTELS,ELECTRICITY,5902427175,1000064203
04.08.2020,SBS OPERATIONS,TRAVIS PERKINS TRADING COMPANY LTD,531.40,BOROUGH & BANKSIDE DD,MATERIALS,5902427114,1514319
04.08.2020,SBS OPERATIONS,TRAVIS PERKINS TRADING COMPANY LTD,331.28,NUNHEAD DD,MATERIALS,5902427153,1514319
04.08.2020,SBS OPERATIONS,TRAVIS PERKINS TRADING COMPANY LTD,391.18,WALWORTH DD,MATERIALS,5902427117,1514319
04.08.2020,SBS SUPPORT,TRAVIS PERKINS TRADING COMPANY LTD,262.44,R & M OVERHEADS,MATERIALS,5902427150,1514319
05.08.2020,ADULT SOCIAL CARE,ALLPAY LTD,257.07,CLIENT FINANCE TEAM,REMOVAL EXPENSES,5902427332,1000043001
05.08.2020,ADULT SOCIAL CARE,BEDE CAFE PROJECT,290.00,LD LTS 18-64,DAYCARE,2103131451,1553877
05.08.2020,ADULT SOCIAL CARE,BEDE CAFE PROJECT,290.00,LD LTS 18-64,DAYCARE,2103131467,1553877
05.08.2020,ADULT SOCIAL CARE,BEDE CAFE PROJECT,290.00,LD LTS 18-64,DAYCARE,2103131479,1553877
05.08.2020,ADULT SOCIAL CARE,BEDE CAFE PROJECT,290.00,LD LTS 18-64,DAYCARE,2103131484,1553877
05.08.2020,ADULT SOCIAL CARE,BEDE CAFE PROJECT,350.00,LD LTS 18-64,DAYCARE,2103131456,1553877
05.08.2020,ADULT SOCIAL CARE,BEDE CAFE PROJECT,350.00,LD LTS 18-64,DAYCARE,2103131457,1553877
05.08.2020,ADULT SOCIAL CARE,BEDE CAFE PROJECT,580.00,LD LTS 18-64,DAYCARE,2103131459,1553877
05.08.2020,ADULT SOCIAL CARE,BEDE CAFE PROJECT,580.00,LD LTS 18-64,DAYCARE,2103131468,1553877
05.08.2020,ADULT SOCIAL CARE,BEDE CAFE PROJECT,580.00,LD LTS 18-64,DAYCARE,2103131474,1553877
05.08.2020,ADULT SOCIAL CARE,BEDE CAFE PROJECT,580.00,LD LTS 18-64,DAYCARE,2103131476,1553877
05.08.2020,ADULT SOCIAL CARE,BEDE CAFE PROJECT,580.00,LD LTS 18-64,DAYCARE,2103131481,1553877
05.08.2020,ADULT SOCIAL CARE,BEDE CAFE PROJECT,580.00,LD LTS 18-64,DAYCARE,2103131482,1553877
05.08.2020,ADULT SOCIAL CARE,BEDE CAFE PROJECT,580.00,LD LTS 18-64,DAYCARE,2103131483,1553877
05.08.2020,ADULT SOCIAL CARE,BEDE CAFE PROJECT,870.00,LD LTS 18-64,DAYCARE,2103131450,1553877
05.08.2020,ADULT SOCIAL CARE,BEDE CAFE PROJECT,870.00,LD LTS 18-64,DAYCARE,2103131452,1553877
05.08.2020,ADULT SOCIAL CARE,BEDE CAFE PROJECT,870.00,LD LTS 18-64,DAYCARE,2103131462,1553877
05.08.2020,ADULT SOCIAL CARE,BEDE CAFE PROJECT,870.00,LD LTS 18-64,DAYCARE,2103131470,1553877
05.08.2020,ADULT SOCIAL CARE,BEDE CAFE PROJECT,"1,160.00",LD LTS 18-64,DAYCARE,2103131455,1553877
05.08.2020,ADULT SOCIAL CARE,BEDE CAFE PROJECT,"1,160.00",LD LTS 18-64,DAYCARE,2103131460,1553877
05.08.2020,ADULT SOCIAL CARE,BEDE CAFE PROJECT,"1,160.00",LD LTS 18-64,DAYCARE,2103131463,1553877
05.08.2020,ADULT SOCIAL CARE,BEDE CAFE PROJECT,"1,160.00",LD LTS 18-64,DAYCARE,2103131465,1553877
05.08.2020,ADULT SOCIAL CARE,BEDE CAFE PROJECT,"1,160.00",LD LTS 18-64,DAYCARE,2103131477,1553877
05.08.2020,ADULT SOCIAL CARE,BEDE CAFE PROJECT,"1,160.00",LD LTS 18-64,DAYCARE,2103131478,1553877
05.08.2020,ADULT SOCIAL CARE,BEDE CAFE PROJECT,"1,160.00",LD LTS 18-64,DAYCARE,2103131480,1553877
05.08.2020,ADULT SOCIAL CARE,BEDE CAFE PROJECT,"1,200.00",LD LTS 18-64,SUPPORTED LIVING,2103131464,1553877
05.08.2020,ADULT SOCIAL CARE,BEDE CAFE PROJECT,"1,275.00",LD LTS 18-64,DAYCARE,2103131466,1553877
05.08.2020,ADULT SOCIAL CARE,BEDE CAFE PROJECT,"1,450.00",LD LTS 18-64,DAYCARE,2103131453,1553877
05.08.2020,ADULT SOCIAL CARE,BEDE CAFE PROJECT,"1,450.00",LD LTS 18-64,DAYCARE,2103131461,1553877
05.08.2020,ADULT SOCIAL CARE,BEDE CAFE PROJECT,"1,650.00",LD LTS 18-64,DAYCARE,2103131472,1553877
05.08.2020,ADULT SOCIAL CARE,BEDE CAFE PROJECT,"2,750.00",LD LTS 18-64,DAYCARE,2103131473,1553877
05.08.2020,ADULT SOCIAL CARE,BEDE CAFE PROJECT,350.00,MH LTS 18-64,DAYCARE,2103131471,1553877
05.08.2020,ADULT SOCIAL CARE,BEDE CAFE PROJECT,"1,100.00",SOCIAL ISOLATION,DAYCARE,2103131475,1553877
05.08.2020,C&AS,MAGPIE LIMITED,"26,239.50",COVID 19 SOCIAL CARE COSTS,EXTERNAL AGENCIES AND BODIES,6101946934,CHAPS PAYMENT
05.08.2020,CENTRAL FUNCTIONS,BRESLIN CONSTRUCTION LTD,"1,880.00",COMMERCIAL PROPERTIES,BUILDING R&M,2103131495,3000001948
05.08.2020,CENTRAL FUNCTIONS,HERITAGE SURVEYS LTD,"2,204.00",TECHNICAL SUPPORT,PROFESSIONAL FEES,5902427326,1000080199
05.08.2020,CHIEF EXECUTIVE,LDA DESIGN CONSULTING LTD,"5,527.32",CAPITAL PS (REGEN),CONSTRUCTION FEES - ARCHITECT,5902427252,1000031830
05.08.2020,CHIEF EXECUTIVE,HAYATSU ARCHITECTS LTD,"9,611.00",CAPITAL PS (REGEN),CONSTRUCTION FEES,5902426763,1000082843
05.08.2020,CHILDREN AND ADULT,PELLINGS LLP,962.50,CAPITAL PS (EDUCATION),FIT-OUT,5902427248,1009262
05.08.2020,CHILDREN'S SERVICES,REDACTED PERSONAL DATA,400.00,FRIENDS &FAMILY FOST,ADDITIONAL PAYMENTS TO AGENCIES/CARERS,REDACTED,REDACTED
05.08.2020,CHILDREN'S SERVICES,REDACTED PERSONAL DATA,400.00,FRIENDS &FAMILY FOST,ADDITIONAL PAYMENTS TO AGENCIES/CARERS,REDACTED,REDACTED
05.08.2020,CHILDREN'S SERVICES,REDACTED PERSONAL DATA,400.00,P & R CARE TEAM,OTHER PAYMENTS FOR CLIENTS,REDACTED,REDACTED
05.08.2020,CHILDREN'S SERVICES,ACADEMY21 LTD,337.50,PUPIL PREMIUM CURRENT YEAR,EXTERNAL AGENCIES AND BODIES,5902427284,1000083781
05.08.2020,CHILDREN'S SERVICES,PROSPERO RECRUITMENT LTD,"1,247.50",PUPIL PREMIUM CURRENT YEAR,EXTERNAL AGENCIES AND BODIES,5902427267,1000082492
05.08.2020,CHILDREN'S SERVICES,FLEET TUTORS,"2,250.00",PUPIL PREMIUM CURRENT YEAR,EXTERNAL AGENCIES AND BODIES,5902427225,1000044820
05.08.2020,CHILDREN'S SERVICES,FLEET TUTORS,"2,642.00",PUPIL PREMIUM CURRENT YEAR,EXTERNAL AGENCIES AND BODIES,5902427232,1000044820
05.08.2020,CHILDREN'S SERVICES,FLEET TUTORS,"4,005.00",PUPIL PREMIUM CURRENT YEAR,EXTERNAL AGENCIES AND BODIES,5902427234,1000044820
05.08.2020,CHILDREN'S SERVICES,FLEET TUTORS,"6,525.00",PUPIL PREMIUM CURRENT YEAR,EXTERNAL AGENCIES AND BODIES,5902427228,1000044820
05.08.2020,CHILDREN'S SERVICES,PROSPERO RECRUITMENT LTD,"13,287.50",PUPIL PREMIUM CURRENT YEAR,EXTERNAL AGENCIES AND BODIES,5902427267,1000082492
05.08.2020,CHILDREN'S SERVICES,REDACTED PERSONAL DATA,341.15,SPECIAL GUARDIANSHIP,PAYMENTS TO CARERS,REDACTED,REDACTED
05.08.2020,CHILDREN'S SERVICES,REDACTED PERSONAL DATA,342.45,SPECIAL GUARDIANSHIP,PAYMENTS TO CARERS,REDACTED,REDACTED
05.08.2020,CHILDREN'S SERVICES,REDACTED PERSONAL DATA,343.05,SPECIAL GUARDIANSHIP,PAYMENTS TO CARERS,REDACTED,REDACTED
05.08.2020,CHILDREN'S SERVICES,REDACTED PERSONAL DATA,356.15,SPECIAL GUARDIANSHIP,PAYMENTS TO CARERS,REDACTED,REDACTED
05.08.2020,CHILDREN'S SERVICES,REDACTED PERSONAL DATA,388.04,SPECIAL GUARDIANSHIP,PAYMENTS TO CARERS,REDACTED,REDACTED
05.08.2020,CHILDREN'S SERVICES,REDACTED PERSONAL DATA,389.34,SPECIAL GUARDIANSHIP,PAYMENTS TO CARERS,REDACTED,REDACTED
05.08.2020,CHILDREN'S SERVICES,REDACTED PERSONAL DATA,395.00,SPECIAL GUARDIANSHIP,PAYMENTS TO CARERS,REDACTED,REDACTED
05.08.2020,CHILDREN'S SERVICES,REDACTED PERSONAL DATA,403.04,SPECIAL GUARDIANSHIP,PAYMENTS TO CARERS,REDACTED,REDACTED
05.08.2020,CHILDREN'S SERVICES,REDACTED PERSONAL DATA,525.00,SPECIAL GUARDIANSHIP,PAYMENTS TO CARERS,REDACTED,REDACTED
05.08.2020,CHILDREN'S SERVICES,REDACTED PERSONAL DATA,525.00,SPECIAL GUARDIANSHIP,PAYMENTS TO CARERS,REDACTED,REDACTED
05.08.2020,CUSTOMER EXPERIENCE,ARGOS BUSINESS SOLUTIONS LTD,294.49,COMPLAINTS,OFFICE EXPENSES,5902427268,1000001734
05.08.2020,CUSTOMER EXPERIENCE HGF,SG PATH LTD,595.90,CORONER'S,PROFESSIONAL FEES,5902427298,1000077883
05.08.2020,CUSTOMER EXPERIENCE HGF,HELP2SUPPORT LIMITED,262.00,COVID-19 SUPPORT,EXTERNAL AGENCIES AND BODIES,5902427273,1000084604
05.08.2020,CUSTOMER EXPERIENCE HGF,HELP2SUPPORT LIMITED,318.00,COVID-19 SUPPORT,EXTERNAL AGENCIES AND BODIES,5902427257,1000084604
05.08.2020,CUSTOMER EXPERIENCE HGF,HELP2SUPPORT LIMITED,366.00,COVID-19 SUPPORT,EXTERNAL AGENCIES AND BODIES,5902427200,1000084604
05.08.2020,CUSTOMER EXPERIENCE HGF,HELP2SUPPORT LIMITED,366.00,COVID-19 SUPPORT,EXTERNAL AGENCIES AND BODIES,5902427201,1000084604
05.08.2020,CUSTOMER EXPERIENCE HGF,HELP2SUPPORT LIMITED,366.00,COVID-19 SUPPORT,EXTERNAL AGENCIES AND BODIES,5902427215,1000084604
05.08.2020,CUSTOMER EXPERIENCE HGF,HELP2SUPPORT LIMITED,366.00,COVID-19 SUPPORT,EXTERNAL AGENCIES AND BODIES,5902427219,1000084604
05.08.2020,CUSTOMER EXPERIENCE HGF,HELP2SUPPORT LIMITED,366.00,COVID-19 SUPPORT,EXTERNAL AGENCIES AND BODIES,5902427223,1000084604
05.08.2020,CUSTOMER EXPERIENCE HGF,HELP2SUPPORT LIMITED,366.00,COVID-19 SUPPORT,EXTERNAL AGENCIES AND BODIES,5902427224,1000084604
05.08.2020,CUSTOMER EXPERIENCE HGF,HELP2SUPPORT LIMITED,366.00,COVID-19 SUPPORT,EXTERNAL AGENCIES AND BODIES,5902427233,1000084604
05.08.2020,CUSTOMER EXPERIENCE HGF,HELP2SUPPORT LIMITED,366.00,COVID-19 SUPPORT,EXTERNAL AGENCIES AND BODIES,5902427242,1000084604
05.08.2020,CUSTOMER EXPERIENCE HGF,HELP2SUPPORT LIMITED,366.00,COVID-19 SUPPORT,EXTERNAL AGENCIES AND BODIES,5902427246,1000084604
05.08.2020,CUSTOMER EXPERIENCE HGF,HELP2SUPPORT LIMITED,366.00,COVID-19 SUPPORT,EXTERNAL AGENCIES AND BODIES,5902427275,1000084604
05.08.2020,CUSTOMER EXPERIENCE HGF,HELP2SUPPORT LIMITED,366.00,COVID-19 SUPPORT,EXTERNAL AGENCIES AND BODIES,5902427278,1000084604
05.08.2020,CUSTOMER EXPERIENCE HGF,HELP2SUPPORT LIMITED,469.00,COVID-19 SUPPORT,EXTERNAL AGENCIES AND BODIES,5902427281,1000084604
05.08.2020,CUSTOMER EXPERIENCE HGF,HELP2SUPPORT LIMITED,525.00,COVID-19 SUPPORT,EXTERNAL AGENCIES AND BODIES,5902427216,1000084604
05.08.2020,CUSTOMER EXPERIENCE HGF,HELP2SUPPORT LIMITED,525.00,COVID-19 SUPPORT,EXTERNAL AGENCIES AND BODIES,5902427231,1000084604
05.08.2020,CUSTOMER EXPERIENCE HGF,HELP2SUPPORT LIMITED,525.00,COVID-19 SUPPORT,EXTERNAL AGENCIES AND BODIES,5902427277,1000084604
05.08.2020,CUSTOMER EXPERIENCE HGF,HELP2SUPPORT LIMITED,542.00,COVID-19 SUPPORT,EXTERNAL AGENCIES AND BODIES,5902427238,1000084604
05.08.2020,CUSTOMER EXPERIENCE HGF,HELP2SUPPORT LIMITED,684.00,COVID-19 SUPPORT,EXTERNAL AGENCIES AND BODIES,5902427221,1000084604
05.08.2020,CUSTOMER EXPERIENCE HGF,HELP2SUPPORT LIMITED,684.00,COVID-19 SUPPORT,EXTERNAL AGENCIES AND BODIES,5902427249,1000084604
05.08.2020,CUSTOMER EXPERIENCE HGF,HELP2SUPPORT LIMITED,699.00,COVID-19 SUPPORT,EXTERNAL AGENCIES AND BODIES,5902427279,1000084604
05.08.2020,CUSTOMER EXPERIENCE HGF,HELP2SUPPORT LIMITED,733.00,COVID-19 SUPPORT,EXTERNAL AGENCIES AND BODIES,5902427274,1000084604
05.08.2020,CUSTOMER EXPERIENCE HGF,HELP2SUPPORT LIMITED,954.00,COVID-19 SUPPORT,EXTERNAL AGENCIES AND BODIES,5902427237,1000084604
05.08.2020,CUSTOMER EXPERIENCE HGF,MOXON LLP,"1,260.00",HOMELESS PROJECTS,GRANTS,5902427295,1000084351
05.08.2020,CUSTOMER EXPERIENCE HGF,MOXON LLP,"1,310.00",HOMELESS PROJECTS,GRANTS,5902427293,1000084351
05.08.2020,CUSTOMER EXPERIENCE HGF,MOXON LLP,"1,360.00",HOMELESS PROJECTS,GRANTS,5902427314,1000084351
05.08.2020,CUSTOMER EXPERIENCE HGF,MOXON LLP,"1,460.00",HOMELESS PROJECTS,GRANTS,5902427317,1000084351
05.08.2020,CUSTOMER EXPERIENCE HGF,REDACTED PERSONAL DATA,"1,907.36",HOMELESS PROJECTS,GRANTS,REDACTED,REDACTED
05.08.2020,CUSTOMER EXPERIENCE HGF,VIBRANT GROUP YORKSHIRE LTD,"4,000.00",HOMELESS PROJECTS,GRANTS,5902427197,1000083545
05.08.2020,CUSTOMER EXPERIENCE HGF,DOCUSIGN INC,"4,328.58",HOUSING OPTIONS,TRAINING,5902427213,1000084687
05.08.2020,CUSTOMER EXPERIENCE HGF,CIRCA HOMES LTD,"2,780.93",PSL PLACEMENTS,EXTERNAL AGENCIES AND BODIES,5902427336,1000083021
05.08.2020,CUSTOMER EXPERIENCE HGF,LETTING INTERNATIONAL LTD,"33,600.00",PSL PLACEMENTS,GRANTS,5902427311,1000070102
05.08.2020,CUSTOMER EXPERIENCE HGF,TFL TELESALES / OYSTER FULFILMENT,405.00,RAPID REHOUSING,PUBLIC TRANSPORT,5902427351,1000059727
05.08.2020,ENVIRONMENT AND LEISURE,ADAM THOMAS LANDSCAPE DESIGN LTD,"1,750.00",CAPITAL PS (LEISURE),CONSTRUCTION MAIN CONTRACT -CERTIFICATED,5902427220,1000080845
05.08.2020,ENVIRONMENT DIRECTORATE,GREENHAM TRADING LTD,422.31,ESTATE CLEANING-GENERAL,MATERIALS,5902427338,1000006610
05.08.2020,ENVIRONMENT DIRECTORATE,THE T P PARTNERSHIP,950.00,ESTATE CLEANING-GENERAL,OTHER CONTRACTORS,5902427346,1000045906
05.08.2020,ENVIRONMENT DIRECTORATE,THE T P PARTNERSHIP,"2,220.00",ESTATE CLEANING-GENERAL,OTHER CONTRACTORS,5902427347,1000045906
05.08.2020,ENVIRONMENT DIRECTORATE,BRITISH STANDARDS INSTITUTION,"1,025.00",PEST CONTROL,SUBSCRIPTIONS,5902427350,1000041736
05.08.2020,ENVIRONMENT DIRECTORATE,PITNEY BOWES SOFTWARE EUROPE LTD,"34,000.00",STREET WORKS OVERHEADS,SOFTWARE,5902427303,1476232
05.08.2020,EXCHEQUER SERVICES,DATAWATCH INTERNATIONAL LIMITED,"5,985.00",ADMINISTRATIVE SUPPORT,SOFTWARE,5902427241,1000084684
05.08.2020,HOUSING,OCO LIMITED,"138,474.17",PAYMENTS CONTROL ACCOUNT - OCO,I-WORLD CONTRACTORS HOLDING ACCOUNT,5902427071,1006066
05.08.2020,HOUSING HRA,CALFORD SEADEN LLP,797.69,CAPITAL PS (HRA),CONSTRUCTION FEES  - EXTERNAL,5902427266,1061592
05.08.2020,HOUSING HRA,CALFORD SEADEN LLP,797.69,CAPITAL PS (HRA),CONSTRUCTION FEES  - EXTERNAL,5902427266,1061592
05.08.2020,HOUSING HRA,BIKEAWAY,960.00,CAPITAL PS (HRA),CONSTRUCTION SITE COSTS,5902427287,1000036918
05.08.2020,HOUSING HRA,DOWNTOWN LEISURE LIMITED,"143,471.20",CAPITAL PS (HRA),CONSTRUCTION MAIN CONTRACT -CERTIFICATED,2103131494,3000002059
05.08.2020,INSURANCE FUNDS,OPUS CLAIM SOLUTIONS,"2,200.00",PROPERTY RELATED INSURANCE,PROFESSIONAL FEES,5902427302,1000065144
05.08.2020,LEISURE DIRECTORATE,PORTABLE SPACE LTD,"2,032.00",CEMETERIES,BUILDING R&M,5902427194,1000083256
05.08.2020,LEISURE DIRECTORATE,TTS GROUP LTD,702.05,LEISURE INVESTMENT,PRINTING,5902427209,1000015308
05.08.2020,MODERNISATION HGF,BRITISH TELECOM,"-10,404.63",IT MANAGEMENT,DATA COMMUNICATIONS,5902427344,1088091
05.08.2020,MODERNISATION HGF,BRITISH TELECOM,"17,428.20",IT MANAGEMENT,DATA COMMUNICATIONS,5902427343,1088091
05.08.2020,MODERNISATION HGF,SCHOOLS OUT,500.00,LGBTQ+,TRAINING,5902427288,1000050479
05.08.2020,RESIDENT SERVICES,EDF ENERGY PLC,310.43,OPERATIONS/OFFICES ACCOMMODATION,ELECTRICITY,5902427325,1008746
05.08.2020,RESIDENT SERVICES,JUDGE AND PRIESTLEY SOLICITORS,390.50,OPERATIONS/OFFICES ACCOMMODATION,LEGAL SERVICES SCR CHARGES,5902427192,1472217
05.08.2020,RESIDENT SERVICES,CASTLE WATER LTD,"1,206.51",PECKHAM,WATER,5902427321,1000078867
05.08.2020,RESIDENT SERVICES,CALFORD SEADEN LLP,"2,561.07",SHELTERED NORTH,CONSULTANTS SERVICES,5902427270,1061592
05.08.2020,RESIDENT SERVICES,APEX HOUSING SOLUTIONS LTD,"1,891.00",TA PLACEMENTS,EXTERNAL AGENCIES AND BODIES,5902427335,1000079786
05.08.2020,SBS OPERATIONS,JETCHEM SYSTEMS LIMITED,"1,239.00",SBS COMMUNAL REPAIRS,OP LEASE/HIRE CHARGES:PLANT/EQUIP/FURNIT,5902427202,1000067786
05.08.2020,SOUTHWARK BUILDING SERVICES,CITY ELECTRICAL FACTORS LTD,997.80,STORES/LOGISTICS,CREDITORS -GR/IR CLEARING ACCOUNT,5902427199,1003485
05.08.2020,SOUTHWARK BUILDING SERVICES,CITY ELECTRICAL FACTORS LTD,"3,195.00",STORES/LOGISTICS,CREDITORS -GR/IR CLEARING ACCOUNT,5902427199,1003485
05.08.2020,SOUTHWARK BUILDING SERVICES,CITY ELECTRICAL FACTORS LTD,"3,432.00",STORES/LOGISTICS,CREDITORS -GR/IR CLEARING ACCOUNT,5902427199,1003485
06.08.2020,ADULT SOCIAL CARE,ZOE WHITTINGTON,"1,445.00",AAD TEAM,LEGAL FEES & COURT COSTS,2103131780,1000078733
06.08.2020,ADULT SOCIAL CARE,LINDA COBB,"1,500.00",ADULTS MULTI-AGENCY SAFEGUARDING TRNG,TRAINING,5902427417,1000029191
06.08.2020,ADULT SOCIAL CARE,REDACTED PERSONAL DATA,356.60,APPOINTEESHIPS,OTHER PAYMENTS FOR CLIENTS,REDACTED,REDACTED
06.08.2020,ADULT SOCIAL CARE,REDACTED PERSONAL DATA,400.00,APPOINTEESHIPS,OTHER PAYMENTS FOR CLIENTS,REDACTED,REDACTED
06.08.2020,ADULT SOCIAL CARE,CHOICE SUPPORT,554.40,APPOINTEESHIPS,OTHER PAYMENTS FOR CLIENTS,2103131568,1000031156
06.08.2020,ADULT SOCIAL CARE,INDEPENDENT PEOPLE HOMECARE LTD,"3,985.71",CARERS SERVICES,PLACEMENTS - RESPITE,2103131707,1000083488
06.08.2020,ADULT SOCIAL CARE,MICHAEL PAGET,"1,000.00",DIR OF ASC,LEGAL FEES & COURT COSTS,2103131752,1000074954
06.08.2020,ADULT SOCIAL CARE,BENJAMIN TANKEL,"8,325.00",DIR OF ASC,LEGAL FEES & COURT COSTS,2103131720,1000069057
06.08.2020,ADULT SOCIAL CARE,SUSSEX COMMUNITY NHS FT,"19,434.90",DISABILITIES LAC,RESIDENTIAL CARE,2103131719,1000066869
06.08.2020,ADULT SOCIAL CARE,CHOICE SUPPORT,293.92,LD LTS 18-64,SUPPORTED LIVING,2103131704,1104183
06.08.2020,ADULT SOCIAL CARE,CHOICE SUPPORT,293.92,LD LTS 18-64,SUPPORTED LIVING,2103131713,1104183
06.08.2020,ADULT SOCIAL CARE,REDACTED PERSONAL DATA,337.00,LD LTS 18-64,SUPPORTED LIVING,REDACTED,REDACTED
06.08.2020,ADULT SOCIAL CARE,ACT TOO LTD,400.00,LD LTS 18-64,DAYCARE,2103131698,1000053657
06.08.2020,ADULT SOCIAL CARE,CHOICE SUPPORT,440.88,LD LTS 18-64,SUPPORTED LIVING,2103131697,1104183
06.08.2020,ADULT SOCIAL CARE,CONTACT PROFESSIONALS,465.00,LD LTS 18-64,SUPPORTED LIVING,2103131700,1000057263
06.08.2020,ADULT SOCIAL CARE,SURREY DOCKS FARM PROVIDENT SOCIETY,480.00,LD LTS 18-64,DAYCARE,2103131594,1000000958
06.08.2020,ADULT SOCIAL CARE,SURREY DOCKS FARM PROVIDENT SOCIETY,487.50,LD LTS 18-64,DAYCARE,2103131592,1000000958
06.08.2020,ADULT SOCIAL CARE,BRISEN COMPANY LTD,571.20,LD LTS 18-64,SUPPORTED LIVING,2103131680,1000083000
06.08.2020,ADULT SOCIAL CARE,CHOICE SUPPORT,587.84,LD LTS 18-64,SUPPORTED LIVING,2103131699,1104183
06.08.2020,ADULT SOCIAL CARE,CHOICE SUPPORT,631.32,LD LTS 18-64,SUPPORTED LIVING,2103131701,1104183
06.08.2020,ADULT SOCIAL CARE,CHOICE SUPPORT,661.32,LD LTS 18-64,SUPPORTED LIVING,2103131679,1104183
06.08.2020,ADULT SOCIAL CARE,CHOICE SUPPORT,661.32,LD LTS 18-64,SUPPORTED LIVING,2103131689,1104183
06.08.2020,ADULT SOCIAL CARE,CHOICE SUPPORT,661.32,LD LTS 18-64,SUPPORTED LIVING,2103131690,1104183
06.08.2020,ADULT SOCIAL CARE,CHOICE SUPPORT,661.32,LD LTS 18-64,SUPPORTED LIVING,2103131692,1104183
06.08.2020,ADULT SOCIAL CARE,CHOICE SUPPORT,661.32,LD LTS 18-64,SUPPORTED LIVING,2103131693,1104183
06.08.2020,ADULT SOCIAL CARE,CHOICE SUPPORT,661.32,LD LTS 18-64,SUPPORTED LIVING,2103131695,1104183
06.08.2020,ADULT SOCIAL CARE,CHOICE SUPPORT,661.32,LD LTS 18-64,SUPPORTED LIVING,2103131710,1104183
06.08.2020,ADULT SOCIAL CARE,SURREY DOCKS FARM PROVIDENT SOCIETY,720.00,LD LTS 18-64,DAYCARE,2103131595,1000000958
06.08.2020,ADULT SOCIAL CARE,REDACTED PERSONAL DATA,"1,011.00",LD LTS 18-64,SUPPORTED LIVING,REDACTED,REDACTED
06.08.2020,ADULT SOCIAL CARE,PECULIAR CARE HOMES LTD,"1,077.00",LD LTS 18-64,SUPPORTED LIVING,2103131682,1000076991
06.08.2020,ADULT SOCIAL CARE,ACCESS MOBILITY TRANSPORT LTD,"1,228.00",LD LTS 18-64,CLIENT TRANSPORT,2103131688,1000074637
06.08.2020,ADULT SOCIAL CARE,BRISEN COMPANY LTD,"1,428.00",LD LTS 18-64,SUPPORTED LIVING,2103131684,1000083000
06.08.2020,ADULT SOCIAL CARE,ABILITY FOCUS LTD,"2,170.00",LD LTS 18-64,SUPPORTED LIVING,2103131703,1000084199
06.08.2020,ADULT SOCIAL CARE,BRISEN COMPANY LTD,"8,234.48",LD LTS 18-64,SUPPORTED LIVING,2103131686,1000083000
06.08.2020,ADULT SOCIAL CARE,REDACTED PERSONAL DATA,269.60,MH LTS 18-64,SUPPORTED LIVING,REDACTED,REDACTED
06.08.2020,ADULT SOCIAL CARE,REDACTED PERSONAL DATA,269.60,MH LTS 18-64,SUPPORTED LIVING,REDACTED,REDACTED
06.08.2020,ADULT SOCIAL CARE,REDACTED PERSONAL DATA,269.60,MH LTS 18-64,SUPPORTED LIVING,REDACTED,REDACTED
06.08.2020,ADULT SOCIAL CARE,REDACTED PERSONAL DATA,269.60,MH LTS 18-64,SUPPORTED LIVING,REDACTED,REDACTED
06.08.2020,ADULT SOCIAL CARE,REDACTED PERSONAL DATA,269.60,MH LTS 18-64,SUPPORTED LIVING,REDACTED,REDACTED
06.08.2020,ADULT SOCIAL CARE,REDACTED PERSONAL DATA,269.60,MH LTS 18-64,SUPPORTED LIVING,REDACTED,REDACTED
06.08.2020,ADULT SOCIAL CARE,REDACTED PERSONAL DATA,269.60,MH LTS 18-64,SUPPORTED LIVING,REDACTED,REDACTED
06.08.2020,ADULT SOCIAL CARE,REDACTED PERSONAL DATA,269.60,MH LTS 18-64,SUPPORTED LIVING,REDACTED,REDACTED
06.08.2020,ADULT SOCIAL CARE,REDACTED PERSONAL DATA,269.60,MH LTS 18-64,SUPPORTED LIVING,REDACTED,REDACTED
06.08.2020,ADULT SOCIAL CARE,REDACTED PERSONAL DATA,269.60,MH LTS 18-64,SUPPORTED LIVING,REDACTED,REDACTED
06.08.2020,ADULT SOCIAL CARE,REDACTED PERSONAL DATA,269.60,MH LTS 18-64,SUPPORTED LIVING,REDACTED,REDACTED
06.08.2020,ADULT SOCIAL CARE,REDACTED PERSONAL DATA,269.60,MH LTS 18-64,SUPPORTED LIVING,REDACTED,REDACTED
06.08.2020,ADULT SOCIAL CARE,REDACTED PERSONAL DATA,269.60,MH LTS 18-64,SUPPORTED LIVING,REDACTED,REDACTED
06.08.2020,ADULT SOCIAL CARE,REDACTED PERSONAL DATA,269.60,MH LTS 18-64,SUPPORTED LIVING,REDACTED,REDACTED
06.08.2020,ADULT SOCIAL CARE,REDACTED PERSONAL DATA,303.30,MH LTS 18-64,SUPPORTED LIVING,REDACTED,REDACTED
06.08.2020,ADULT SOCIAL CARE,REDACTED PERSONAL DATA,303.30,MH LTS 18-64,SUPPORTED LIVING,REDACTED,REDACTED
06.08.2020,ADULT SOCIAL CARE,REDACTED PERSONAL DATA,337.00,MH LTS 18-64,SUPPORTED LIVING,REDACTED,REDACTED
06.08.2020,ADULT SOCIAL CARE,REDACTED PERSONAL DATA,337.00,MH LTS 18-64,SUPPORTED LIVING,REDACTED,REDACTED
06.08.2020,ADULT SOCIAL CARE,REDACTED PERSONAL DATA,337.00,MH LTS 18-64,SUPPORTED LIVING,REDACTED,REDACTED
06.08.2020,ADULT SOCIAL CARE,REDACTED PERSONAL DATA,337.00,MH LTS 18-64,SUPPORTED LIVING,REDACTED,REDACTED
06.08.2020,ADULT SOCIAL CARE,REDACTED PERSONAL DATA,337.00,MH LTS 18-64,SUPPORTED LIVING,REDACTED,REDACTED
06.08.2020,ADULT SOCIAL CARE,REDACTED PERSONAL DATA,404.40,MH LTS 18-64,SUPPORTED LIVING,REDACTED,REDACTED
06.08.2020,ADULT SOCIAL CARE,REDACTED PERSONAL DATA,404.40,MH LTS 18-64,SUPPORTED LIVING,REDACTED,REDACTED
06.08.2020,ADULT SOCIAL CARE,REDACTED PERSONAL DATA,404.40,MH LTS 18-64,SUPPORTED LIVING,REDACTED,REDACTED
06.08.2020,ADULT SOCIAL CARE,REDACTED PERSONAL DATA,404.40,MH LTS 18-64,SUPPORTED LIVING,REDACTED,REDACTED
06.08.2020,ADULT SOCIAL CARE,REDACTED PERSONAL DATA,404.40,MH LTS 18-64,SUPPORTED LIVING,REDACTED,REDACTED
06.08.2020,ADULT SOCIAL CARE,REDACTED PERSONAL DATA,471.80,MH LTS 18-64,SUPPORTED LIVING,REDACTED,REDACTED
06.08.2020,ADULT SOCIAL CARE,REDACTED PERSONAL DATA,471.80,MH LTS 18-64,SUPPORTED LIVING,REDACTED,REDACTED
06.08.2020,ADULT SOCIAL CARE,REDACTED PERSONAL DATA,505.50,MH LTS 18-64,SUPPORTED LIVING,REDACTED,REDACTED
06.08.2020,ADULT SOCIAL CARE,REDACTED PERSONAL DATA,539.20,MH LTS 18-64,SUPPORTED LIVING,REDACTED,REDACTED
06.08.2020,ADULT SOCIAL CARE,REDACTED PERSONAL DATA,539.20,MH LTS 18-64,SUPPORTED LIVING,REDACTED,REDACTED
06.08.2020,ADULT SOCIAL CARE,REDACTED PERSONAL DATA,606.60,MH LTS 18-64,SUPPORTED LIVING,REDACTED,REDACTED
06.08.2020,ADULT SOCIAL CARE,OASIS CARE AND TRAINING AGENCY,937.72,MH LTS 18-64,SUPPORTED LIVING,2103131709,1000003687
06.08.2020,ADULT SOCIAL CARE,REDACTED PERSONAL DATA,269.60,MH LTS 65+,SUPPORTED LIVING,REDACTED,REDACTED
06.08.2020,ADULT SOCIAL CARE,REDACTED PERSONAL DATA,303.30,MH LTS 65+,SUPPORTED LIVING,REDACTED,REDACTED
06.08.2020,ADULT SOCIAL CARE,REDACTED PERSONAL DATA,370.70,MH LTS 65+,SUPPORTED LIVING,REDACTED,REDACTED
06.08.2020,ADULT SOCIAL CARE,REDACTED PERSONAL DATA,404.40,MH LTS 65+,SUPPORTED LIVING,REDACTED,REDACTED
06.08.2020,ADULT SOCIAL CARE,REDACTED PERSONAL DATA,674.00,MH LTS 65+,SUPPORTED LIVING,REDACTED,REDACTED
06.08.2020,ADULT SOCIAL CARE,REDACTED PERSONAL DATA,690.85,MH LTS 65+,SUPPORTED LIVING,REDACTED,REDACTED
06.08.2020,ADULT SOCIAL CARE,REDACTED PERSONAL DATA,741.40,MH LTS 65+,SUPPORTED LIVING,REDACTED,REDACTED
06.08.2020,ADULT SOCIAL CARE,REDACTED PERSONAL DATA,"1,044.70",MH LTS 65+,SUPPORTED LIVING,REDACTED,REDACTED
06.08.2020,ADULT SOCIAL CARE,REDACTED PERSONAL DATA,"1,465.95",MH LTS 65+,SUPPORTED LIVING,REDACTED,REDACTED
06.08.2020,ADULT SOCIAL CARE,PHOENIX HEALTHCARE & RECRUITMENT,431.36,PHY LTS 18-64,DAYCARE,2103131708,1000065636
06.08.2020,ADULT SOCIAL CARE,PHOENIX HEALTHCARE & RECRUITMENT,431.36,PHY LTS 18-64,DAYCARE,2103131712,1000065636
06.08.2020,ADULT SOCIAL CARE,SAGECARE LTD,"1,586.51",PHY LTS 18-64,HOMECARE - C&V,2103131586,1000080924
06.08.2020,ADULT SOCIAL CARE,SAGECARE LTD,"3,068.35",PHY LTS 18-64,HOMECARE - C&V,2103131589,1000080924
06.08.2020,ADULT SOCIAL CARE,CONTACT PROFESSIONALS,"11,797.10",PHY LTS 18-64,OTHER PAYMENTS FOR CLIENTS,5902426683,1000057263
06.08.2020,ADULT SOCIAL CARE,SNOWBALL CARE UK LTD,912.00,PHY LTS 65+,HOMECARE - SPOT,2103131681,1000081483
06.08.2020,ADULT SOCIAL CARE,SAGECARE LTD,"1,531.14",PHY LTS 65+,HOMECARE - C&V,2103131583,1000080924
06.08.2020,ADULT SOCIAL CARE,SNOWBALL CARE UK LTD,"1,696.00",PHY LTS 65+,HOMECARE - SPOT,2103131683,1000081483
06.08.2020,ADULT SOCIAL CARE,SAGECARE LTD,"2,461.97",PHY LTS 65+,HOMECARE - C&V,2103131578,1000080924
06.08.2020,ADULT SOCIAL CARE,SAGECARE LTD,"2,522.05",PHY LTS 65+,HOMECARE - C&V,2103131587,1000080924
06.08.2020,ADULT SOCIAL CARE,SAGECARE LTD,"2,646.55",PHY LTS 65+,HOMECARE - C&V,2103131579,1000080924
06.08.2020,ADULT SOCIAL CARE,SAGECARE LTD,"3,184.20",PHY LTS 65+,HOMECARE - C&V,2103131588,1000080924
06.08.2020,ADULT SOCIAL CARE,SAGECARE LTD,"3,703.50",PHY LTS 65+,HOMECARE - C&V,2103131584,1000080924
06.08.2020,ADULT SOCIAL CARE,SAGECARE LTD,"3,947.55",PHY LTS 65+,HOMECARE - SPOT,2103131581,1000080924
06.08.2020,ADULT SOCIAL CARE,SAGECARE LTD,"4,271.55",PHY LTS 65+,HOMECARE - C&V,2103131590,1000080924
06.08.2020,ADULT SOCIAL CARE,SAGECARE LTD,"1,362.79",PHY STS 18-64,HOMECARE - IC,2103131585,1000080924
06.08.2020,ADULT SOCIAL CARE,SAGECARE LTD,418.32,PHY STS 65+,HOMECARE - IC,2103131582,1000080924
06.08.2020,ADULT SOCIAL CARE,SURREY DOCKS FARM PROVIDENT SOCIETY,500.00,SOCIAL ISOLATION,DAYCARE,2103131593,1000000958
06.08.2020,ADULT SOCIAL CARE,THE SALVATION ARMY SOCIAL SERVICES,"1,021.43",SUB LTS 18-64,RESIDENTIAL CARE,2103131717,1000082839
06.08.2020,ADULT SOCIAL CARE,FREEDOM RECOVERY CENTRE,"1,925.00",SUB LTS 18-64,PLACEMENTS - REHAB,2103131716,1000046185
06.08.2020,ADULT SOCIAL CARE,MOUNT CARMEL LTD,"3,150.00",SUB LTS 18-64,PLACEMENTS - REHAB,2103131715,11184946
06.08.2020,ADULT SOCIAL CARE,MOUNT CARMEL LTD,"3,255.00",SUB LTS 18-64,PLACEMENTS - REHAB,2103131714,11184946
06.08.2020,ASSET MANAGEMENT,HM & CO  SOLICITORS,312.00,DISREPAIR,PAYMENTS FOR LEGAL SERVICES,2103131500,1000084967
06.08.2020,ASSET MANAGEMENT,HM & CO  SOLICITORS,500.00,DISREPAIR,PAYMENTS FOR LEGAL SERVICES,2103131499,1000084967
06.08.2020,ASSET MANAGEMENT,AWH LEGAL LTD,"1,593.85",DISREPAIR,PAYMENTS FOR LEGAL SERVICES,2103131502,1000082134
06.08.2020,ASSET MANAGEMENT,CAMBRIDGE HOUSE & TALBOT,"1,610.85",DISREPAIR,PAYMENTS FOR LEGAL SERVICES,2103131504,1139414
06.08.2020,ASSET MANAGEMENT,CURTIS SOLICITORS LTD,"1,750.00",DISREPAIR,PAYMENTS FOR LEGAL SERVICES,2103131496,1000083234
06.08.2020,ASSET MANAGEMENT,HANSEN PALOMARES SOLICITORS,"3,500.00",DISREPAIR,PAYMENTS FOR LEGAL SERVICES,2103131501,11053592
06.08.2020,ASSET MANAGEMENT,JI SOLICITORS,"3,950.00",DISREPAIR,PAYMENTS FOR LEGAL SERVICES,2103131498,11247788
06.08.2020,ASSET MANAGEMENT,CHESHIRE ESTATE AND LEGAL LTD,"6,750.00",DISREPAIR,PAYMENTS FOR LEGAL SERVICES,2103131503,1000081908
06.08.2020,ASSET MANAGEMENT,ASHFORDS LLP,"7,250.00",DISREPAIR,PAYMENTS FOR LEGAL SERVICES,2103131497,1000055865
06.08.2020,CENTRAL FUNCTIONS,LAMBERT SMITH HAMPTON GROUP LTD,"1,350.00",COMMERCIAL PROPERTIES,LEGAL FEES & COURT COSTS,2103131746,1000060045
06.08.2020,CENTRAL FUNCTIONS,JUBILEE RESIDENTIAL PROPERTIES LTD,"2,566.82",HOME OWNERSHIP INCOME,HOUSING RESIDENTIAL RENTS,2103131521,1000033634
06.08.2020,CENTRAL FUNCTIONS,1ST ACE SECURITY LTD,"46,032.00",LEDBURY ESTATE,MISCELLANEOUS EXPENSES,5902427058,1000006992
06.08.2020,CENTRAL FUNCTIONS,RICHARD CLAYTON QC,"9,600.00",OPERATIONAL TEAM,LEGAL FEES & COURT COSTS,2103131763,1000069039
06.08.2020,CHIEF EXECUTIVE,PENNINGTON CHOICES LTD,"1,165.00",CAPITAL PS (REGEN),CONSTRUCTION FEES  - EXTERNAL,5902426911,1000067888
06.08.2020,CHIEF EXECUTIVE,SANCHEZ BENTON ARCHITECTS LTD,"3,819.15",CAPITAL PS (REGEN),CONSTRUCTION FEES - ARCHITECT,5902427440,1000080367
06.08.2020,CHIEF EXECUTIVE'S OFFICE,THAMES REACH,"34,171.15",CHIEF EXECUTIVE'S OFFICE,EXTERNAL AGENCIES AND BODIES,5902427496,1723415
06.08.2020,CHIEF EXECUTIVE'S OFFICE,LOTUS UK INTERGRATED COMMUNICATIONS,"25,000.00",DISCRETIONARY GRANTS,GRANTS,2103129335,1000044318
06.08.2020,CHILDREN'S SERVICES,SITA UK LTD (SUEZ),400.64,CENTRAL SUPPORT,EQUIPMENT PURCHASE & REPAIR,5902427370,1000006452
06.08.2020,CHILDREN'S SERVICES,CONTACT PROFESSIONALS,"5,055.90",EDGE OF CARE DECIS�S,OTHER PAYMENTS FOR CLIENTS,5902426683,1000057263
06.08.2020,CHILDREN'S SERVICES,TACT,646.00,FOSTERING TEAM,PROFESSIONAL FEES,5902427462,1000012941
06.08.2020,CHILDREN'S SERVICES,JOHN SCHMITT,275.00,LEGAL,LEGAL FEES & COURT COSTS,2103131745,1000074146
06.08.2020,CHILDREN'S SERVICES,LAURA HIBBERD,275.00,LEGAL,LEGAL FEES & COURT COSTS,2103131749,1000076749
06.08.2020,CHILDREN'S SERVICES,OLIVER MILLINGTON,330.00,LEGAL,LEGAL FEES & COURT COSTS,2103131758,1000051055
06.08.2020,CHILDREN'S SERVICES,OLIVER MILLINGTON,350.00,LEGAL,LEGAL FEES & COURT COSTS,2103131759,1000051055
06.08.2020,CHILDREN'S SERVICES,OLIVER MILLINGTON,350.00,LEGAL,LEGAL FEES & COURT COSTS,2103131761,1000051055
06.08.2020,CHILDREN'S SERVICES,JACOB RICHARDS,350.00,LEGAL,LEGAL FEES & COURT COSTS,2103131738,1000080778
06.08.2020,CHILDREN'S SERVICES,ED LAMB,360.00,LEGAL,LEGAL FEES & COURT COSTS,2103131737,1000058531
06.08.2020,CHILDREN'S SERVICES,WILLIAM DEAN,375.00,LEGAL,LEGAL FEES & COURT COSTS,2103131778,1000070780
06.08.2020,CHILDREN'S SERVICES,WILLIAM DEAN,375.00,LEGAL,LEGAL FEES & COURT COSTS,2103131779,1000070780
06.08.2020,CHILDREN'S SERVICES,LAURA HIBBERD,375.00,LEGAL,LEGAL FEES & COURT COSTS,2103131748,1000076749
06.08.2020,CHILDREN'S SERVICES,PHILIPPA PARRY-JONES,375.00,LEGAL,LEGAL FEES & COURT COSTS,2103131762,1000081285
06.08.2020,CHILDREN'S SERVICES,VICTORIA KIVER,375.00,LEGAL,LEGAL FEES & COURT COSTS,2103131775,1000083032
06.08.2020,CHILDREN'S SERVICES,VICTORIA KIVER,375.00,LEGAL,LEGAL FEES & COURT COSTS,2103131777,1000083032
06.08.2020,CHILDREN'S SERVICES,OLIVER MILLINGTON,400.00,LEGAL,LEGAL FEES & COURT COSTS,2103131755,1000051055
06.08.2020,CHILDREN'S SERVICES,NAIRN PURSS,450.00,LEGAL,LEGAL FEES & COURT COSTS,2103131753,1000068948
06.08.2020,CHILDREN'S SERVICES,NAIRN PURSS,475.00,LEGAL,LEGAL FEES & COURT COSTS,2103131754,1000068948
06.08.2020,CHILDREN'S SERVICES,OLIVER MILLINGTON,550.00,LEGAL,LEGAL FEES & COURT COSTS,2103131757,1000051055
06.08.2020,CHILDREN'S SERVICES,OLIVER MILLINGTON,550.00,LEGAL,LEGAL FEES & COURT COSTS,2103131760,1000051055
06.08.2020,CHILDREN'S SERVICES,JACOB RICHARDS,650.00,LEGAL,LEGAL FEES & COURT COSTS,2103131740,1000080778
06.08.2020,CHILDREN'S SERVICES,OLIVER MILLINGTON,"1,125.00",LEGAL,LEGAL FEES & COURT COSTS,2103131756,1000051055
06.08.2020,CHILDREN'S SERVICES,TANYA ERSKINE,386.75,NURSERY ED GRANT 3 AND 4 YR OLDS,GRANTS,2103131786,1000083285
06.08.2020,CHILDREN'S SERVICES,LYNSEY PAVEY,394.20,NURSERY ED GRANT 3 AND 4 YR OLDS,GRANTS,2103131784,1000077405
06.08.2020,CHILDREN'S SERVICES,MARIA ELEFTHERIOU,773.55,NURSERY ED GRANT 3 AND 4 YR OLDS,GRANTS,2103131785,1000078601
06.08.2020,CHILDREN'S SERVICES,UMU AMINATA KABIA,"1,236.75",NURSERY ED GRANT 3 AND 4 YR OLDS,GRANTS,2103131787,1000066088
06.08.2020,CHILDREN'S SERVICES,ALICE ADAMS,"1,343.55",NURSERY ED GRANT 3 AND 4 YR OLDS,GRANTS,2103131781,1000047717
06.08.2020,CHILDREN'S SERVICES,BEORMUND COMMUNITY CENTRE,"3,914.00",NURSERY ED GRANT 3 AND 4 YR OLDS,GRANTS,2103131788,1029218
06.08.2020,CHILDREN'S SERVICES,LOGICOUS LTD,"7,359.75",NURSERY ED GRANT 3 AND 4 YR OLDS,GRANTS,2103131783,1000073852
06.08.2020,CHILDREN'S SERVICES,HM PRISON & PROBATION SERVICE,"21,669.00",REMAND - YDA STC & SCH,RESIDENTIAL CARE,5902427376,1000083827
06.08.2020,CHILDREN'S SERVICES,HM PRISON & PROBATION SERVICE,"22,860.00",REMAND - YDA STC & SCH,RESIDENTIAL CARE,5902427377,1000083827
06.08.2020,CHILDREN'S SERVICES,SPA EDUCATION TRUST,300.00,SEN - ACADEMY AND FREE SCHOOLS,STATEMENTED FEES,2103131559,1000081600
06.08.2020,CHILDREN'S SERVICES,SPA EDUCATION TRUST,"1,650.00",SEN - ACADEMY AND FREE SCHOOLS,STATEMENTED FEES,2103131525,1000081600
06.08.2020,CHILDREN'S SERVICES,SPA EDUCATION TRUST,"2,400.00",SEN - ACADEMY AND FREE SCHOOLS,STATEMENTED FEES,2103131524,1000081600
06.08.2020,CHILDREN'S SERVICES,REDACTED PERSONAL DATA,"2,720.00",SEN - AEP,STATEMENTED FEES,REDACTED,REDACTED
06.08.2020,CHILDREN'S SERVICES,ASPIRE JC LTD,"5,400.00",SEN - AEP,STATEMENTED FEES,2103131565,1000083919
06.08.2020,CHILDREN'S SERVICES,WINCHMORE TUTORS LTD,260.00,SEN - OTHER,STATEMENTED FEES,2103131542,1000075298
06.08.2020,CHILDREN'S SERVICES,PULSE HEALTHCARE LTD,308.00,SEN - OTHER,STATEMENTED FEES,2103131560,1000035063
06.08.2020,CHILDREN'S SERVICES,PULSE HEALTHCARE LTD,308.00,SEN - OTHER,STATEMENTED FEES,2103131561,1000035063
06.08.2020,CHILDREN'S SERVICES,PULSE HEALTHCARE LTD,308.00,SEN - OTHER,STATEMENTED FEES,2103131563,1000035063
06.08.2020,CHILDREN'S SERVICES,PROSPERO RECRUITMENT LTD,312.00,SEN - OTHER,STATEMENTED FEES,2103131528,1000082492
06.08.2020,CHILDREN'S SERVICES,PROSPERO RECRUITMENT LTD,312.00,SEN - OTHER,STATEMENTED FEES,2103131529,1000082492
06.08.2020,CHILDREN'S SERVICES,PROSPERO RECRUITMENT LTD,312.00,SEN - OTHER,STATEMENTED FEES,2103131530,1000082492
06.08.2020,CHILDREN'S SERVICES,PROSPERO RECRUITMENT LTD,312.00,SEN - OTHER,STATEMENTED FEES,2103131531,1000082492
06.08.2020,CHILDREN'S SERVICES,PROSPERO RECRUITMENT LTD,312.00,SEN - OTHER,STATEMENTED FEES,2103131532,1000082492
06.08.2020,CHILDREN'S SERVICES,PROSPERO RECRUITMENT LTD,312.00,SEN - OTHER,STATEMENTED FEES,2103131533,1000082492
06.08.2020,CHILDREN'S SERVICES,PROSPERO RECRUITMENT LTD,312.00,SEN - OTHER,STATEMENTED FEES,2103131534,1000082492
06.08.2020,CHILDREN'S SERVICES,PROSPERO RECRUITMENT LTD,312.00,SEN - OTHER,STATEMENTED FEES,2103131535,1000082492
06.08.2020,CHILDREN'S SERVICES,PROSPERO RECRUITMENT LTD,312.00,SEN - OTHER,STATEMENTED FEES,2103131557,1000082492
06.08.2020,CHILDREN'S SERVICES,PROSPERO RECRUITMENT LTD,312.00,SEN - OTHER,STATEMENTED FEES,2103131558,1000082492
06.08.2020,CHILDREN'S SERVICES,WINCHMORE TUTORS LTD,400.00,SEN - OTHER,STATEMENTED FEES,2103131537,1000075298
06.08.2020,CHILDREN'S SERVICES,WINCHMORE TUTORS LTD,600.00,SEN - OTHER,STATEMENTED FEES,2103131538,1000075298
06.08.2020,CHILDREN'S SERVICES,WINCHMORE TUTORS LTD,600.00,SEN - OTHER,STATEMENTED FEES,2103131543,1000075298
06.08.2020,CHILDREN'S SERVICES,WINCHMORE TUTORS LTD,600.00,SEN - OTHER,STATEMENTED FEES,2103131544,1000075298
06.08.2020,CHILDREN'S SERVICES,PROSPERO RECRUITMENT LTD,675.00,SEN - OTHER,STATEMENTED FEES,2103131526,1000082492
06.08.2020,CHILDREN'S SERVICES,PROSPERO RECRUITMENT LTD,675.00,SEN - OTHER,STATEMENTED FEES,2103131527,1000082492
06.08.2020,CHILDREN'S SERVICES,WINCHMORE TUTORS LTD,840.00,SEN - OTHER,STATEMENTED FEES,2103131540,1000075298
06.08.2020,CHILDREN'S SERVICES,PULSE HEALTHCARE LTD,"1,001.00",SEN - OTHER,STATEMENTED FEES,2103131562,1000035063
06.08.2020,CHILDREN'S SERVICES,PULSE HEALTHCARE LTD,"1,001.00",SEN - OTHER,STATEMENTED FEES,2103131564,1000035063
06.08.2020,CHILDREN'S SERVICES,WINCHMORE TUTORS LTD,"1,100.00",SEN - OTHER,STATEMENTED FEES,2103131539,1000075298
06.08.2020,CHILDREN'S SERVICES,WINCHMORE TUTORS LTD,"1,200.00",SEN - OTHER,STATEMENTED FEES,2103131541,1000075298
06.08.2020,CHILDREN'S SERVICES,VIBE TEACHER RECRUITMENT LTD,"1,500.00",SEN - OTHER,STATEMENTED FEES,2103131548,1000081423
06.08.2020,CHILDREN'S SERVICES,VIBE TEACHER RECRUITMENT LTD,"1,500.00",SEN - OTHER,STATEMENTED FEES,2103131550,1000081423
06.08.2020,CHILDREN'S SERVICES,VIBE TEACHER RECRUITMENT LTD,"1,500.00",SEN - OTHER,STATEMENTED FEES,2103131552,1000081423
06.08.2020,CHILDREN'S SERVICES,VIBE TEACHER RECRUITMENT LTD,"1,500.00",SEN - OTHER,STATEMENTED FEES,2103131554,1000081423
06.08.2020,CHILDREN'S SERVICES,VIBE TEACHER RECRUITMENT LTD,"1,500.00",SEN - OTHER,STATEMENTED FEES,2103131556,1000081423
06.08.2020,CHILDREN'S SERVICES,VIBE TEACHER RECRUITMENT LTD,"2,100.00",SEN - OTHER,STATEMENTED FEES,2103131547,1000081423
06.08.2020,CHILDREN'S SERVICES,VIBE TEACHER RECRUITMENT LTD,"2,100.00",SEN - OTHER,STATEMENTED FEES,2103131549,1000081423
06.08.2020,CHILDREN'S SERVICES,VIBE TEACHER RECRUITMENT LTD,"2,100.00",SEN - OTHER,STATEMENTED FEES,2103131551,1000081423
06.08.2020,CHILDREN'S SERVICES,VIBE TEACHER RECRUITMENT LTD,"2,100.00",SEN - OTHER,STATEMENTED FEES,2103131553,1000081423
06.08.2020,CHILDREN'S SERVICES,VIBE TEACHER RECRUITMENT LTD,"2,100.00",SEN - OTHER,STATEMENTED FEES,2103131555,1000081423
06.08.2020,CHILDREN'S SERVICES,ZENITH CARS LTD,"1,200.00",TEAM D,OTHER PAYMENTS FOR CLIENTS,5902427362,1000070570
06.08.2020,CHILDREN'S SERVICES,ZFA ACCOMMODATION LTD,"1,710.00",TEMP ACCOM FOR IH,EXTERNAL AGENCIES AND BODIES,5902427375,1000082620
06.08.2020,CHILDREN'S SERVICES,SOUTH OF THE RIVER INVESTMENTS LTD,"2,253.70",TEMP ACCOM FOR IH,EXTERNAL AGENCIES AND BODIES,5902427419,1000073638
06.08.2020,COMMISSIONING & CENTRAL,PHILIP ROSS SOLICITORS,"1,500.00",COMMISSIONING TEAM,EXTERNAL AGENCIES AND BODIES,5902427483,1000062664
06.08.2020,COMMUNITIES,DARETHEALTHCARE UK LTD,"1,358.77",NO RECOURSE TO PUBLIC FUNDS,HOMECARE - C&V,2103131705,1000059149
06.08.2020,COMMUNITIES,CATHERINE ROWLANDS,"1,850.00",NO RECOURSE TO PUBLIC FUNDS,LEGAL FEES & COURT COSTS,2103131726,1000069104
06.08.2020,COMMUNITIES,SAGECARE LTD,"1,997.92",NO RECOURSE TO PUBLIC FUNDS,HOMECARE - C&V,2103131591,1000080924
06.08.2020,COMMUNITIES,SAGECARE LTD,"2,542.43",NO RECOURSE TO PUBLIC FUNDS,HOMECARE - C&V,2103131580,1000080924
06.08.2020,COMMUNITIES,SETCHELL ESTATE T&RA,"1,815.00",TENANTS FUND,GRANTS,5902426880,1266504
06.08.2020,COMMUNITIES,BRIMTONROY T&RA,"4,339.50",TENANTS FUND,GRANTS,5902426671,1000001919
06.08.2020,CUSTOMER EXPERIENCE HGF,CHRISTOPHER BAKER,700.00,HOMELESS PROJECTS,LEGAL FEES & COURT COSTS,2103131728,1000043525
06.08.2020,CUSTOMER EXPERIENCE HGF,CHRISTOPHER BAKER,743.75,HOMELESS PROJECTS,LEGAL FEES & COURT COSTS,2103131729,1000043525
06.08.2020,CUSTOMER EXPERIENCE HGF,CHRISTOPHER BAKER,875.00,HOMELESS PROJECTS,LEGAL FEES & COURT COSTS,2103131730,1000043525
06.08.2020,CUSTOMER EXPERIENCE HGF,CHRISTOPHER BAKER,875.00,HOMELESS PROJECTS,LEGAL FEES & COURT COSTS,2103131731,1000043525
06.08.2020,CUSTOMER EXPERIENCE HGF,"RAYMOND, ANGELA, KEVIN LAMERTON","2,117.12",HOMELESS PROJECTS,GRANTS,5902427481,1000085102
06.08.2020,CUSTOMER EXPERIENCE HGF,FRESHVIEW ESTATES LTD,"2,117.28",HOMELESS PROJECTS,GRANTS,5902427469,1000081189
06.08.2020,CUSTOMER EXPERIENCE HGF,ONE HOUSING GROUP LIMITED,"2,286.79",HOMELESS PROJECTS,GRANTS,5902427372,1000085081
06.08.2020,CUSTOMER EXPERIENCE HGF,SUNSHINE ESTATES LTD,"2,293.72",HOMELESS PROJECTS,GRANTS,5902427464,1000083634
06.08.2020,CUSTOMER EXPERIENCE HGF,VIBRANT GROUP YORKSHIRE LTD,"3,500.00",HOMELESS PROJECTS,GRANTS,5902426670,1000083545
06.08.2020,CUSTOMER EXPERIENCE HGF,WENTWORTH HOUSING LTD,"12,600.00",NIGHTLY TA (NSC),EXTERNAL AGENCIES AND BODIES,5902427467,1000083640
06.08.2020,CUSTOMER EXPERIENCE HGF,OAK HOUSING LTD,"3,496.18",PSL PLACEMENTS,EXTERNAL AGENCIES AND BODIES,5902427477,1000079310
06.08.2020,CUSTOMER EXPERIENCE HGF,LODGISTICS ESTATES,"5,398.79",PSL PLACEMENTS,EXTERNAL AGENCIES AND BODIES,5902427470,1000080324
06.08.2020,CUSTOMER EXPERIENCE HGF,TUNSTALL HEALTHCARE (UK) LTD,"4,718.30",SMART MOBILE RESPONSE TEAM,EQUIPMENT PURCHASE & REPAIR,5902427489,1012297
06.08.2020,DEPT DORMANT AND DEAD CODES,TECHNICAL SURFACES LTD,375.00,PLAY NORTH,OTHER R&M,2103131047,3000001721
06.08.2020,ENVIRONMENT AND LEISURE,STANDAGE & CO LTD,"65,998.97",CAPITAL PS (LEISURE),CONSTRUCTION FEES  - EXTERNAL,2103131506,4002817
06.08.2020,ENVIRONMENT DIRECTORATE,BRITISH TELECOMMUNICATIONS PLC,987.54,CCTV,TELEPHONES (LAND LINES),5902427371,11149671
06.08.2020,ENVIRONMENT DIRECTORATE,BRITISH TELECOMMUNICATIONS PLC,"1,015.48",CCTV,TELEPHONES (LAND LINES),5902427447,11149671
06.08.2020,ENVIRONMENT DIRECTORATE,BRITISH TELECOMMUNICATIONS PLC,"1,587.89",CCTV,TELEPHONES (LAND LINES),5902427443,11149671
06.08.2020,ENVIRONMENT DIRECTORATE,BRITISH TELECOMMUNICATIONS PLC,"2,588.12",CCTV,TELEPHONES (LAND LINES),5902427446,11149671
06.08.2020,ENVIRONMENT DIRECTORATE,BRITISH TELECOMMUNICATIONS PLC,"4,970.66",CCTV,TELEPHONES (LAND LINES),5902427444,11149671
06.08.2020,ENVIRONMENT DIRECTORATE,RIGHTON & BLACKBURNS LTD,393.00,ENGINEERING CRAFTS,MATERIALS,5902427502,1000041264
06.08.2020,ENVIRONMENT DIRECTORATE,GREENHAM TRADING LTD,"4,851.88",ESTATE CLEANING-GENERAL,MATERIALS,5902427363,1000006610
06.08.2020,ENVIRONMENT DIRECTORATE,CASTLE WATER LTD,644.43,MANAGEMENT TEAM,WATER,5902427390,1000078867
06.08.2020,ENVIRONMENT DIRECTORATE,CHERRY PICKER HIRE LTD,410.00,NON HOUSING GROUNDS,EQUIPMENT PURCHASE & REPAIR,5902427337,1000077442
06.08.2020,ENVIRONMENT DIRECTORATE,CABLE TEST LTD,471.40,PUBLIC LIGHTING,OTHER CONTRACTORS,5902427396,1000079183
06.08.2020,ENVIRONMENT DIRECTORATE,CABLE TEST LTD,537.79,PUBLIC LIGHTING,OTHER CONTRACTORS,5902427391,1000079183
06.08.2020,ENVIRONMENT DIRECTORATE,CABLE TEST LTD,537.79,PUBLIC LIGHTING,OTHER CONTRACTORS,5902427395,1000079183
06.08.2020,ENVIRONMENT DIRECTORATE,CABLE TEST LTD,537.79,PUBLIC LIGHTING,OTHER CONTRACTORS,5902427402,1000079183
06.08.2020,ENVIRONMENT DIRECTORATE,CABLE TEST LTD,537.79,PUBLIC LIGHTING,OTHER CONTRACTORS,5902427408,1000079183
06.08.2020,ENVIRONMENT DIRECTORATE,CABLE TEST LTD,560.79,PUBLIC LIGHTING,OTHER CONTRACTORS,5902427407,1000079183
06.08.2020,ENVIRONMENT DIRECTORATE,CABLE TEST LTD,679.37,PUBLIC LIGHTING,OTHER CONTRACTORS,5902427389,1000079183
06.08.2020,ENVIRONMENT DIRECTORATE,CABLE TEST LTD,679.37,PUBLIC LIGHTING,OTHER CONTRACTORS,5902427409,1000079183
06.08.2020,ENVIRONMENT DIRECTORATE,CABLE TEST LTD,854.41,PUBLIC LIGHTING,OTHER CONTRACTORS,5902427397,1000079183
06.08.2020,ENVIRONMENT DIRECTORATE,CABLE TEST LTD,"1,263.79",PUBLIC LIGHTING,OTHER CONTRACTORS,5902427399,1000079183
06.08.2020,ENVIRONMENT DIRECTORATE,CABLE TEST LTD,"1,278.58",PUBLIC LIGHTING,OTHER CONTRACTORS,5902427405,1000079183
06.08.2020,ENVIRONMENT DIRECTORATE,CABLE TEST LTD,"1,951.99",PUBLIC LIGHTING,OTHER CONTRACTORS,5902427392,1000079183
06.08.2020,ENVIRONMENT DIRECTORATE,CABLE TEST LTD,"2,161.40",PUBLIC LIGHTING,OTHER CONTRACTORS,5902427400,1000079183
06.08.2020,ENVIRONMENT DIRECTORATE,CABLE TEST LTD,"2,622.56",PUBLIC LIGHTING,OTHER CONTRACTORS,5902427394,1000079183
06.08.2020,ENVIRONMENT DIRECTORATE,JARED NORMAN,450.00,SASBU,LEGAL FEES & COURT COSTS,2103131743,1000064080
06.08.2020,ENVIRONMENT DIRECTORATE,JARED NORMAN,900.00,SASBU,LEGAL FEES & COURT COSTS,2103131744,1000064080
06.08.2020,ENVIRONMENT DIRECTORATE,SPANDEX LTD,481.53,SIGN SHOP,MATERIALS,5902427486,1015608
06.08.2020,ENVIRONMENT DIRECTORATE,SPANDEX LTD,667.80,SIGN SHOP,MATERIALS,5902427486,1015608
06.08.2020,ENVIRONMENT DIRECTORATE,ELLIOT ENVIRONMENTAL LTD,400.00,STREET CLEANING-GENERAL,OTHER CONTRACTORS,5902427478,1000047392
06.08.2020,ENVIRONMENT DIRECTORATE,ELLIOT ENVIRONMENTAL LTD,400.00,STREET CLEANING-GENERAL,OTHER CONTRACTORS,5902427484,1000047392
06.08.2020,ENVIRONMENT DIRECTORATE,CROMWELL POLYTHENE LTD,"1,333.68",STREET CLEANING-GENERAL,MATERIALS,5902427361,1000021159
06.08.2020,ENVIRONMENT DIRECTORATE,SOUTHWARK NEWSPAPER LTD,300.00,STREET WORKS OVERHEADS,MARKETING & PUBLICITY SERVICES,5902427431,1556957
06.08.2020,ENVIRONMENT DIRECTORATE,SOUTHWARK NEWSPAPER LTD,324.00,STREET WORKS OVERHEADS,MARKETING & PUBLICITY SERVICES,5902427436,1556957
06.08.2020,ENVIRONMENT DIRECTORATE,SOUTHWARK NEWSPAPER LTD,336.00,STREET WORKS OVERHEADS,MARKETING & PUBLICITY SERVICES,5902427435,1556957
06.08.2020,ENVIRONMENT DIRECTORATE,SOUTHWARK NEWSPAPER LTD,348.00,STREET WORKS OVERHEADS,MARKETING & PUBLICITY SERVICES,5902427427,1556957
06.08.2020,ENVIRONMENT DIRECTORATE,SOUTHWARK NEWSPAPER LTD,360.00,STREET WORKS OVERHEADS,MARKETING & PUBLICITY SERVICES,5902427433,1556957
06.08.2020,ENVIRONMENT DIRECTORATE,SOUTHWARK NEWSPAPER LTD,396.00,STREET WORKS OVERHEADS,MARKETING & PUBLICITY SERVICES,5902427430,1556957
06.08.2020,ENVIRONMENT DIRECTORATE,SOUTHWARK NEWSPAPER LTD,396.00,STREET WORKS OVERHEADS,MARKETING & PUBLICITY SERVICES,5902427432,1556957
06.08.2020,ENVIRONMENT DIRECTORATE,SOUTHWARK NEWSPAPER LTD,408.00,STREET WORKS OVERHEADS,MARKETING & PUBLICITY SERVICES,5902427428,1556957
06.08.2020,ENVIRONMENT DIRECTORATE,SOUTHWARK NEWSPAPER LTD,408.00,STREET WORKS OVERHEADS,MARKETING & PUBLICITY SERVICES,5902427429,1556957
06.08.2020,ENVIRONMENT DIRECTORATE,SOUTHWARK NEWSPAPER LTD,432.00,STREET WORKS OVERHEADS,MARKETING & PUBLICITY SERVICES,5902427434,1556957
06.08.2020,ENVIRONMENT DIRECTORATE,WSP UK LTD,"5,451.60",TRANSPORT PROJECTS,CONSULTANTS SERVICES,5902426809,1000054214
06.08.2020,EXCHEQUER SERVICES,DSI BILLING SERVICES LTD,"4,249.78",ADMINISTRATIVE SUPPORT,POSTAGES,5902427369,1000058640
06.08.2020,EXCHEQUER SERVICES,BURGESS SPORTS,500.00,SESS,OTHER PAYMENTS FOR CLIENTS,2103131795,1000069532
06.08.2020,EXCHEQUER SERVICES,AFRO-BRAZILIAN ARTS & CULTURAL EXCHANGE INSTITUTE,"1,000.00",SESS,OTHER PAYMENTS FOR CLIENTS,2103131793,1000072302
06.08.2020,EXCHEQUER SERVICES,LONDON SENIOR SOCIAL LTD,"1,000.00",SESS,OTHER PAYMENTS FOR CLIENTS,2103131803,1000076545
06.08.2020,EXCHEQUER SERVICES,HIGHER GROUND CHRISTIAN ASSEMBLY,"1,000.00",SESS,OTHER PAYMENTS FOR CLIENTS,2103131792,1000084260
06.08.2020,EXCHEQUER SERVICES,RIPE ENTERPRISES LIMITED,"1,000.00",SESS,OTHER PAYMENTS FOR CLIENTS,2103131801,1000084269
06.08.2020,EXCHEQUER SERVICES,ASSOCIATION DES S�N�GALAIS (ES),"1,000.00",SESS,OTHER PAYMENTS FOR CLIENTS,2103131802,1000084301
06.08.2020,EXCHEQUER SERVICES,NUTKIN KITCHEN LTD,"1,000.00",SESS,OTHER PAYMENTS FOR CLIENTS,2103131789,1000084524
06.08.2020,EXCHEQUER SERVICES,THE MOVEMENT FACTORY,"1,500.00",SESS,OTHER PAYMENTS FOR CLIENTS,2103131791,1000066123
06.08.2020,EXCHEQUER SERVICES,CHILDREN & FAMILY EMPOWERMENT,"1,500.00",SESS,OTHER PAYMENTS FOR CLIENTS,2103131799,1000084288
06.08.2020,EXCHEQUER SERVICES,THEATRE PECKHAM,"2,000.00",SESS,OTHER PAYMENTS FOR CLIENTS,2103131800,1071668
06.08.2020,EXCHEQUER SERVICES,BERMONDSEY ARTIST`S GROUP,"2,000.00",SESS,OTHER PAYMENTS FOR CLIENTS,2103131797,1000004746
06.08.2020,EXCHEQUER SERVICES,LOUIE LOUIE LTD,"2,000.00",SESS,OTHER PAYMENTS FOR CLIENTS,2103131790,1000084284
06.08.2020,EXCHEQUER SERVICES,CAMBERWELL AFTER SCHOOL PROJECT,"2,500.00",SESS,OTHER PAYMENTS FOR CLIENTS,2103131798,11154503
06.08.2020,EXCHEQUER SERVICES,YOUNG VIC COMPANY,"3,000.00",SESS,OTHER PAYMENTS FOR CLIENTS,2103131796,11050645
06.08.2020,EXCHEQUER SERVICES,CAMBRIDGE HOUSE & TALBOT,"5,000.00",SESS,OTHER PAYMENTS FOR CLIENTS,2103131794,1139414
06.08.2020,EXTERNAL AFFAIRS,GRANICUS LLC,"27,012.00",MEDIA,OFFICE EXPENSES,5902427475,1000076351
06.08.2020,FINANCE DIRECTOR,BDO LLP,"3,290.00",INTERNAL AUDIT CONTRACTS,PAYMENTS FOR FINANCIAL SERVICES,5902427352,1000057898
06.08.2020,HOUSING,OCO LIMITED,"901,752.82",PAYMENTS CONTROL ACCOUNT - OCO,I-WORLD CONTRACTORS HOLDING ACCOUNT,5902427359,1006066
06.08.2020,HOUSING GENERAL FUND,THE KNOWLEDGE ACADEMY LTD,900.00,CAPITAL PS (HOUSING GF),ICT ACQUISITION,5902427493,1000064533
06.08.2020,HOUSING HRA,GUILDMORE LTD,"-71,172.19",CAPITAL PS (HRA),CONSTRUCTION MAIN CONTRACT -CERTIFICATED,5902427648,3000002150
06.08.2020,HOUSING HRA,DOWNTOWN LEISURE LTD,-800.00,CAPITAL PS (HRA),CONSTRUCTION FEES  - EXTERNAL,5902427619,1000081079
06.08.2020,HOUSING HRA,DOWNTOWN LEISURE LTD,800.00,CAPITAL PS (HRA),CONSTRUCTION FEES  - EXTERNAL,5902422107,1000081079
06.08.2020,HOUSING HRA,CALFORD SEADEN LLP,"3,092.75",CAPITAL PS (HRA),CONSTRUCTION FEES  - EXTERNAL,5902427380,1061592
06.08.2020,HOUSING HRA,LEVITT BERNSTEIN ASSOCIATION LIMITED,"4,325.00",CAPITAL PS (HRA),CONSTRUCTION FEES  - EXTERNAL,5902427505,1000036622
06.08.2020,HOUSING HRA,ENGIE REGENERATION (APOLLO) LTD,"42,261.23",CAPITAL PS (HRA),CONSTRUCTION MAIN CONTRACT -CERTIFICATED,2103131505,4000449
06.08.2020,HOUSING HRA,GUILDMORE LTD,"71,172.19",CAPITAL PS (HRA),CONSTRUCTION MAIN CONTRACT -CERTIFICATED,5902427557,3000002150
06.08.2020,HOUSING HRA,BLAKEDOWN LANDSCAPES,"158,935.00",CAPITAL PS (HRA),CONSTRUCTION MAIN CONTRACT,2103131522,4005399
06.08.2020,LAW & DEMOCRACY,SHAW KELLY,260.00,LEGAL CORP.CHARGES,LEGAL FEES & COURT COSTS,2103131768,1000006930
06.08.2020,LAW & DEMOCRACY,SHAW KELLY,300.00,LEGAL CORP.CHARGES,LEGAL FEES & COURT COSTS,2103131769,1000006930
06.08.2020,LAW & DEMOCRACY,ACHILLES INFORMATION LTD,880.00,LEGAL SVCES MANAGEMENT,SUBSCRIPTIONS,5902427438,1000003019
06.08.2020,LEISURE DIRECTORATE,QUADRON SERVICES LIMITED,"1,020.20",CLIENT SERV(GRNS MAIN),OTHER CONTRACTORS,5902426801,1000066528
06.08.2020,LEISURE DIRECTORATE,QUADRON SERVICES LIMITED,"1,479.20",CLIENT SERV(GRNS MAIN),OTHER CONTRACTORS,5902426803,1000066528
06.08.2020,LEISURE DIRECTORATE,LEE SNASHFOLD CREMETORIA MANAGEMENT,"2,741.50",CREMATORIUM,PROFESSIONAL FEES,5902426891,1000077845
06.08.2020,LEISURE DIRECTORATE,GROVE VALE YOUTH CLUB,"1,350.00",GRANTS COMMISSIONING,GRANTS,5902427416,1173906
06.08.2020,LEISURE DIRECTORATE,WESTMINSTER HOUSE YOUTH CLUB,"7,740.00",GRANTS COMMISSIONING,GRANTS,5902427328,11088645
06.08.2020,LEISURE DIRECTORATE,TECHNICAL SURFACES LTD,460.00,SOUTHWARK AREA TEAM,OTHER R&M,2103130973,3000001721
06.08.2020,MODERNISATION HGF,INTERSERVE (FACILITIES MANAGEMENT),"3,916.72",FM SERVICES BY INTERSERVE,BUILDING R&M,5902427020,1000070792
06.08.2020,MODERNISATION HGF,COMENSURA LTD,"593,975.50",WEEKLY PAYMENTS,AGENCY STAFF,5902427437,1000051261
06.08.2020,PLANNING AND TRANSPORT,THE PLANNING INSPECTORATE,"20,465.73",PLANNING POLICY TEAM,CONSULTANTS SERVICES,5902427461,1000042795
06.08.2020,PLANNING AND TRANSPORT,CONWAY AECOM LTD,"4,307.14",TRANSPORT POLICY AND PROGRAMS,PROFESSIONAL FEES,5902427420,1000071205
06.08.2020,PUBLIC HEALTH,BARTS HEALTH NHS TRUST,"8,198.29",SEXUAL HEALTH - STI,EXTERNAL AGENCIES AND BODIES,5902427421,1000055762
06.08.2020,PUBLIC HEALTH,BARTS HEALTH NHS TRUST,"8,198.29",SEXUAL HEALTH - STI,EXTERNAL AGENCIES AND BODIES,5902427422,1000055762
06.08.2020,PUBLIC HEALTH,BARTS HEALTH NHS TRUST,"8,198.29",SEXUAL HEALTH - STI,EXTERNAL AGENCIES AND BODIES,5902427423,1000055762
06.08.2020,PUBLIC HEALTH,LEWISHAM AND GREENWICH NHS TRUST,"54,798.00",SEXUAL HEALTH - STI,EXTERNAL AGENCIES AND BODIES,5902427471,1000076183
06.08.2020,REPORTING & TREASURY,ALLIANCE BERNSTEIN LTD,"16,380.87",CASH MANAGERS' COSTS,PROFESSIONAL FEES,5902427222,1000055012
06.08.2020,RESIDENT SERVICES,SHAW KELLY,465.83,CAMBERWELL,LEGAL FEES & COURT COSTS,2103131770,1000006930
06.08.2020,RESIDENT SERVICES,SHAW KELLY,300.00,NUNHEAD,LEGAL FEES & COURT COSTS,2103131771,1000006930
06.08.2020,RESIDENT SERVICES,SHAW KELLY,300.00,NUNHEAD,LEGAL FEES & COURT COSTS,2103131773,1000006930
06.08.2020,RESIDENT SERVICES,SITTARA LTD,"2,180.50",TA PLACEMENTS,EXTERNAL AGENCIES AND BODIES,5902427414,1000080857
06.08.2020,RESIDENT SERVICES,TAAKSVALE HOUSING LTD,"2,954.50",TA PLACEMENTS,EXTERNAL AGENCIES AND BODIES,5902427418,1000073665
06.08.2020,RESIDENT SERVICES,NORBURY PROPERTY SERVICES (LONDON) LTD,"4,805.00",TA PLACEMENTS,EXTERNAL AGENCIES AND BODIES,5902427404,1000075566
06.08.2020,SBS SUPPORT,CLOUD DIALOGS LTD T/A TOTALMOBILE,"8,000.00",ICT & COMMUNICATIONS,SOFTWARE,5902427401,1000061511
06.08.2020,SOUTHWARK BUILDING SERVICES,CALLOW MASTER LOCKSMITHS,558.11,STORES/LOGISTICS,CREDITORS -GR/IR CLEARING ACCOUNT,5902427476,11179552
06.08.2020,SOUTHWARK BUILDING SERVICES,CALLOW MASTER LOCKSMITHS,700.00,STORES/LOGISTICS,CREDITORS -GR/IR CLEARING ACCOUNT,5902427476,11179552
07.08.2020,ADULT SOCIAL CARE,ZFA ACCOMMODATION LTD,"1,080.00",ASC TEMPORARY ACCOMMODATION,EXTERNAL AGENCIES AND BODIES,5902427520,1000082620
07.08.2020,ADULT SOCIAL CARE,THE VINE RESIDENTIAL SERVICES LTD,"1,713.94",DISABILITIES LAC,RESIDENTIAL CARE,2103131987,1000082868
07.08.2020,ADULT SOCIAL CARE,CREATING CARE CHOICES LTD,"18,600.00",DISABILITIES LAC,EXTERNAL AGENCIES AND BODIES,2103131981,1000076738
07.08.2020,ADULT SOCIAL CARE,GET ASSIGNED LTD,"30,960.00",DISABILITIES LAC,RESIDENTIAL CARE,2103131985,1000081697
07.08.2020,ADULT SOCIAL CARE,MEDACS HOMECARE,260.10,LD LTS 18-64,SUPPORTED LIVING,2103132128,11287415
07.08.2020,ADULT SOCIAL CARE,MEDACS HOMECARE,346.80,LD LTS 18-64,HOMECARE - C&V,2103132130,11287415
07.08.2020,ADULT SOCIAL CARE,CHOICE SUPPORT,514.36,LD LTS 18-64,SUPPORTED LIVING,2103132151,1104183
07.08.2020,ADULT SOCIAL CARE,MEDACS HOMECARE,704.00,LD LTS 18-64,HOMECARE - C&V,2103132143,11287415
07.08.2020,ADULT SOCIAL CARE,DARETHEALTHCARE UK LTD,728.16,LD LTS 18-64,SUPPORTED LIVING,2103132152,1000059149
07.08.2020,ADULT SOCIAL CARE,MEDACS HOMECARE,740.16,LD LTS 18-64,SUPPORTED LIVING,2103132131,11287415
07.08.2020,ADULT SOCIAL CARE,MEDACS HOMECARE,"1,734.00",LD LTS 18-64,HOMECARE - C&V,2103132144,11287415
07.08.2020,ADULT SOCIAL CARE,CARE O LINE,"1,808.14",LD LTS 18-64,SUPPORTED LIVING,2103132153,11241743
07.08.2020,ADULT SOCIAL CARE,CARE O LINE,"1,851.59",LD LTS 18-64,SUPPORTED LIVING,2103132154,11241743
07.08.2020,ADULT SOCIAL CARE,PROFAD CARE AGENCY,390.60,PHY LTS 18-64,HOMECARE - SPOT,2103132139,1000079032
07.08.2020,ADULT SOCIAL CARE,PROFAD CARE AGENCY,632.40,PHY LTS 18-64,HOMECARE - SPOT,2103132138,1000079032
07.08.2020,ADULT SOCIAL CARE,PHOENIX HEALTHCARE & RECRUITMENT,862.72,PHY LTS 18-64,DAYCARE,2103132150,1000065636
07.08.2020,ADULT SOCIAL CARE,LONDON CARE LTD,265.93,PHY LTS 65+,HOMECARE - C&V,2103132124,1000003398
07.08.2020,ADULT SOCIAL CARE,LONDON CARE LTD,412.25,PHY LTS 65+,HOMECARE - C&V,2103132126,1000003398
07.08.2020,ADULT SOCIAL CARE,PROFAD CARE AGENCY,450.39,PHY LTS 65+,HOMECARE - SPOT,2103132142,1000079032
07.08.2020,ADULT SOCIAL CARE,LONDON CARE LTD,"1,056.55",PHY LTS 65+,HOMECARE - C&V,2103132119,1000003398
07.08.2020,ADULT SOCIAL CARE,LONDON CARE LTD,"1,252.90",PHY LTS 65+,HOMECARE - C&V,2103132122,1000003398
07.08.2020,ADULT SOCIAL CARE,LONDON CARE LTD,"1,398.25",PHY LTS 65+,HOMECARE - C&V,2103132121,1000003398
07.08.2020,ADULT SOCIAL CARE,PROFAD CARE AGENCY,"3,849.48",PHY LTS 65+,HOMECARE - SPOT,2103132141,1000079032
07.08.2020,ADULT SOCIAL CARE,CONTACT PROFESSIONALS,285.00,SPECIALIST CARE,SECTION 17 PAYMENTS TO AGENCIES/CARERS,2103131914,1000057263
07.08.2020,ADULT SOCIAL CARE,MEDACS HOMECARE,288.60,SPECIALIST CARE,SECTION 17 PAYMENTS TO AGENCIES/CARERS,2103132069,11287415
07.08.2020,ADULT SOCIAL CARE,CONTACT PROFESSIONALS,323.00,SPECIALIST CARE,SECTION 17 PAYMENTS TO AGENCIES/CARERS,2103131960,1000057263
07.08.2020,ADULT SOCIAL CARE,CONTACT PROFESSIONALS,342.00,SPECIALIST CARE,SECTION 17 PAYMENTS TO AGENCIES/CARERS,2103131845,1000057263
07.08.2020,ADULT SOCIAL CARE,FOCUSED HEALTHCARE LTD,366.24,SPECIALIST CARE,SECTION 17 PAYMENTS TO AGENCIES/CARERS,2103131852,1000069262
07.08.2020,ADULT SOCIAL CARE,FOCUSED HEALTHCARE LTD,366.24,SPECIALIST CARE,SECTION 17 PAYMENTS TO AGENCIES/CARERS,2103131975,1000069262
07.08.2020,ADULT SOCIAL CARE,CONTACT PROFESSIONALS,380.00,SPECIALIST CARE,SECTION 17 PAYMENTS TO AGENCIES/CARERS,2103131815,1000057263
07.08.2020,ADULT SOCIAL CARE,CONTACT PROFESSIONALS,380.00,SPECIALIST CARE,SECTION 17 PAYMENTS TO AGENCIES/CARERS,2103131954,1000057263
07.08.2020,ADULT SOCIAL CARE,INTERSERVE HEALTHCARE,739.32,SPECIALIST CARE,SECTION 17 PAYMENTS TO AGENCIES/CARERS,2103131858,1000049612
07.08.2020,ADULT SOCIAL CARE,MEDACS HOMECARE,"1,031.80",SPECIALIST CARE,SECTION 17 PAYMENTS TO AGENCIES/CARERS,2103132071,11287415
07.08.2020,ADULT SOCIAL CARE,FOCUSED HEALTHCARE LTD,"1,098.72",SPECIALIST CARE,SECTION 17 PAYMENTS TO AGENCIES/CARERS,2103131854,1000069262
07.08.2020,ADULT SOCIAL CARE,FOCUSED HEALTHCARE LTD,"2,740.82",SPECIALIST CARE,SECTION 17 PAYMENTS TO AGENCIES/CARERS,2103131866,1000069262
07.08.2020,ADULT SOCIAL CARE,CAPITAL HOMECARE (UK) LTD,"3,360.00",SPECIALIST CARE,SECTION 17 PAYMENTS TO AGENCIES/CARERS,2103131962,1000042589
07.08.2020,ADULT SOCIAL CARE,FOCUSED HEALTHCARE LTD,"6,004.80",SPECIALIST CARE,SECTION 17 PAYMENTS TO AGENCIES/CARERS,2103131850,1000069262
07.08.2020,ADULT SOCIAL CARE,MEDACS HOMECARE,519.48,TRANSITIONS 14-18YRS,SECTION 17 PAYMENTS TO AGENCIES/CARERS,2103132066,11287415
07.08.2020,ADULT SOCIAL CARE,MEDACS HOMECARE,808.08,TRANSITIONS 14-18YRS,SECTION 17 PAYMENTS TO AGENCIES/CARERS,2103132067,11287415
07.08.2020,CHIEF EXECUTIVE,EDF ENERGY PLC,"1,738.34",CAPITAL PS (REGEN),LAND & BUILDINGS ACQUISITION FEES,5902427592,1008746
07.08.2020,CHIEF EXECUTIVE,EDF ENERGY PLC,"2,352.47",CAPITAL PS (REGEN),LAND & BUILDINGS ACQUISITION FEES,5902427581,1008746
07.08.2020,CHIEF EXECUTIVE,EDF ENERGY PLC,"3,476.07",CAPITAL PS (REGEN),LAND & BUILDINGS ACQUISITION FEES,5902427591,1008746
07.08.2020,CHILDREN'S SERVICES,WALWORTH GARDEN FARM,525.00,ALC COMMUNITY LEARNING,GRANTS,5902427560,1000042204
07.08.2020,CHILDREN'S SERVICES,HOLIBROOK HOUSE LTD,"24,290.71",CHILDREN�S RESID,RESIDENTIAL CARE,2103131983,1000067873
07.08.2020,CHILDREN'S SERVICES,HORIZON FOSTERING SERVICES LTD,498.75,FRIENDS & FAMILY FOSTERING,EXTERNAL AGENCIES AND BODIES,2103132039,1000075679
07.08.2020,CHILDREN'S SERVICES,HORIZON FOSTERING SERVICES LTD,"2,593.50",FRIENDS & FAMILY FOSTERING,EXTERNAL AGENCIES AND BODIES,2103132043,1000075679
07.08.2020,CHILDREN'S SERVICES,HORIZON FOSTERING SERVICES LTD,"2,937.56",FRIENDS & FAMILY FOSTERING,EXTERNAL AGENCIES AND BODIES,2103132029,1000075679
07.08.2020,CHILDREN'S SERVICES,HORIZON FOSTERING SERVICES LTD,"2,937.56",FRIENDS & FAMILY FOSTERING,EXTERNAL AGENCIES AND BODIES,2103132044,1000075679
07.08.2020,CHILDREN'S SERVICES,FOSTERING FOR YOU LTD,"3,271.21",FRIENDS & FAMILY FOSTERING,EXTERNAL AGENCIES AND BODIES,2103132019,1000080380
07.08.2020,CHILDREN'S SERVICES,FOSTERING FOR YOU LTD,"3,271.21",FRIENDS & FAMILY FOSTERING,EXTERNAL AGENCIES AND BODIES,2103132023,1000080380
07.08.2020,CHILDREN'S SERVICES,GREATER LONDON FOSTERING,"3,286.00",FRIENDS & FAMILY FOSTERING,EXTERNAL AGENCIES AND BODIES,2103132025,1000029184
07.08.2020,CHILDREN'S SERVICES,GREATER LONDON FOSTERING,"3,286.00",FRIENDS & FAMILY FOSTERING,EXTERNAL AGENCIES AND BODIES,2103132033,1000029184
07.08.2020,CHILDREN'S SERVICES,FOSTERING FOR YOU LTD,"3,443.39",FRIENDS & FAMILY FOSTERING,EXTERNAL AGENCIES AND BODIES,2103132013,1000080380
07.08.2020,CHILDREN'S SERVICES,FOSTERING FOR YOU LTD,"3,443.39",FRIENDS & FAMILY FOSTERING,EXTERNAL AGENCIES AND BODIES,2103132015,1000080380
07.08.2020,CHILDREN'S SERVICES,FOSTERING FOR YOU LTD,"3,443.39",FRIENDS & FAMILY FOSTERING,EXTERNAL AGENCIES AND BODIES,2103132031,1000080380
07.08.2020,CHILDREN'S SERVICES,FOSTERING FOR YOU LTD,"3,443.39",FRIENDS & FAMILY FOSTERING,EXTERNAL AGENCIES AND BODIES,2103132037,1000080380
07.08.2020,CHILDREN'S SERVICES,FOSTERING FOR YOU LTD,"3,443.39",FRIENDS & FAMILY FOSTERING,EXTERNAL AGENCIES AND BODIES,2103132045,1000080380
07.08.2020,CHILDREN'S SERVICES,CHILDREN OF COLOUR,"3,457.13",FRIENDS & FAMILY FOSTERING,EXTERNAL AGENCIES AND BODIES,2103132040,1000044955
07.08.2020,CHILDREN'S SERVICES,ORANGE GROVE FOSTERCARE LTD,"3,751.62",FRIENDS & FAMILY FOSTERING,EXTERNAL AGENCIES AND BODIES,2103132017,1000078716
07.08.2020,CHILDREN'S SERVICES,FOSTERING FOR YOU LTD,"3,998.78",FRIENDS & FAMILY FOSTERING,EXTERNAL AGENCIES AND BODIES,2103132027,1000080380
07.08.2020,CHILDREN'S SERVICES,DIVERSITY FOSTER CARE LTD,"4,108.69",FRIENDS & FAMILY FOSTERING,EXTERNAL AGENCIES AND BODIES,2103132007,1000081399
07.08.2020,CHILDREN'S SERVICES,DIVERSITY FOSTER CARE LTD,"4,108.69",FRIENDS & FAMILY FOSTERING,EXTERNAL AGENCIES AND BODIES,2103132035,1000081399
07.08.2020,CHILDREN'S SERVICES,PILGRIMS CORNER LIMITED,"4,424.63",FRIENDS & FAMILY FOSTERING,EXTERNAL AGENCIES AND BODIES,2103132005,1000084708
07.08.2020,CHILDREN'S SERVICES,GREATER LONDON FOSTERING,"4,645.35",FRIENDS & FAMILY FOSTERING,EXTERNAL AGENCIES AND BODIES,2103132041,1000029184
07.08.2020,CHILDREN'S SERVICES,FOSTERING LONDON LTD,"4,650.00",FRIENDS & FAMILY FOSTERING,EXTERNAL AGENCIES AND BODIES,2103132021,1000077541
07.08.2020,CHILDREN'S SERVICES,FOSTERING FOR YOU LTD,"4,998.47",FRIENDS & FAMILY FOSTERING,EXTERNAL AGENCIES AND BODIES,2103132011,1000080380
07.08.2020,CHILDREN'S SERVICES,FOSTERING LONDON LTD,"5,092.68",FRIENDS & FAMILY FOSTERING,EXTERNAL AGENCIES AND BODIES,2103132009,1000077541
07.08.2020,CHILDREN'S SERVICES,LIGHTHOUSE FOSTERING LTD,"5,766.89",FRIENDS & FAMILY FOSTERING,EXTERNAL AGENCIES AND BODIES,2103132042,1000080372
07.08.2020,CHILDREN'S SERVICES,REDACTED PERSONAL DATA,"3,096.00",FRIENDS &FAMILY FOST,PAYMENTS TO CARERS,REDACTED,REDACTED
07.08.2020,CHILDREN'S SERVICES,KAMAURA ENTERPRISE LTD,"3,180.00",MENTAL HEALTH AND RESILIENCE,CONSULTANTS SERVICES,5902427527,1000083609
07.08.2020,CHILDREN'S SERVICES,BEDDY BUYZ WAREHOUSE,600.00,MGMT & PARENTING,FURNITURE PURCHASE & REPAIR,5902427608,1000026704
07.08.2020,CHILDREN'S SERVICES,OASIS AQUILA HOUSING,"148,854.75",SEMI INDEPENDENT 16+ CONTRACT,EXTERNAL AGENCIES AND BODIES,5902427565,1000002184
07.08.2020,CHILDREN'S SERVICES,PURPLE PEBBLES(CHILD CARE) SERVICES,"-3,206.99",SEMI INDEPENDENT CARE LEAVERS,EXTERNAL AGENCIES AND BODIES,2103132090,1000070705
07.08.2020,CHILDREN'S SERVICES,NETPEX LTD CORPORATE SERVICES,"-2,228.13",SEMI INDEPENDENT CARE LEAVERS,EXTERNAL AGENCIES AND BODIES,2103123055,1000076073
07.08.2020,CHILDREN'S SERVICES,NETPEX LTD CORPORATE SERVICES,"-2,092.02",SEMI INDEPENDENT CARE LEAVERS,EXTERNAL AGENCIES AND BODIES,2103123059,1000076073
07.08.2020,CHILDREN'S SERVICES,NETPEX LTD CORPORATE SERVICES,"-1,200.00",SEMI INDEPENDENT CARE LEAVERS,EXTERNAL AGENCIES AND BODIES,2103123054,1000076073
07.08.2020,CHILDREN'S SERVICES,PURPLE PEBBLES(CHILD CARE) SERVICES,-953.33,SEMI INDEPENDENT CARE LEAVERS,EXTERNAL AGENCIES AND BODIES,2103132079,1000070705
07.08.2020,CHILDREN'S SERVICES,PURPLE PEBBLES(CHILD CARE) SERVICES,-894.99,SEMI INDEPENDENT CARE LEAVERS,EXTERNAL AGENCIES AND BODIES,2103132094,1000070705
07.08.2020,CHILDREN'S SERVICES,PURPLE PEBBLES(CHILD CARE) SERVICES,-875.00,SEMI INDEPENDENT CARE LEAVERS,EXTERNAL AGENCIES AND BODIES,2103132074,1000070705
07.08.2020,CHILDREN'S SERVICES,PURPLE PEBBLES(CHILD CARE) SERVICES,-449.99,SEMI INDEPENDENT CARE LEAVERS,EXTERNAL AGENCIES AND BODIES,2103132088,1000070705
07.08.2020,CHILDREN'S SERVICES,PURPLE PEBBLES(CHILD CARE) SERVICES,-449.99,SEMI INDEPENDENT CARE LEAVERS,EXTERNAL AGENCIES AND BODIES,2103132101,1000070705
07.08.2020,CHILDREN'S SERVICES,STEP AHEAD SERVICES LTD,265.71,SEMI INDEPENDENT CARE LEAVERS,OTHER PAYMENTS FOR CLIENTS,2103132146,1000036544
07.08.2020,CHILDREN'S SERVICES,SYDNEY CARE LTD,310.00,SEMI INDEPENDENT CARE LEAVERS,OTHER PAYMENTS FOR CLIENTS,2103132046,1000081598
07.08.2020,CHILDREN'S SERVICES,HEXAGON HOUSING ASSOCIATION LTD,621.80,SEMI INDEPENDENT CARE LEAVERS,EXTERNAL AGENCIES AND BODIES,2103132098,1000056905
07.08.2020,CHILDREN'S SERVICES,HEXAGON HOUSING ASSOCIATION LTD,621.80,SEMI INDEPENDENT CARE LEAVERS,EXTERNAL AGENCIES AND BODIES,2103132106,1000056905
07.08.2020,CHILDREN'S SERVICES,HEXAGON HOUSING ASSOCIATION LTD,624.79,SEMI INDEPENDENT CARE LEAVERS,EXTERNAL AGENCIES AND BODIES,2103132105,1000056905
07.08.2020,CHILDREN'S SERVICES,PURPLE PEBBLES(CHILD CARE) SERVICES,664.29,SEMI INDEPENDENT CARE LEAVERS,EXTERNAL AGENCIES AND BODIES,2103132095,1000070705
07.08.2020,CHILDREN'S SERVICES,FINEFAIR LTD,"1,632.90",SEMI INDEPENDENT CARE LEAVERS,EXTERNAL AGENCIES AND BODIES,2103132062,1000075570
07.08.2020,CHILDREN'S SERVICES,PURPLE PEBBLES(CHILD CARE) SERVICES,"1,660.71",SEMI INDEPENDENT CARE LEAVERS,EXTERNAL AGENCIES AND BODIES,2103132093,1000070705
07.08.2020,CHILDREN'S SERVICES,PURPLE PEBBLES(CHILD CARE) SERVICES,"1,705.00",SEMI INDEPENDENT CARE LEAVERS,EXTERNAL AGENCIES AND BODIES,2103132086,1000070705
07.08.2020,CHILDREN'S SERVICES,PURPLE PEBBLES(CHILD CARE) SERVICES,"1,716.07",SEMI INDEPENDENT CARE LEAVERS,EXTERNAL AGENCIES AND BODIES,2103132109,1000070705
07.08.2020,CHILDREN'S SERVICES,HEARTWOOD OUTREACH SERVICES LTD,"1,887.59",SEMI INDEPENDENT CARE LEAVERS,EXTERNAL AGENCIES AND BODIES,2103132061,1000075021
07.08.2020,CHILDREN'S SERVICES,PURPLE PEBBLES(CHILD CARE) SERVICES,"1,992.86",SEMI INDEPENDENT CARE LEAVERS,EXTERNAL AGENCIES AND BODIES,2103132089,1000070705
07.08.2020,CHILDREN'S SERVICES,PURPLE PEBBLES(CHILD CARE) SERVICES,"1,992.86",SEMI INDEPENDENT CARE LEAVERS,EXTERNAL AGENCIES AND BODIES,2103132110,1000070705
07.08.2020,CHILDREN'S SERVICES,PURPLE PEBBLES(CHILD CARE) SERVICES,"1,992.86",SEMI INDEPENDENT CARE LEAVERS,EXTERNAL AGENCIES AND BODIES,2103132111,1000070705
07.08.2020,CHILDREN'S SERVICES,NETPEX LTD CORPORATE SERVICES,"2,034.38",SEMI INDEPENDENT CARE LEAVERS,EXTERNAL AGENCIES AND BODIES,2103132048,1000076073
07.08.2020,CHILDREN'S SERVICES,PURPLE PEBBLES(CHILD CARE) SERVICES,"2,048.21",SEMI INDEPENDENT CARE LEAVERS,EXTERNAL AGENCIES AND BODIES,2103132075,1000070705
07.08.2020,CHILDREN'S SERVICES,PURPLE PEBBLES(CHILD CARE) SERVICES,"2,103.57",SEMI INDEPENDENT CARE LEAVERS,EXTERNAL AGENCIES AND BODIES,2103132073,1000070705
07.08.2020,CHILDREN'S SERVICES,NETPEX LTD CORPORATE SERVICES,"2,435.67",SEMI INDEPENDENT CARE LEAVERS,EXTERNAL AGENCIES AND BODIES,2103132056,1000076073
07.08.2020,CHILDREN'S SERVICES,PURPLE PEBBLES(CHILD CARE) SERVICES,"2,480.00",SEMI INDEPENDENT CARE LEAVERS,EXTERNAL AGENCIES AND BODIES,2103132108,1000070705
07.08.2020,CHILDREN'S SERVICES,PURPLE PEBBLES(CHILD CARE) SERVICES,"2,590.71",SEMI INDEPENDENT CARE LEAVERS,EXTERNAL AGENCIES AND BODIES,2103132085,1000070705
07.08.2020,CHILDREN'S SERVICES,NETPEX LTD CORPORATE SERVICES,"2,767.99",SEMI INDEPENDENT CARE LEAVERS,EXTERNAL AGENCIES AND BODIES,2103132063,1000076073
07.08.2020,CHILDREN'S SERVICES,NETPEX LTD CORPORATE SERVICES,"3,055.67",SEMI INDEPENDENT CARE LEAVERS,EXTERNAL AGENCIES AND BODIES,2103132053,1000076073
07.08.2020,CHILDREN'S SERVICES,NETPEX LTD CORPORATE SERVICES,"3,077.99",SEMI INDEPENDENT CARE LEAVERS,EXTERNAL AGENCIES AND BODIES,2103132064,1000076073
07.08.2020,CHILDREN'S SERVICES,NETPEX LTD CORPORATE SERVICES,"3,321.34",SEMI INDEPENDENT CARE LEAVERS,EXTERNAL AGENCIES AND BODIES,2103132055,1000076073
07.08.2020,CHILDREN'S SERVICES,TRANSFORMING LIVES COMPANY LTD,"3,739.92",SEMI INDEPENDENT CARE LEAVERS,EXTERNAL AGENCIES AND BODIES,2103132065,1000083352
07.08.2020,CHILDREN'S SERVICES,NETPEX LTD CORPORATE SERVICES,"4,207.32",SEMI INDEPENDENT CARE LEAVERS,EXTERNAL AGENCIES AND BODIES,2103132059,1000076073
07.08.2020,CHILDREN'S SERVICES,NETPEX LTD CORPORATE SERVICES,"4,406.65",SEMI INDEPENDENT CARE LEAVERS,EXTERNAL AGENCIES AND BODIES,2103132057,1000076073
07.08.2020,CHILDREN'S SERVICES,STEP AHEAD SERVICES LTD,"4,871.43",SEMI INDEPENDENT CARE LEAVERS,EXTERNAL AGENCIES AND BODIES,2103132145,1000036544
07.08.2020,CHILDREN'S SERVICES,SYDNEY CARE LTD,"5,314.28",SEMI INDEPENDENT CARE LEAVERS,EXTERNAL AGENCIES AND BODIES,2103132050,1000081598
07.08.2020,CHILDREN'S SERVICES,STEP AHEAD SERVICES LTD,310.00,SEMI INDEPENDENT LAC,OTHER PAYMENTS FOR CLIENTS,2103132118,1000036544
07.08.2020,CHILDREN'S SERVICES,SYDNEY CARE LTD,310.00,SEMI INDEPENDENT LAC,OTHER PAYMENTS FOR CLIENTS,2103131993,1000081598
07.08.2020,CHILDREN'S SERVICES,SYDNEY CARE LTD,"3,985.71",SEMI INDEPENDENT LAC,EXTERNAL AGENCIES AND BODIES,2103131997,1000081598
07.08.2020,CHILDREN'S SERVICES,STEP AHEAD SERVICES LTD,"4,517.14",SEMI INDEPENDENT LAC,EXTERNAL AGENCIES AND BODIES,2103132117,1000036544
07.08.2020,CHILDREN'S SERVICES,REAL LIFE CARE LTD,"4,760.67",SEMI INDEPENDENT LAC,EXTERNAL AGENCIES AND BODIES,2103131999,1000083556
07.08.2020,CHILDREN'S SERVICES,SOUTHWARK INCLUSIVE LEARNING SERVICE,"175,000.00",SILS,HIGH NEEDS - TOP UP FUNDING,5902427571,5001000105
07.08.2020,CHILDREN'S SERVICES,HORIZON FOSTERING SERVICES LTD,"2,271.99",STAYING PUT,EXTERNAL AGENCIES AND BODIES,2103132054,1000075679
07.08.2020,CHILDREN'S SERVICES,GREATER LONDON FOSTERING,"2,421.41",STAYING PUT,EXTERNAL AGENCIES AND BODIES,2103132060,1000029184
07.08.2020,CHILDREN'S SERVICES,NATIONWIDE ACCOMMODATION,"-1,065.00",TEMP ACCOM FOR IH,EXTERNAL AGENCIES AND BODIES,5902427593,1000076112
07.08.2020,CHILDREN'S SERVICES,NATIONWIDE ACCOMMODATION,284.00,TEMP ACCOM FOR IH,EXTERNAL AGENCIES AND BODIES,5902427590,1000076112
07.08.2020,CHILDREN'S SERVICES,NATIONWIDE ACCOMMODATION,"1,100.50",TEMP ACCOM FOR IH,EXTERNAL AGENCIES AND BODIES,5902427589,1000076112
07.08.2020,CHILDREN'S SERVICES,PURPLE PEBBLES(CHILD CARE) SERVICES,-697.75,UASC CARE LEAVERS,EXTERNAL AGENCIES AND BODIES,2103132084,1000070705
07.08.2020,CHILDREN'S SERVICES,PURPLE PEBBLES(CHILD CARE) SERVICES,-516.52,UASC CARE LEAVERS,EXTERNAL AGENCIES AND BODIES,2103132078,1000070705
07.08.2020,CHILDREN'S SERVICES,FUTURE FOUNDATIONS LTD,350.00,UASC CARE LEAVERS,EXTERNAL AGENCIES AND BODIES,2103132107,1000063272
07.08.2020,CHILDREN'S SERVICES,PURPLE PEBBLES(CHILD CARE) SERVICES,350.00,UASC CARE LEAVERS,EXTERNAL AGENCIES AND BODIES,2103132087,1000070705
07.08.2020,CHILDREN'S SERVICES,PURPLE PEBBLES(CHILD CARE) SERVICES,350.00,UASC CARE LEAVERS,OTHER PAYMENTS FOR CLIENTS,2103132103,1000070705
07.08.2020,CHILDREN'S SERVICES,FUTURE FOUNDATIONS LTD,460.00,UASC CARE LEAVERS,EXTERNAL AGENCIES AND BODIES,2103132077,1000063272
07.08.2020,CHILDREN'S SERVICES,HOLMDENE HOUSING LTD,528.58,UASC CARE LEAVERS,EXTERNAL AGENCIES AND BODIES,2103132100,1000032598
07.08.2020,CHILDREN'S SERVICES,HEXAGON HOUSING ASSOCIATION LTD,621.80,UASC CARE LEAVERS,EXTERNAL AGENCIES AND BODIES,2103132082,1000056905
07.08.2020,CHILDREN'S SERVICES,PURPLE PEBBLES(CHILD CARE) SERVICES,"1,594.29",UASC CARE LEAVERS,EXTERNAL AGENCIES AND BODIES,2103132081,1000070705
07.08.2020,CHILDREN'S SERVICES,PURPLE PEBBLES(CHILD CARE) SERVICES,"1,616.43",UASC CARE LEAVERS,EXTERNAL AGENCIES AND BODIES,2103132083,1000070705
07.08.2020,CHILDREN'S SERVICES,PURPLE PEBBLES(CHILD CARE) SERVICES,"1,660.71",UASC CARE LEAVERS,EXTERNAL AGENCIES AND BODIES,2103132092,1000070705
07.08.2020,CHILDREN'S SERVICES,PURPLE PEBBLES(CHILD CARE) SERVICES,"1,749.29",UASC CARE LEAVERS,EXTERNAL AGENCIES AND BODIES,2103132091,1000070705
07.08.2020,CHILDREN'S SERVICES,PURPLE PEBBLES(CHILD CARE) SERVICES,"1,749.29",UASC CARE LEAVERS,EXTERNAL AGENCIES AND BODIES,2103132102,1000070705
07.08.2020,CHILDREN'S SERVICES,PURPLE PEBBLES(CHILD CARE) SERVICES,"1,771.43",UASC CARE LEAVERS,EXTERNAL AGENCIES AND BODIES,2103132080,1000070705
07.08.2020,CHILDREN'S SERVICES,PURPLE PEBBLES(CHILD CARE) SERVICES,"1,771.43",UASC CARE LEAVERS,EXTERNAL AGENCIES AND BODIES,2103132096,1000070705
07.08.2020,CHILDREN'S SERVICES,PURPLE PEBBLES(CHILD CARE) SERVICES,"1,815.71",UASC CARE LEAVERS,EXTERNAL AGENCIES AND BODIES,2103132097,1000070705
07.08.2020,CHILDREN'S SERVICES,PURPLE PEBBLES(CHILD CARE) SERVICES,"1,882.14",UASC CARE LEAVERS,EXTERNAL AGENCIES AND BODIES,2103132104,1000070705
07.08.2020,CHILDREN'S SERVICES,PURPLE PEBBLES(CHILD CARE) SERVICES,"2,092.50",UASC CARE LEAVERS,EXTERNAL AGENCIES AND BODIES,2103132076,1000070705
07.08.2020,CHILDREN'S SERVICES,STEP AHEAD SERVICES LTD,"2,214.29",UASC CARE LEAVERS,EXTERNAL AGENCIES AND BODIES,2103132147,1000036544
07.08.2020,CHILDREN'S SERVICES,NETPEX LTD CORPORATE SERVICES,"4,207.32",UASC CARE LEAVERS,EXTERNAL AGENCIES AND BODIES,2103132051,1000076073
07.08.2020,CHILDREN'S SERVICES,NETPEX LTD CORPORATE SERVICES,"4,406.65",UASC CARE LEAVERS,EXTERNAL AGENCIES AND BODIES,2103132052,1000076073
07.08.2020,CHILDREN'S SERVICES,HOMES ASSOCIATION LTD,"4,920.00",UASC CARE LEAVERS,EXTERNAL AGENCIES AND BODIES,2103132072,1000084710
07.08.2020,CHILDREN'S SERVICES,EPIC CARE HOME LTD,265.72,UASC LAC,OTHER PAYMENTS FOR CLIENTS,2103131991,1000084192
07.08.2020,CHILDREN'S SERVICES,NETPEX LTD CORPORATE SERVICES,280.00,UASC LAC,OTHER PAYMENTS FOR CLIENTS,2103132001,1000076073
07.08.2020,CHILDREN'S SERVICES,PURPLE PEBBLES(CHILD CARE) SERVICES,"1,981.79",UASC LAC,EXTERNAL AGENCIES AND BODIES,2103132112,1000070705
07.08.2020,CHILDREN'S SERVICES,PURPLE PEBBLES(CHILD CARE) SERVICES,"1,992.86",UASC LAC,EXTERNAL AGENCIES AND BODIES,2103132115,1000070705
07.08.2020,CHILDREN'S SERVICES,PURPLE PEBBLES(CHILD CARE) SERVICES,"1,992.86",UASC LAC,EXTERNAL AGENCIES AND BODIES,2103132116,1000070705
07.08.2020,CHILDREN'S SERVICES,EPIC CARE HOME LTD,"3,823.57",UASC LAC,EXTERNAL AGENCIES AND BODIES,2103131989,1000084192
07.08.2020,CHILDREN'S SERVICES,NETPEX LTD CORPORATE SERVICES,"4,406.34",UASC LAC,EXTERNAL AGENCIES AND BODIES,2103132003,1000076073
07.08.2020,COMMUNITIES,POSAPA LTD,900.00,SAFER SOUTHWARK PARTNERSHIP ADMIN,CONSULTANTS SERVICES,5902427605,1000083060
07.08.2020,COMMUNITIES,ALUAIE CAPOEIRA UK,"3,200.00",SOUTH,GRANTS,5902427612,1000084951
07.08.2020,COMMUNITIES,ASTLEY COOPERS (ASCO) T&RA,"2,508.00",TENANTS FUND,GRANTS,5902426894,11059315
07.08.2020,CUSTOMER EXPERIENCE,PLAN LONDON LTD,"2,050.00",SALES & ACQUISITIONS,PROFESSIONAL FEES,5902427559,1000056065
07.08.2020,CUSTOMER EXPERIENCE HGF,VALTECH LTD,311.75,BLUE BADGES,MATERIALS,5902426995,1000082245
07.08.2020,CUSTOMER EXPERIENCE HGF,LOCAL REGISTRATION SVCS ASSN,400.00,CITIZENSHIP,TRAINING,5902427524,1000064033
07.08.2020,CUSTOMER EXPERIENCE HGF,IMPERIAL COLLEGE PROJECTS LTD,500.00,CORONER'S,PROFESSIONAL FEES,5902426930,1000080106
07.08.2020,CUSTOMER EXPERIENCE HGF,DIGNITY FUNERALS LTD,"14,400.00",CORONER'S,OTHER CONTRACTORS,5902427562,1000041373
07.08.2020,CUSTOMER EXPERIENCE HGF,S & G PROPERTIES,"5,152.82",NIGHTLY TA (NSC),EXTERNAL AGENCIES AND BODIES,5902427561,1000005082
07.08.2020,CUSTOMER EXPERIENCE HGF,RS REAL ESTATE LTD,"18,877.50",NIGHTLY TA (NSC),EXTERNAL AGENCIES AND BODIES,5902427572,1000072485
07.08.2020,CUSTOMER EXPERIENCE HGF,SMARTSPACE PROPERTY SOLUTIONS LTD,"2,819.72",PSL PLACEMENTS,EXTERNAL AGENCIES AND BODIES,5902427514,1000082769
07.08.2020,CUSTOMER EXPERIENCE HGF,AMT PROPERTY LTD,984.96,RAPID REHOUSING,GRANTS,5902427345,1000084257
07.08.2020,CUSTOMER EXPERIENCE HGF,AMT PROPERTY LTD,"1,723.68",RAPID REHOUSING,GRANTS,5902427345,1000084257
07.08.2020,CUSTOMER EXPERIENCE HGF,RS REAL ESTATE LTD,"2,100.00",RAPID REHOUSING,EXTERNAL AGENCIES AND BODIES,5902427439,1000072485
07.08.2020,CUSTOMER EXPERIENCE HGF,RS REAL ESTATE LTD,"2,170.00",RAPID REHOUSING,EXTERNAL AGENCIES AND BODIES,5902427573,1000072485
07.08.2020,ENVIRONMENT AND LEISURE,CONWAY AECOM LTD,"1,178.08",CAPITAL PS (LEISURE),CONSTR'N SUB CONTRACT - NON CERTIFICATED,2103132161,3000001595
07.08.2020,ENVIRONMENT DIRECTORATE,PURPOSE POWDER COATINGS LTD,320.35,ENGINEERING CRAFTS,MATERIALS,5902427543,1000059450
07.08.2020,ENVIRONMENT DIRECTORATE,PURPOSE POWDER COATINGS LTD,674.00,ENGINEERING CRAFTS,MATERIALS,5902427539,1000059450
07.08.2020,ENVIRONMENT DIRECTORATE,BUDMAX CONSTRUCTION LTD,750.00,ENGINEERING CRAFTS,OTHER CONTRACTORS,2103132168,3000001936
07.08.2020,ENVIRONMENT DIRECTORATE,PURPOSE POWDER COATINGS LTD,832.91,ENGINEERING CRAFTS,MATERIALS,5902427617,1000059450
07.08.2020,ENVIRONMENT DIRECTORATE,C L ROADMARKINGS LTD,"3,622.16",ENGINEERING CRAFTS,OTHER CONTRACTORS,2103132169,3000000825
07.08.2020,ENVIRONMENT DIRECTORATE,TENNANT UK CLEANING SOLUTIONS LTD,251.60,MANAGEMENT TEAM,EQUIPMENT PURCHASE & REPAIR,5902427549,1065589
07.08.2020,ENVIRONMENT DIRECTORATE,CHAR.GY LIMITED,"-23,750.00",PUBLIC LIGHTING,MATERIALS,5902427532,1000081785
07.08.2020,ENVIRONMENT DIRECTORATE,FOOTFALL SOLARIS LIGHTING LTD,"5,028.40",PUBLIC LIGHTING,MATERIALS,5902427507,1000082947
07.08.2020,ENVIRONMENT DIRECTORATE,CHAR.GY LIMITED,"98,750.00",PUBLIC LIGHTING,MATERIALS,5902427530,1000081785
07.08.2020,ENVIRONMENT DIRECTORATE,ECOLAB LTD,"3,125.00",STRUCTURES RECOVERABLE WORKS,OTHER CONTRACTORS,5902427554,1000051810
07.08.2020,ENVIRONMENT DIRECTORATE,ECOLAB LTD,"3,923.71",STRUCTURES RECOVERABLE WORKS,OTHER CONTRACTORS,5902427555,1000051810
07.08.2020,ENVIRONMENT DIRECTORATE,ECOLAB LTD,"4,100.27",STRUCTURES RECOVERABLE WORKS,OTHER CONTRACTORS,5902427556,1000051810
07.08.2020,HOUSING HRA,CALFORD SEADEN LLP,588.00,CAPITAL PS (HRA),CONSTRUCTION FEES  - EXTERNAL,5902426917,1061592
07.08.2020,HOUSING HRA,MORGAN SINDALL PLC,"1,067.00",CAPITAL PS (HRA),CONSTRUCTION MAIN CONTRACT -CERTIFICATED,2103130974,3000001556
07.08.2020,HOUSING HRA,MORGAN SINDALL PLC,"2,068.22",CAPITAL PS (HRA),CONSTRUCTION MAIN CONTRACT -CERTIFICATED,2103130975,3000001556
07.08.2020,HOUSING HRA,TROWERS & HAMLINS LLP,"5,150.50",CAPITAL PS (HRA),CONSTRUCTION FEES - LEGAL,5902427576,1000016239
07.08.2020,HOUSING HRA,POTTER RAPER LTD,"6,000.00",CAPITAL PS (HRA),CONSTRUCTION FEES - EMPLOYERS AGENT,5902427575,1009369
07.08.2020,HOUSING HRA,CALFORD SEADEN LLP,"10,201.00",CAPITAL PS (HRA),CONSTRUCTION FEES  - EXTERNAL,5902427528,1061592
07.08.2020,HOUSING HRA,ENGIE REGENERATION (APOLLO) LTD,"22,622.44",CAPITAL PS (HRA),CONSTRUCTION MAIN CONTRACT -CERTIFICATED,2103131493,4000449
07.08.2020,HOUSING HRA,ENGIE REGENERATION (APOLLO) LTD,"22,622.45",CAPITAL PS (HRA),CONSTRUCTION MAIN CONTRACT -CERTIFICATED,2103131493,4000449
07.08.2020,HOUSING HRA,CALFORD SEADEN LLP,"30,382.87",CAPITAL PS (HRA),CONSTRUCTION FEES  - EXTERNAL,5902427521,1061592
07.08.2020,HOUSING HRA,ASPEN BUILD (EAST ANGLIA) LTD,"175,440.71",CAPITAL PS (HRA),CONSTRUCTION MAIN CONTRACT -CERTIFICATED,2103132167,3000002075
07.08.2020,HOUSING HRA,ENGIE REGENERATION (APOLLO) LTD,"248,494.83",CAPITAL PS (HRA),CONSTRUCTION MAIN CONTRACT -CERTIFICATED,2103132163,4000449
07.08.2020,HOUSING HRA,ENGIE REGENERATION (APOLLO) LTD,"380,725.41",CAPITAL PS (HRA),CONSTRUCTION MAIN CONTRACT -CERTIFICATED,2103132164,4000449
07.08.2020,HOUSING HRA,ENGIE REGENERATION (APOLLO) LTD,"931,273.66",CAPITAL PS (HRA),CONSTRUCTION MAIN CONTRACT -CERTIFICATED,2103132162,4000449
07.08.2020,HOUSING HRA,KENT COUNTY COUNCIL - LASER,"13,507.48",RESIDENT SERVICES BUSINESS SUPPORT,ELECTRICITY,6101947313,DIRECT DEBIT PAYMENT
07.08.2020,HOUSING HRA,KENT COUNTY COUNCIL - LASER,"18,883.41",RESIDENT SERVICES BUSINESS SUPPORT,ELECTRICITY,6101947314,DIRECT DEBIT PAYMENT
07.08.2020,LEISURE DIRECTORATE,WESTMINSTER WASTE,892.00,CEMETERIES,OTHER CONTRACTORS,5902427600,1000080933
07.08.2020,LEISURE DIRECTORATE,BANKSIDE OPEN SPACES TRUST,"4,914.25",ENVIRONMENT & LEISURE GRANTS,OTHER CONTRACTORS,5902427253,1000018290
07.08.2020,MODERNISATION HGF,SODEXHO PASS LTD,312.36,CHILDCARE VOUCHERS,OTHER EMPLOYEE EXPENSES,5902427508,1000048650
07.08.2020,MODERNISATION HGF,SODEXHO PASS LTD,"10,412.00",CHILDCARE VOUCHERS,OTHER EMPLOYEE EXPENSES,5902427508,1000048650
07.08.2020,MODERNISATION HGF,MINDAPPLES TRADING LTD,545.00,CORPORATE TRAINING BUDGETS,TRAINING,5902427519,1000080028
07.08.2020,MODERNISATION HGF,MINDAPPLES TRADING LTD,545.00,CORPORATE TRAINING BUDGETS,TRAINING,5902427522,1000080028
07.08.2020,MODERNISATION HGF,MINDAPPLES TRADING LTD,545.00,CORPORATE TRAINING BUDGETS,TRAINING,5902427525,1000080028
07.08.2020,MODERNISATION HGF,MINDAPPLES TRADING LTD,595.00,CORPORATE TRAINING BUDGETS,TRAINING,5902427526,1000080028
07.08.2020,MODERNISATION HGF,MINDAPPLES TRADING LTD,650.00,CORPORATE TRAINING BUDGETS,TRAINING,5902427515,1000080028
07.08.2020,MODERNISATION HGF,MINDAPPLES TRADING LTD,650.00,CORPORATE TRAINING BUDGETS,TRAINING,5902427523,1000080028
07.08.2020,MODERNISATION HGF,PULSE CORPORATION LTD,"1,780.00",REPAIR AND MAINTENANCE SERVICES,HARDWARE,5902427534,1000072911
07.08.2020,MODERNISATION HGF,PULSE CORPORATION LTD,"2,882.50",REPAIR AND MAINTENANCE SERVICES,HARDWARE,5902427547,1000072911
07.08.2020,MODERNISATION HGF,REED BUSINESS INFORMATION LTD,"10,985.00",SUPPORT COSTS,SUBSCRIPTIONS,5902427212,1000005640
07.08.2020,NEW BUILD,LEATHERMARKET COMMUNITY BENEFIT SOCIETY LTD,"985,028.00",DEVELOPMENT DELIVERY,GRANTS,5902427585,1000076870
07.08.2020,REGENERATION,PIPE SCAFFOLDING LTD,"2,640.00",MISC INDUSTRIAL PROPERTIES,BUILDING R&M,5902427289,1000083894
07.08.2020,RESIDENT SERVICES,CARLISLE SECURITY SERVICES LTD,"12,380.16",CAMBERWELL,SECURITY SERVICES,5902427564,11212342
07.08.2020,RESIDENT SERVICES,RS REAL ESTATE LTD,"-2,905.00",TA PLACEMENTS,EXTERNAL AGENCIES AND BODIES,5902427384,1000072485
07.08.2020,RESIDENT SERVICES,PROPERTYPLACEBOOK LTD,"-2,745.00",TA PLACEMENTS,EXTERNAL AGENCIES AND BODIES,5902427546,1000077817
07.08.2020,RESIDENT SERVICES,RS REAL ESTATE LTD,"-2,170.00",TA PLACEMENTS,EXTERNAL AGENCIES AND BODIES,5902427384,1000072485
07.08.2020,RESIDENT SERVICES,RS REAL ESTATE LTD,"2,170.00",TA PLACEMENTS,EXTERNAL AGENCIES AND BODIES,5902427382,1000072485
07.08.2020,RESIDENT SERVICES,STENFORD PROPERTY LTD,"6,240.60",TA PLACEMENTS,EXTERNAL AGENCIES AND BODIES,5902427509,1000074759
07.08.2020,RESIDENT SERVICES,PROPERTYPLACEBOOK LTD,"6,405.00",TA PLACEMENTS,EXTERNAL AGENCIES AND BODIES,5902427531,1000077817
08.08.2020,ADULT SOCIAL CARE,POHWER,"8,786.00",INDEPENDENT MC ADVOCACY,ADVOCACY,5902426993,1000070508
08.08.2020,CHIEF EXECUTIVE,KENT COUNTY COUNCIL - LASER,554.63,CAPITAL PS (REGEN),LAND & BUILDINGS ACQUISITION FEES,5902427580,1000012926
08.08.2020,CHIEF EXECUTIVE,KENT COUNTY COUNCIL - LASER,"1,718.80",CAPITAL PS (REGEN),LAND & BUILDINGS ACQUISITION FEES,5902427583,1000012926
08.08.2020,CHIEF EXECUTIVE,KENT COUNTY COUNCIL - LASER,"1,758.36",CAPITAL PS (REGEN),LAND & BUILDINGS ACQUISITION FEES,5902427584,1000012926
08.08.2020,CHIEF EXECUTIVE,KENT COUNTY COUNCIL - LASER,"1,775.13",CAPITAL PS (REGEN),LAND & BUILDINGS ACQUISITION FEES,5902427595,1000012926
08.08.2020,CHIEF EXECUTIVE,ADAMS AND SUTHERLAND,"3,500.00",CAPITAL PS (REGEN),CONSTRUCTION FEES,5902427294,1000066083
08.08.2020,CHILDREN AND ADULT,FAITHFUL & GOULD,"12,463.00",CAPITAL PS (EDUCATION),CONSTRUCTION FEES,5902426872,1000061390
08.08.2020,CHILDREN AND ADULT,FAITHFUL & GOULD,"42,719.00",CAPITAL PS (EDUCATION),CONSTRUCTION,5902426874,1000061390
08.08.2020,CUSTOMER EXPERIENCE HGF,IMPERIAL COLLEGE PROJECTS LTD,356.00,CORONER'S,PROFESSIONAL FEES,5902427015,1000080106
08.08.2020,CUSTOMER EXPERIENCE HGF,IMPERIAL COLLEGE PROJECTS LTD,380.00,CORONER'S,PROFESSIONAL FEES,5902427017,1000080106
08.08.2020,CUSTOMER EXPERIENCE HGF,IMPERIAL COLLEGE PROJECTS LTD,388.00,CORONER'S,PROFESSIONAL FEES,5902427016,1000080106
08.08.2020,CUSTOMER EXPERIENCE HGF,IMPERIAL COLLEGE PROJECTS LTD,408.00,CORONER'S,PROFESSIONAL FEES,5902427014,1000080106
08.08.2020,CUSTOMER EXPERIENCE HGF,IMPERIAL COLLEGE PROJECTS LTD,428.00,CORONER'S,PROFESSIONAL FEES,5902427018,1000080106
08.08.2020,CUSTOMER EXPERIENCE HGF,IMPERIAL COLLEGE PROJECTS LTD,564.00,CORONER'S,PROFESSIONAL FEES,5902427019,1000080106
08.08.2020,ENVIRONMENT DIRECTORATE,THE T P PARTNERSHIP,445.00,ESTATE CLEANING-GENERAL,OTHER CONTRACTORS,5902426829,1000045906
08.08.2020,ENVIRONMENT DIRECTORATE,KEYSOFT SOLUTIONS LTD,800.00,PROJECT SUPPORT,SOFTWARE,5902426905,1000025779
08.08.2020,EXCHEQUER SERVICES,NORTHGATE PUBLIC SERVICES (UK) LTD,261.36,ADMINISTRATIVE SUPPORT,POSTAGES,5902427474,1000037405
08.08.2020,EXCHEQUER SERVICES,DSI BILLING SERVICES LTD,"1,401.56",ADMINISTRATIVE SUPPORT,POSTAGES,5902427473,1000058640
08.08.2020,HOUSING,LIFTEC LIFTS LTD,"196,070.43",PAYMENTS CONTROL ACCOUNT - LIFTEC,I-WORLD CONTRACTORS HOLDING ACCOUNT,5902427077,1000057278
08.08.2020,HOUSING HRA,CALFORD SEADEN LLP,347.50,CAPITAL PS (HRA),CONSTRUCTION FEES  - EXTERNAL,5902426915,1061592
08.08.2020,HOUSING HRA,THOMAS SINDEN CONSTRUCTION,"114,789.69",CAPITAL PS (HRA),CONSTRUCTION MAIN CONTRACT -CERTIFICATED,2103130933,3000000605
08.08.2020,HOUSING HRA,ENGIE REGENERATION (APOLLO) LTD,"571,582.75",CAPITAL PS (HRA),CONSTRUCTION MAIN CONTRACT -CERTIFICATED,2103132166,4000449
08.08.2020,HOUSING HRA,WILLIAM MARTIN PROPERTY CONSULTANTS,600.00,CAPITAL PS (REGEN),CONSTRUCTION SITE COSTS,5902427285,1000062171
08.08.2020,LEISURE DIRECTORATE,NEWLINE (ESSEX) LTD,387.82,CEMETERIES,OTHER CLEANING,5902427601,1000047169
08.08.2020,LEISURE DIRECTORATE,THE STOCKROOM ARCHIVE MANAGEMENT LTD,"6,662.50",HERITAGE,OTHER CONTRACTORS,5902427318,1000079579
08.08.2020,MODERNISATION HGF,MINDAPPLES TRADING LTD,650.00,CORPORATE TRAINING BUDGETS,TRAINING,5902427516,1000080028
08.08.2020,MODERNISATION HGF,KIER FACILITIES SERVICES LTD,"20,038.46",PLANNED FM SERVICES BY KIER,BUILDING R&M,5902427308,1000040603
08.08.2020,NEW BUILD,CALFORD SEADEN LLP,"20,894.00",DEVELOPMENT DELIVERY,PROFESSIONAL FEES,5902427597,1061592
08.08.2020,SOUTHWARK SCHOOL FOR FUTURE,FAITHFUL & GOULD,"5,103.25",CAPITAL PS (REGEN),CONSTRUCTION FEES,5902427063,1000061390
09.08.2020,CUSTOMER EXPERIENCE HGF,BACK ON TRACK HOUSING,"2,209.35",RAPID REHOUSING,GRANTS,5902427044,1000071262
09.08.2020,ENVIRONMENT AND LEISURE,R G WEBBER LTD,450.00,CAPITAL PS (LEISURE),CONSTRUCTION MAIN CONTRACT -CERTIFICATED,2103131508,4013944
09.08.2020,ENVIRONMENT AND LEISURE,R G WEBBER LTD,"1,475.00",CAPITAL PS (LEISURE),CONSTRUCTION MAIN CONTRACT -CERTIFICATED,2103131507,4013944
09.08.2020,ENVIRONMENT AND LEISURE,R G WEBBER LTD,"5,775.00",CAPITAL PS (LEISURE),CONSTRUCTION MAIN CONTRACT -CERTIFICATED,2103131508,4013944
09.08.2020,ENVIRONMENT AND LEISURE,SPOKEMEAD MAINTENANCE LTD,"9,692.49",CAPITAL PS (LEISURE),CONSTRUCTION MAIN CONTRACT -CERTIFICATED,2103130945,4002791
09.08.2020,HOUSING HRA,CALFORD SEADEN LLP,686.00,CAPITAL PS (HRA),CONSTRUCTION FEES  - EXTERNAL,5902427196,1061592
09.08.2020,HOUSING HRA,CALFORD SEADEN LLP,"2,348.08",CAPITAL PS (HRA),CONSTRUCTION FEES  - EXTERNAL,5902427207,1061592
09.08.2020,LEISURE DIRECTORATE,VIVEDIA LIMITED,830.00,CREMATORIUM,SUBSCRIPTIONS,5902427577,1000064867
09.08.2020,LEISURE DIRECTORATE,2CQR LTD,275.00,STOCK SERVICES,SUBSCRIPTIONS,5902427176,1000083086
09.08.2020,RESIDENT SERVICES,DMS PROPERTIES SERVICES LTD,"4,775.25",TA PLACEMENTS,EXTERNAL AGENCIES AND BODIES,5902427596,1000081522
10.08.2020,ADULT SOCIAL CARE,REDACTED PERSONAL DATA,279.85,APPOINTEESHIPS,OTHER PAYMENTS FOR CLIENTS,REDACTED,REDACTED
10.08.2020,ADULT SOCIAL CARE,ALLPAY LTD,319.24,CLIENT FINANCE TEAM,PAYMENTS FOR FINANCIAL SERVICES,5902427356,1000043001
10.08.2020,ADULT SOCIAL CARE,THAMES HOMECARE SERVICE LTD,367.94,DISCHARGE TO ACCESS,HOMECARE - C&V,2103132301,1000079295
10.08.2020,ADULT SOCIAL CARE,THAMES HOMECARE SERVICE LTD,536.02,DISCHARGE TO ACCESS,HOMECARE - C&V,2103132299,1000079295
10.08.2020,ADULT SOCIAL CARE,THAMES HOMECARE SERVICE LTD,322.52,MH LTS 18-64,HOMECARE - SPOT,2103132273,1000079295
10.08.2020,ADULT SOCIAL CARE,THAMES HOMECARE SERVICE LTD,472.42,MH LTS 65+,HOMECARE - SPOT,2103132259,1000079295
10.08.2020,ADULT SOCIAL CARE,THAMES HOMECARE SERVICE LTD,290.72,PHY LTS 18-64,HOMECARE - SPOT,2103132289,1000079295
10.08.2020,ADULT SOCIAL CARE,THAMES HOMECARE SERVICE LTD,327.06,PHY LTS 18-64,HOMECARE - SPOT,2103132337,1000079295
10.08.2020,ADULT SOCIAL CARE,THAMES HOMECARE SERVICE LTD,349.77,PHY LTS 18-64,HOMECARE - SPOT,2103132331,1000079295
10.08.2020,ADULT SOCIAL CARE,THAMES HOMECARE SERVICE LTD,386.11,PHY LTS 18-64,HOMECARE - SPOT,2103132281,1000079295
10.08.2020,ADULT SOCIAL CARE,THAMES HOMECARE SERVICE LTD,572.36,PHY LTS 18-64,HOMECARE - SPOT,2103132249,1000079295
10.08.2020,ADULT SOCIAL CARE,THAMES HOMECARE SERVICE LTD,572.36,PHY LTS 18-64,HOMECARE - SPOT,2103132353,1000079295
10.08.2020,ADULT SOCIAL CARE,THAMES HOMECARE SERVICE LTD,635.95,PHY LTS 18-64,HOMECARE - SPOT,2103132231,1000079295
10.08.2020,ADULT SOCIAL CARE,THAMES HOMECARE SERVICE LTD,649.58,PHY LTS 18-64,HOMECARE - SPOT,2103132305,1000079295
10.08.2020,ADULT SOCIAL CARE,THAMES HOMECARE SERVICE LTD,844.91,PHY LTS 18-64,HOMECARE - SPOT,2103132245,1000079295
10.08.2020,ADULT SOCIAL CARE,THAMES HOMECARE SERVICE LTD,935.76,PHY LTS 18-64,HOMECARE - SPOT,2103132203,1000079295
10.08.2020,ADULT SOCIAL CARE,REMARK LIVING,"1,495.00",PHY LTS 18-64,SUPPORTED LIVING,2103132201,1000081741
10.08.2020,ADULT SOCIAL CARE,THAMES HOMECARE SERVICE LTD,254.38,PHY LTS 65+,HOMECARE - SPOT,2103132221,1000079295
10.08.2020,ADULT SOCIAL CARE,THAMES HOMECARE SERVICE LTD,254.38,PHY LTS 65+,HOMECARE - SPOT,2103132325,1000079295
10.08.2020,ADULT SOCIAL CARE,THAMES HOMECARE SERVICE LTD,272.55,PHY LTS 65+,HOMECARE - SPOT,2103132341,1000079295
10.08.2020,ADULT SOCIAL CARE,THAMES HOMECARE SERVICE LTD,286.18,PHY LTS 65+,HOMECARE - SPOT,2103132241,1000079295
10.08.2020,ADULT SOCIAL CARE,THAMES HOMECARE SERVICE LTD,349.77,PHY LTS 65+,HOMECARE - SPOT,2103132279,1000079295
10.08.2020,ADULT SOCIAL CARE,THAMES HOMECARE SERVICE LTD,413.37,PHY LTS 65+,HOMECARE - SPOT,2103132209,1000079295
10.08.2020,ADULT SOCIAL CARE,THAMES HOMECARE SERVICE LTD,413.37,PHY LTS 65+,HOMECARE - SPOT,2103132215,1000079295
10.08.2020,ADULT SOCIAL CARE,THAMES HOMECARE SERVICE LTD,467.88,PHY LTS 65+,HOMECARE - SPOT,2103132327,1000079295
10.08.2020,ADULT SOCIAL CARE,THAMES HOMECARE SERVICE LTD,499.68,PHY LTS 65+,HOMECARE - SPOT,2103132347,1000079295
10.08.2020,ADULT SOCIAL CARE,THAMES HOMECARE SERVICE LTD,508.76,PHY LTS 65+,HOMECARE - SPOT,2103132319,1000079295
10.08.2020,ADULT SOCIAL CARE,THAMES HOMECARE SERVICE LTD,572.36,PHY LTS 65+,HOMECARE - SPOT,2103132237,1000079295
10.08.2020,ADULT SOCIAL CARE,THAMES HOMECARE SERVICE LTD,572.36,PHY LTS 65+,HOMECARE - SPOT,2103132285,1000079295
10.08.2020,ADULT SOCIAL CARE,THAMES HOMECARE SERVICE LTD,576.90,PHY LTS 65+,HOMECARE - SPOT,2103132287,1000079295
10.08.2020,ADULT SOCIAL CARE,THAMES HOMECARE SERVICE LTD,599.61,PHY LTS 65+,HOMECARE - SPOT,2103132217,1000079295
10.08.2020,ADULT SOCIAL CARE,THAMES HOMECARE SERVICE LTD,608.70,PHY LTS 65+,HOMECARE - SPOT,2103132291,1000079295
10.08.2020,ADULT SOCIAL CARE,THAMES HOMECARE SERVICE LTD,635.95,PHY LTS 65+,HOMECARE - SPOT,2103132243,1000079295
10.08.2020,ADULT SOCIAL CARE,THAMES HOMECARE SERVICE LTD,640.49,PHY LTS 65+,HOMECARE - SPOT,2103132323,1000079295
10.08.2020,ADULT SOCIAL CARE,THAMES HOMECARE SERVICE LTD,645.04,PHY LTS 65+,HOMECARE - C&V,2103132219,1000079295
10.08.2020,ADULT SOCIAL CARE,THAMES HOMECARE SERVICE LTD,663.21,PHY LTS 65+,HOMECARE - SPOT,2103132345,1000079295
10.08.2020,ADULT SOCIAL CARE,THAMES HOMECARE SERVICE LTD,699.55,PHY LTS 65+,HOMECARE - SPOT,2103132275,1000079295
10.08.2020,ADULT SOCIAL CARE,THAMES HOMECARE SERVICE LTD,699.55,PHY LTS 65+,HOMECARE - SPOT,2103132303,1000079295
10.08.2020,ADULT SOCIAL CARE,THAMES HOMECARE SERVICE LTD,763.14,PHY LTS 65+,HOMECARE - C&V,2103132349,1000079295
10.08.2020,ADULT SOCIAL CARE,THAMES HOMECARE SERVICE LTD,799.48,PHY LTS 65+,HOMECARE - SPOT,2103132261,1000079295
10.08.2020,ADULT SOCIAL CARE,THAMES HOMECARE SERVICE LTD,"1,044.78",PHY LTS 65+,HOMECARE - SPOT,2103132315,1000079295
10.08.2020,ADULT SOCIAL CARE,PROFAD CARE AGENCY,"1,143.90",PHY LTS 65+,HOMECARE - SPOT,2103132355,1000079032
10.08.2020,ADULT SOCIAL CARE,THAMES HOMECARE SERVICE LTD,"1,335.50",PHY LTS 65+,HOMECARE - C&V,2103132277,1000079295
10.08.2020,ADULT SOCIAL CARE,THAMES HOMECARE SERVICE LTD,"1,480.86",PHY LTS 65+,HOMECARE - SPOT,2103132251,1000079295
10.08.2020,ADULT SOCIAL CARE,PROFAD CARE AGENCY,"2,450.67",PHY LTS 65+,HOMECARE - SPOT,2103132359,1000079032
10.08.2020,ADULT SOCIAL CARE,THAMES HOMECARE SERVICE LTD,508.76,PHY STS 65+,HOMECARE - IC,2103132293,1000079295
10.08.2020,ADULT SOCIAL CARE,THAMES HOMECARE SERVICE LTD,304.35,SEN LTS 65+,HOMECARE - SPOT,2103132247,1000079295
10.08.2020,CENTRAL FUNCTIONS,BLUE CHIP TECHNOLOGIES LTD,"1,639.50",GARAGE REPAIRS,EQUIPMENT PURCHASE & REPAIR,5902427732,1000077837
10.08.2020,CENTRAL FUNCTIONS,BLUE CHIP TECHNOLOGIES LTD,"2,426.88",OPERATIONAL TEAM,EQUIPMENT PURCHASE & REPAIR,5902427732,1000077837
10.08.2020,CHIEF EXECUTIVE,DANIEL WATNEY LLP,492.46,CAPITAL PS (REGEN),CONSTRUCTION FEES  - EXTERNAL,5902427704,1000054693
10.08.2020,CHIEF EXECUTIVE,DANIEL WATNEY LLP,"5,007.40",CAPITAL PS (REGEN),CONSTRUCTION FEES  - EXTERNAL,5902427703,1000054693
10.08.2020,CHIEF EXECUTIVE,LDA DESIGN CONSULTING LTD,"10,143.00",CAPITAL PS (REGEN),CONSTRUCTION FEES - ARCHITECT,5902427258,1000031830
10.08.2020,CHIEF EXECUTIVE'S OFFICE,TREE SHEPHERD LTD,"9,043.00",BUSINESS SUPPORT,FREELANCE SPECIALISTS,5902427055,1000076895
10.08.2020,CHIEF EXECUTIVE'S OFFICE,ST GILES TRUST,"16,963.09",CHIEF EXECUTIVE'S OFFICE,EXTERNAL AGENCIES AND BODIES,5902427078,1013828
10.08.2020,CHIEF EXECUTIVE'S OFFICE,ST GILES TRUST,"22,992.19",CHIEF EXECUTIVE'S OFFICE,EXTERNAL AGENCIES AND BODIES,5902427108,1013828
10.08.2020,CHIEF EXECUTIVE'S OFFICE,ST GILES TRUST,"31,409.46",CHIEF EXECUTIVE'S OFFICE,EXTERNAL AGENCIES AND BODIES,5902427112,1013828
10.08.2020,CHIEF EXECUTIVE'S OFFICE,ST GILES TRUST,"34,124.57",CHIEF EXECUTIVE'S OFFICE,EXTERNAL AGENCIES AND BODIES,5902427089,1013828
10.08.2020,CHILDREN'S SERVICES,AIDHOUR LIMITED,"4,127.50",ASSISSTANT DIRECTOR (CHILDREN),PROFESSIONAL FEES,5902427579,1000057345
10.08.2020,CHILDREN'S SERVICES,DISCLOSURE & BARRING SERVICE,"6,280.00",CENTRAL SUPPORT,EXTERNAL AGENCIES AND BODIES,5902427574,1000027861
10.08.2020,CHILDREN'S SERVICES,AIDHOUR LIMITED,258.00,CHILD PROTECTION UNIT,PROFESSIONAL FEES,5902427756,1000057345
10.08.2020,CHILDREN'S SERVICES,AIDHOUR LIMITED,258.00,CHILD PROTECTION UNIT,PROFESSIONAL FEES,5902427759,1000057345
10.08.2020,CHILDREN'S SERVICES,AIDHOUR LIMITED,258.00,CHILD PROTECTION UNIT,PROFESSIONAL FEES,5902427760,1000057345
10.08.2020,CHILDREN'S SERVICES,AIDHOUR LIMITED,301.00,CHILD PROTECTION UNIT,PROFESSIONAL FEES,5902427761,1000057345
10.08.2020,CHILDREN'S SERVICES,AIDHOUR LIMITED,344.00,CHILD PROTECTION UNIT,PROFESSIONAL FEES,5902427763,1000057345
10.08.2020,CHILDREN'S SERVICES,AIDHOUR LIMITED,408.50,CHILD PROTECTION UNIT,PROFESSIONAL FEES,5902427762,1000057345
10.08.2020,CHILDREN'S SERVICES,AIDHOUR LIMITED,516.00,CHILD PROTECTION UNIT,PROFESSIONAL FEES,5902427757,1000057345
10.08.2020,CHILDREN'S SERVICES,AIDHOUR LIMITED,516.00,CHILD PROTECTION UNIT,PROFESSIONAL FEES,5902427758,1000057345
10.08.2020,CHILDREN'S SERVICES,LINDA COBB,500.00,CHILDREN'S MULTI-AGENCY SAFEGUARDING TRA,TRAINING,5902427734,1000029191
10.08.2020,CHILDREN'S SERVICES,ST JOHNS WALWORTH CE SCHOOL,"6,542.00",MATERNITY COVER,SCHOOLS CAPITATION,2103132441,5001000072
10.08.2020,CHILDREN'S SERVICES,PHOENIX PRIMARY SCHOOL,"6,655.00",MATERNITY COVER,SCHOOLS CAPITATION,2103132442,5001000032
10.08.2020,CHILDREN'S SERVICES,GOODRICH PRIMARY SCHOOL,"11,219.00",MATERNITY COVER,SCHOOLS CAPITATION,2103132446,5001000028
10.08.2020,CHILDREN'S SERVICES,ROTHERHITHE PRIMARY SCHOOL,"11,219.00",MATERNITY COVER,SCHOOLS CAPITATION,2103132444,5001000058
10.08.2020,CHILDREN'S SERVICES,HEBER PRIMARY SCHOOL,"12,275.00",MATERNITY COVER,SCHOOLS CAPITATION,2103132445,5001000035
10.08.2020,CHILDREN'S SERVICES,GOODRICH PRIMARY SCHOOL,"13,377.00",MATERNITY COVER,SCHOOLS CAPITATION,2103132443,5001000028
10.08.2020,CHILDREN'S SERVICES,SURREY SQUARE PRIMARY SCHOOL,"2,000.00",MENTAL HEALTH AND RESILIENCE,SCHOOLS CAPITATION,2103132452,1000082648
10.08.2020,CHILDREN'S SERVICES,COMBER GROVE PRIMARY SCHOOL,"2,000.00",MENTAL HEALTH AND RESILIENCE,SCHOOLS CAPITATION,2103132454,5001000022
10.08.2020,CHILDREN'S SERVICES,KEYWORTH PRIMARY SCHOOL,"2,000.00",MENTAL HEALTH AND RESILIENCE,SCHOOLS CAPITATION,2103132451,5001000041
10.08.2020,CHILDREN'S SERVICES,REDRIFF PRIMARY SCHOOL,"6,000.00",MENTAL HEALTH AND RESILIENCE,SCHOOLS CAPITATION,2103132449,1000067877
10.08.2020,CHILDREN'S SERVICES,THE CHARTER SCHOOL EDUCATIONAL TRUST,"20,000.00",MENTAL HEALTH AND RESILIENCE,SCHOOLS CAPITATION,2103132453,1000064975
10.08.2020,CHILDREN'S SERVICES,ST SAVIOURS & ST OLAVES SCHOOL,"20,000.00",MENTAL HEALTH AND RESILIENCE,SCHOOLS CAPITATION,2103132450,5001000084
10.08.2020,CHILDREN'S SERVICES,ACCESS MOBILITY TRANSPORT LTD,"27,115.10",SCH TRANS - CONTRACT COST,CAB FARES,5902427198,1000074637
10.08.2020,CHILDREN'S SERVICES,GRANGE PRIMARY SCHOOL,"1,500.00",SCHL DIRECT SALARIES,SCHOOLS CAPITATION,2103132455,5001000029
10.08.2020,CHILDREN'S SERVICES,BDO LLP,"2,383.00",SCHOOLS AUDIT,PAYMENTS FOR FINANCIAL SERVICES,5902427056,1000057898
10.08.2020,CHILDREN'S SERVICES,OASIS AQUILA HOUSING,"148,854.75",SEMI INDEPENDENT 16+ CONTRACT,EXTERNAL AGENCIES AND BODIES,5902427566,1000002184
10.08.2020,CHILDREN'S SERVICES,BETHLEM & MAUDSLEY HOSPITAL SCHOOL,"2,663.37",TRADE UNIONS,SCHOOLS CAPITATION,2103132448,5001000010
10.08.2020,CHILDREN'S SERVICES,BETHLEM & MAUDSLEY HOSPITAL SCHOOL,"2,929.71",TRADE UNIONS,SCHOOLS CAPITATION,2103132447,5001000010
10.08.2020,CHILDREN'S SERVICES,REDACTED PERSONAL DATA,300.00,UASC CARE LEAVERS,OTHER PAYMENTS FOR CLIENTS,REDACTED,REDACTED
10.08.2020,COMMUNITIES,POHWER,"2,417.00",NHS COMPLAINTS ADVOCACY,EXTERNAL AGENCIES AND BODIES,5902427599,1000070508
10.08.2020,COMMUNITIES,THAMES HOMECARE SERVICE LTD,286.18,NO RECOURSE TO PUBLIC FUNDS,HOMECARE - C&V,2103132321,1000079295
10.08.2020,COMMUNITIES,STENFORD PROPERTY LTD,325.00,NO RECOURSE TO PUBLIC FUNDS,ACCOMMODATION CHARGES,5902427780,1000074759
10.08.2020,COMMUNITIES,QUINARY LTD,"1,271.00",NO RECOURSE TO PUBLIC FUNDS,ACCOMMODATION CHARGES,5902427783,1000029106
10.08.2020,COMMUNITIES,DINARDO SUPPORTS LTD,"1,520.00",NO RECOURSE TO PUBLIC FUNDS,ACCOMMODATION CHARGES,5902427766,1000063093
10.08.2020,COMMUNITIES,PURPLE PEBBLES(CHILD CARE) SERVICES,"1,892.03",NO RECOURSE TO PUBLIC FUNDS,ACCOMMODATION CHARGES,5902427764,1000070705
10.08.2020,COMMUNITIES,CROWN HOUSING LTD,"2,790.00",NO RECOURSE TO PUBLIC FUNDS,ACCOMMODATION CHARGES,5902427787,1000075070
10.08.2020,COMMUNITIES,CROWN HOUSING LTD,"2,883.00",NO RECOURSE TO PUBLIC FUNDS,ACCOMMODATION CHARGES,5902427786,1000075070
10.08.2020,COMMUNITIES,VENTURE HOUSING (LONDON) LTD,"4,045.50",NO RECOURSE TO PUBLIC FUNDS,ACCOMMODATION CHARGES,5902427788,1000056686
10.08.2020,COMMUNITIES,RS REAL ESTATE LTD,"7,569.00",NO RECOURSE TO PUBLIC FUNDS,ACCOMMODATION CHARGES,5902427775,1000072485
10.08.2020,COMMUNITIES,STENFORD PROPERTY LTD,"8,366.90",NO RECOURSE TO PUBLIC FUNDS,ACCOMMODATION CHARGES,5902427778,1000074759
10.08.2020,COMMUNITIES,PROPERTYPLACEBOOK LTD,"29,075.00",NO RECOURSE TO PUBLIC FUNDS,ACCOMMODATION CHARGES,5902427790,1000077817
10.08.2020,COMMUNITIES,DAY LEWIS - CAMBERWELL,278.00,PHARMACY SM (INSTEAD OF ADULT SM S75),OTHER CONTRACTORS,5902427677,1000072891
10.08.2020,CUSTOMER EXPERIENCE,PARIS SMITH AND RANDALL SOLICITORS,333.20,SALES & ACQUISITIONS,SOLICITORS FRAMEWORK LEGAL SERVICES,5902427688,1000008059
10.08.2020,CUSTOMER EXPERIENCE,PARIS SMITH AND RANDALL SOLICITORS,351.06,SALES & ACQUISITIONS,SOLICITORS FRAMEWORK LEGAL SERVICES,5902427705,1000008059
10.08.2020,CUSTOMER EXPERIENCE,PARIS SMITH AND RANDALL SOLICITORS,351.06,SALES & ACQUISITIONS,SOLICITORS FRAMEWORK LEGAL SERVICES,5902427706,1000008059
10.08.2020,CUSTOMER EXPERIENCE,PARIS SMITH AND RANDALL SOLICITORS,351.06,SALES & ACQUISITIONS,SOLICITORS FRAMEWORK LEGAL SERVICES,5902427707,1000008059
10.08.2020,CUSTOMER EXPERIENCE,PARIS SMITH AND RANDALL SOLICITORS,351.06,SALES & ACQUISITIONS,SOLICITORS FRAMEWORK LEGAL SERVICES,5902427708,1000008059
10.08.2020,CUSTOMER EXPERIENCE,PARIS SMITH AND RANDALL SOLICITORS,351.06,SALES & ACQUISITIONS,SOLICITORS FRAMEWORK LEGAL SERVICES,5902427709,1000008059
10.08.2020,CUSTOMER EXPERIENCE,PARIS SMITH AND RANDALL SOLICITORS,351.06,SALES & ACQUISITIONS,SOLICITORS FRAMEWORK LEGAL SERVICES,5902427710,1000008059
10.08.2020,CUSTOMER EXPERIENCE,PARIS SMITH AND RANDALL SOLICITORS,351.06,SALES & ACQUISITIONS,SOLICITORS FRAMEWORK LEGAL SERVICES,5902427711,1000008059
10.08.2020,CUSTOMER EXPERIENCE,PARIS SMITH AND RANDALL SOLICITORS,351.06,SALES & ACQUISITIONS,SOLICITORS FRAMEWORK LEGAL SERVICES,5902427712,1000008059
10.08.2020,CUSTOMER EXPERIENCE,PARIS SMITH AND RANDALL SOLICITORS,351.06,SALES & ACQUISITIONS,SOLICITORS FRAMEWORK LEGAL SERVICES,5902427713,1000008059
10.08.2020,CUSTOMER EXPERIENCE,PARIS SMITH AND RANDALL SOLICITORS,351.06,SALES & ACQUISITIONS,SOLICITORS FRAMEWORK LEGAL SERVICES,5902427714,1000008059
10.08.2020,CUSTOMER EXPERIENCE,PARIS SMITH AND RANDALL SOLICITORS,470.07,SALES & ACQUISITIONS,SOLICITORS FRAMEWORK LEGAL SERVICES,5902427715,1000008059
10.08.2020,CUSTOMER EXPERIENCE HGF,IMPERIAL COLLEGE PROJECTS LTD,336.00,CORONER'S,PROFESSIONAL FEES,5902427292,1000080106
10.08.2020,CUSTOMER EXPERIENCE HGF,IMPERIAL COLLEGE PROJECTS LTD,356.00,CORONER'S,PROFESSIONAL FEES,5902427291,1000080106
10.08.2020,CUSTOMER EXPERIENCE HGF,IMPERIAL COLLEGE PROJECTS LTD,388.00,CORONER'S,PROFESSIONAL FEES,5902427290,1000080106
10.08.2020,CUSTOMER EXPERIENCE HGF,ZFA ACCOMMODATION LTD,"84,630.00",COVID-19 SUPPORT,EXTERNAL AGENCIES AND BODIES,5902427327,1000082620
10.08.2020,CUSTOMER EXPERIENCE HGF,RADOSLAY TRNKAL,"1,410.00",HOMELESS PROJECTS,GRANTS,5902427744,1000085140
10.08.2020,CUSTOMER EXPERIENCE HGF,EUROOMS LIMITED,"1,500.00",HOMELESS PROJECTS,GRANTS,5902427769,1000085159
10.08.2020,CUSTOMER EXPERIENCE HGF,NOWMEDICAL LTD,"4,215.00",HOUSING OPTIONS,PROFESSIONAL FEES,5902427755,1000068185
10.08.2020,CUSTOMER EXPERIENCE HGF,QUINARY LTD,"6,384.45",NIGHTLY TA (NSC),EXTERNAL AGENCIES AND BODIES,5902427784,1000029106
10.08.2020,CUSTOMER EXPERIENCE HGF,SOUTH OF THE RIVER INVESTMENTS LTD,"1,488.00",RAPID REHOUSING,EXTERNAL AGENCIES AND BODIES,5902427638,1000073638
10.08.2020,ENVIRONMENT AND LEISURE,CONWAY AECOM LTD,"7,693.00",CAPITAL PS (LEISURE),CONSTR'N SUB CONTRACT - NON CERTIFICATED,5902427217,1000071205
10.08.2020,ENVIRONMENT DIRECTORATE,SHELL UK OIL PRODUCTS LTD,252.44,COMMERCIAL VEH CTRL A/C,VEHICLE FUEL,5902427634,1000081254
10.08.2020,ENVIRONMENT DIRECTORATE,SHELL UK OIL PRODUCTS LTD,254.01,COMMERCIAL VEH CTRL A/C,VEHICLE FUEL,5902427694,1000081254
10.08.2020,ENVIRONMENT DIRECTORATE,SHELL UK OIL PRODUCTS LTD,266.40,COMMERCIAL VEH CTRL A/C,VEHICLE FUEL,5902427697,1000081254
10.08.2020,ENVIRONMENT DIRECTORATE,SHELL UK OIL PRODUCTS LTD,305.20,COMMERCIAL VEH CTRL A/C,VEHICLE FUEL,5902427660,1000081254
10.08.2020,ENVIRONMENT DIRECTORATE,SHELL UK OIL PRODUCTS LTD,319.56,COMMERCIAL VEH CTRL A/C,VEHICLE FUEL,5902427691,1000081254
10.08.2020,ENVIRONMENT DIRECTORATE,SHELL UK OIL PRODUCTS LTD,331.36,COMMERCIAL VEH CTRL A/C,VEHICLE FUEL,5902427664,1000081254
10.08.2020,ENVIRONMENT DIRECTORATE,SHELL UK OIL PRODUCTS LTD,332.73,COMMERCIAL VEH CTRL A/C,VEHICLE FUEL,5902427680,1000081254
10.08.2020,ENVIRONMENT DIRECTORATE,SHELL UK OIL PRODUCTS LTD,392.26,COMMERCIAL VEH CTRL A/C,VEHICLE FUEL,5902427659,1000081254
10.08.2020,ENVIRONMENT DIRECTORATE,SHELL UK OIL PRODUCTS LTD,474.56,COMMERCIAL VEH CTRL A/C,VEHICLE FUEL,5902427640,1000081254
10.08.2020,ENVIRONMENT DIRECTORATE,SHELL UK OIL PRODUCTS LTD,563.75,COMMERCIAL VEH CTRL A/C,VEHICLE FUEL,5902427642,1000081254
10.08.2020,ENVIRONMENT DIRECTORATE,SHELL UK OIL PRODUCTS LTD,627.30,COMMERCIAL VEH CTRL A/C,VEHICLE FUEL,5902427627,1000081254
10.08.2020,ENVIRONMENT DIRECTORATE,SHELL UK OIL PRODUCTS LTD,671.12,COMMERCIAL VEH CTRL A/C,VEHICLE FUEL,5902427681,1000081254
10.08.2020,ENVIRONMENT DIRECTORATE,SHELL UK OIL PRODUCTS LTD,671.56,COMMERCIAL VEH CTRL A/C,VEHICLE FUEL,5902427722,1000081254
10.08.2020,ENVIRONMENT DIRECTORATE,SHELL UK OIL PRODUCTS LTD,800.45,COMMERCIAL VEH CTRL A/C,VEHICLE FUEL,5902427651,1000081254
10.08.2020,ENVIRONMENT DIRECTORATE,SHELL UK OIL PRODUCTS LTD,851.87,COMMERCIAL VEH CTRL A/C,VEHICLE FUEL,5902427692,1000081254
10.08.2020,ENVIRONMENT DIRECTORATE,SHELL UK OIL PRODUCTS LTD,866.41,COMMERCIAL VEH CTRL A/C,VEHICLE FUEL,5902427635,1000081254
10.08.2020,ENVIRONMENT DIRECTORATE,SHELL UK OIL PRODUCTS LTD,"1,903.95",COMMERCIAL VEH CTRL A/C,VEHICLE FUEL,5902427693,1000081254
10.08.2020,ENVIRONMENT DIRECTORATE,SHELL UK OIL PRODUCTS LTD,"2,027.02",COMMERCIAL VEH CTRL A/C,VEHICLE FUEL,5902427653,1000081254
10.08.2020,ENVIRONMENT DIRECTORATE,SHELL UK OIL PRODUCTS LTD,"2,103.59",COMMERCIAL VEH CTRL A/C,VEHICLE FUEL,5902427643,1000081254
10.08.2020,ENVIRONMENT DIRECTORATE,GRAYS WASTE SERVICES LTD,277.20,COMMERCIAL WASTE,OTHER CONTRACTORS,5902427548,1000033438
10.08.2020,ENVIRONMENT DIRECTORATE,ERNEST DOE & SONS LTD,"12,076.80",GROUNDS (SOUTH),MATERIALS,5902427699,1000052691
10.08.2020,ENVIRONMENT DIRECTORATE,DANARM MACHINERY LIMITED,"1,560.00",ICC SPECIAL TEAMS,EQUIPMENT PURCHASE & REPAIR,5902427773,1000045097
10.08.2020,ENVIRONMENT DIRECTORATE,1ENV SOLUTIONS LTD,710.21,PEST CONTROL-CDN A/C,MATERIALS,5902427305,1000075410
10.08.2020,ENVIRONMENT DIRECTORATE,MHC TRAFFIC LTD,320.00,PROJECT SUPPORT,OFFICE EXPENSES,5902427255,1000081233
10.08.2020,ENVIRONMENT DIRECTORATE,SAFER LONDON BUSINESS,"3,120.00",TEAMS 1 TO 12,EQUIPMENT PURCHASE & REPAIR,5902427669,1000076641
10.08.2020,EXCHEQUER SERVICES,BLUE CHIP TECHNOLOGIES LTD,534.74,ADMINISTRATIVE SUPPORT,EQUIPMENT PURCHASE & REPAIR,5902427732,1000077837
10.08.2020,EXCHEQUER SERVICES,BLUE CHIP TECHNOLOGIES LTD,"2,432.89",ADMINISTRATIVE SUPPORT,EQUIPMENT PURCHASE & REPAIR,5902427732,1000077837
10.08.2020,EXCHEQUER SERVICES,BLUE CHIP TECHNOLOGIES LTD,846.03,NNDR,EQUIPMENT PURCHASE & REPAIR,5902427732,1000077837
10.08.2020,EXCHEQUER SERVICES,BUDGET CARPETS,358.33,SESS,OTHER PAYMENTS FOR CLIENTS,5902427737,11319076
10.08.2020,FINANCE DIRECTOR,BDO LLP,431.00,INTERNAL AUDIT CONTRACTS,PAYMENTS FOR FINANCIAL SERVICES,5902427056,1000057898
10.08.2020,FINANCE DIRECTOR,BDO LLP,"19,191.00",INTERNAL AUDIT CONTRACTS,PAYMENTS FOR FINANCIAL SERVICES,5902427056,1000057898
10.08.2020,FINANCIAL AND INFORMATION GOVERNANCE,BDO LLP,"2,083.33",RISK ADMIN,PROFESSIONAL FEES,5902427271,1000057898
10.08.2020,HOUSING,SMITH & BYFORD LTD,"559,139.34",SMITH AND BYFORD,I-WORLD CONTRACTORS HOLDING ACCOUNT,2103132184,3000000520
10.08.2020,HOUSING HRA,POINT 2 SURVEYORS LTD,400.00,CAPITAL PS (HRA),CONSTRUCTION FEES  - EXTERNAL,5902427587,1000076513
10.08.2020,HOUSING HRA,DOWNTOWN LEISURE LTD,800.00,CAPITAL PS (HRA),CONSTRUCTION FEES  - EXTERNAL,5902427650,1000081079
10.08.2020,HOUSING HRA,CALFORD SEADEN LLP,"1,307.32",CAPITAL PS (HRA),CONSTRUCTION FEES  - EXTERNAL,5902427667,1061592
10.08.2020,HOUSING HRA,CALFORD SEADEN LLP,"1,358.10",CAPITAL PS (HRA),CONSTRUCTION FEES  - EXTERNAL,5902427678,1061592
10.08.2020,HOUSING HRA,CALFORD SEADEN LLP,"4,124.80",CAPITAL PS (HRA),CONSTRUCTION FEES  - EXTERNAL,5902427661,1061592
10.08.2020,HOUSING HRA,OVE ARUP & PARTNERS LTD,"4,277.00",CAPITAL PS (HRA),CONSTRUCTION FEES  - EXTERNAL,5902427614,1000066606
10.08.2020,HOUSING HRA,CALFORD SEADEN LLP,"8,290.45",CAPITAL PS (HRA),CONSTRUCTION FEES  - EXTERNAL,5902427685,1061592
10.08.2020,HOUSING HRA,CALFORD SEADEN LLP,"9,800.00",CAPITAL PS (HRA),CONSTRUCTION FEES  - EXTERNAL,5902427195,1061592
10.08.2020,HOUSING HRA,GUILDMORE LTD,"71,172.19",CAPITAL PS (HRA),CONSTRUCTION MAIN CONTRACT -CERTIFICATED,2103132185,3000002150
10.08.2020,HOUSING HRA,A & E ELKINS LTD,"190,731.47",CAPITAL PS (HRA),CONSTRUCTION MAIN CONTRACT -CERTIFICATED,2103131523,4012501
10.08.2020,HOUSING HRA,BUILT SERVICES DESIGN ASSOCIATES LTD,"11,000.00",CAPITAL PS (REGEN),CONSTRUCTION FEES - ENGINEER,5902427310,1000083230
10.08.2020,LEISURE DIRECTORATE,PORTABLE SPACE LTD,"1,984.00",CEMETERIES,BUILDING R&M,5902427702,1000083256
10.08.2020,LEISURE DIRECTORATE,B & B GLAZIERS & PROPERTY,368.00,CREMATORIUM,BUILDING R&M,5902427741,1389233
10.08.2020,LEISURE DIRECTORATE,LEE SNASHFOLD CREMETORIA MANAGEMENT,"3,400.50",CREMATORIUM,PROFESSIONAL FEES,5902427743,1000077845
10.08.2020,LEISURE DIRECTORATE,C S G (USHERS) LTD,"23,349.00",EMERGENCY TREES RECOVERY PROJECT,OTHER CONTRACTORS,5902427161,1000073203
10.08.2020,LEISURE DIRECTORATE,THE CONSERVATION VOLUNTEERS,"9,563.00",ENVIRONMENT & LEISURE GRANTS,OTHER CONTRACTORS,5902427700,1872821
10.08.2020,LEISURE DIRECTORATE,HIBU UK LTD,263.00,KINGSWOOD LIBRARY,COMMS & COMPUTING CONTRACT CHARGES,5902427671,1374332
10.08.2020,LEISURE DIRECTORATE,RESTORE PLC,531.59,LOCAL HISTORY LIBRARY,REMOVAL EXPENSES,5902427567,1000077150
10.08.2020,LEISURE DIRECTORATE,REGENT OFFICE CARE LTD,898.64,SDM BUDGET,PREMISES CLEANING,5902427674,1000063340
10.08.2020,LEISURE DIRECTORATE,STRUCTURAL MAINTENANCE SOLUTIONS LTD,"1,140.00",SDM BUDGET,EQUIPMENT PURCHASE & REPAIR,5902427621,1000080513
10.08.2020,LEISURE DIRECTORATE,A J PAIN WASTE MANAGEMENT LTD,"2,146.50",SDM BUDGET,REFUSE COLLECTION CONTRACT,5902427646,1000057777
10.08.2020,LEISURE DIRECTORATE,A J PAIN WASTE MANAGEMENT LTD,"2,413.50",SDM BUDGET,REFUSE COLLECTION CONTRACT,5902427645,1000057777
10.08.2020,LEISURE DIRECTORATE,KANOPY,"1,280.00",STOCK SERVICES,SUBSCRIPTIONS,5902427535,1000082832
10.08.2020,MODERNISATION HGF,CASTLE WATER LTD,968.30,160 TOOLEY ST.,WATER,5902427738,1000078867
10.08.2020,MODERNISATION HGF,CASTLE WATER LTD,"1,425.85",160 TOOLEY ST.,WATER,5902427738,1000078867
10.08.2020,MODERNISATION HGF,NEOPOST LTD,"1,810.80",160 TOOLEY ST.,POSTAGES,5902427641,1000051984
10.08.2020,MODERNISATION HGF,PSI TALENT MEASUREMENT (UK) LTD,308.00,OCCUPATIONAL ASSESSMENT,CONSULTANTS SERVICES,5902427296,1000008858
10.08.2020,MODERNISATION HGF,RCA BUSINESS PSYCHOLOGISTS LTD,"1,750.00",OCCUPATIONAL ASSESSMENT,CONSULTANTS SERVICES,5902427272,1000080957
10.08.2020,MODERNISATION HGF,ROSEMARY POTTS,"1,802.00",OCCUPATIONAL ASSESSMENT,CONSULTANTS SERVICES,5902427280,1738708
10.08.2020,MODERNISATION HGF,EXCEL EXECUTIVE LTD,"4,807.00",REPAIR AND MAINTENANCE SERVICES,CAB FARES,5902427490,1000080424
10.08.2020,MODERNISATION HGF,PIONEER PRODUCTS,960.00,TSFM CONTINGENCY,INTEGRATED FACILITIES MANAGEMENT CONTRACT,5902427598,1000084131
10.08.2020,MODERNISATION HGF,PIONEER PRODUCTS,"2,190.00",TSFM CONTINGENCY,INTEGRATED FACILITIES MANAGEMENT CONTRACT,5902427610,1000084131
10.08.2020,MODERNISATION HGF,PIONEER PRODUCTS,"14,573.60",TSFM CONTINGENCY,INTEGRATED FACILITIES MANAGEMENT CONTRACT,5902427607,1000084131
10.08.2020,NEW BUILD,BEACON PARTNERSHIP LLP,"6,545.00",DEVELOPMENT DELIVERY,PROFESSIONAL FEES,5902427324,1000082300
10.08.2020,NEW BUILD,BEACON PARTNERSHIP LLP,"12,100.00",DEVELOPMENT DELIVERY,PROFESSIONAL FEES,5902427518,1000082300
10.08.2020,PLANNING AND TRANSPORT,SOUTHWARK NEWSPAPER LTD,504.00,DEVELOPMENT CONTROL ADMINSTRATION,MARKETING & PUBLICITY SERVICES,5902427776,1556957
10.08.2020,REGENERATION,SOCIAL LIFE LTD,"33,908.33",MASTER PLAN-H/WAY & TRANS INTERCHANGE,PROFESSIONAL FEES,5902427061,1000084157
10.08.2020,RESIDENT SERVICES,VIBRANT ENERGY MATTERS LTD,732.00,ENERGY MANAGEMENT,PROFESSIONAL FEES,5902427276,1000068154
10.08.2020,RESIDENT SERVICES,BRITISH GAS TRADING LTD,262.50,OPERATIONS/OFFICES ACCOMMODATION,ELECTRICITY,5902427782,1000055977
10.08.2020,RESIDENT SERVICES,HARROW GREEN LTD,"9,876.96",OPERATIONS/OFFICES ACCOMMODATION,REMOVAL EXPENSES,5902427752,1000076673
10.08.2020,RESIDENT SERVICES,APCOA PARKING (UK) LTD,"6,406.69",PARKING CONTROL,OTHER CONTRACTORS,5902427529,1718645
10.08.2020,RESIDENT SERVICES,APCOA PARKING (UK) LTD,"58,477.14",PARKING CONTROL,OTHER CONTRACTORS,5902427342,1718645
10.08.2020,RESIDENT SERVICES,KENT COUNTY COUNCIL - LASER,580.29,TA HOSTELS,ELECTRICITY,5902427746,1000012926
10.08.2020,RESIDENT SERVICES,KENT COUNTY COUNCIL - LASER,777.41,TA HOSTELS,ELECTRICITY,5902427748,1000012926
10.08.2020,RESIDENT SERVICES,ZFA ACCOMMODATION LTD,"5,115.00",TA PLACEMENTS,EXTERNAL AGENCIES AND BODIES,5902427068,1000082620
10.08.2020,SBS SUPPORT,KINGDOM SERVICES GROUP LTD,"1,096.84",DEPOT COSTS,SECURITY SERVICES,5902427777,1000064479
11.08.2020,ADULT SOCIAL CARE,ROYAL ASSOCIATION FOR DEAF PEOPLE,705.00,DISCHARGE TO ACCESS,SUPPORTED LIVING,2103132647,1000062283
11.08.2020,ADULT SOCIAL CARE,TRUECARE HAVEN SUPPORT LTD,"3,650.25",DISCHARGE TO ACCESS,SUPPORTED LIVING,2103132629,1000078974
11.08.2020,ADULT SOCIAL CARE,ELEANOR NURSING AND SOCIAL CARE LTD,"23,251.20",DISCHARGE TO ACCESS,HOMECARE - SPOT,2103132637,1000081695
11.08.2020,ADULT SOCIAL CARE,REMARK LIVING,288.00,LD LTS 18-64,SUPPORTED LIVING,2103132631,1000081741
11.08.2020,ADULT SOCIAL CARE,SHARE COMMUNITY LTD,975.00,LD LTS 18-64,DAYCARE,2103132627,1000062408
11.08.2020,ADULT SOCIAL CARE,SHARE COMMUNITY LTD,975.00,LD LTS 18-64,DAYCARE,2103132632,1000062408
11.08.2020,ADULT SOCIAL CARE,ELEANOR NURSING AND SOCIAL CARE LTD,"1,003.40",LD LTS 18-64,HOMECARE - SPOT,2103132638,1000081695
11.08.2020,ADULT SOCIAL CARE,REMARK LIVING,"1,035.00",LD LTS 18-64,SUPPORTED LIVING,2103132634,1000081741
11.08.2020,ADULT SOCIAL CARE,TRUECARE HAVEN SUPPORT LTD,"1,900.00",LD LTS 18-64,HOMECARE - SPOT,2103132633,1000078974
11.08.2020,ADULT SOCIAL CARE,TRUECARE HAVEN SUPPORT LTD,"4,326.00",LD LTS 18-64,SUPPORTED LIVING,2103132628,1000078974
11.08.2020,ADULT SOCIAL CARE,LONDON CARE LTD,344.25,PHY LTS 18-64,HOMECARE - C&V,2103132657,1000003398
11.08.2020,ADULT SOCIAL CARE,ELEANOR NURSING AND SOCIAL CARE LTD,709.44,PHY LTS 18-64,HOMECARE - SPOT,2103132640,1000081695
11.08.2020,ADULT SOCIAL CARE,ELEANOR NURSING AND SOCIAL CARE LTD,796.08,PHY LTS 18-64,HOMECARE - C&V,2103132641,1000081695
11.08.2020,ADULT SOCIAL CARE,ELEANOR NURSING AND SOCIAL CARE LTD,865.00,PHY LTS 18-64,HOMECARE - SPOT,2103132642,1000081695
11.08.2020,ADULT SOCIAL CARE,REMARK LIVING,989.00,PHY LTS 18-64,SUPPORTED LIVING,2103132630,1000081741
11.08.2020,ADULT SOCIAL CARE,ELEANOR NURSING AND SOCIAL CARE LTD,"1,193.86",PHY LTS 18-64,HOMECARE - SPOT,2103132639,1000081695
11.08.2020,ADULT SOCIAL CARE,ELEANOR NURSING AND SOCIAL CARE LTD,"3,564.36",PHY LTS 18-64,HOMECARE - SPOT,2103132646,1000081695
11.08.2020,ADULT SOCIAL CARE,LONDON CARE LTD,845.14,PHY LTS 65+,HOMECARE - C&V,2103132651,1000003398
11.08.2020,ADULT SOCIAL CARE,LONDON CARE LTD,852.27,PHY LTS 65+,HOMECARE - C&V,2103132653,1000003398
11.08.2020,ADULT SOCIAL CARE,LONDON CARE LTD,854.24,PHY LTS 65+,HOMECARE - C&V,2103132652,1000003398
11.08.2020,ADULT SOCIAL CARE,LONDON CARE LTD,879.75,PHY LTS 65+,HOMECARE - C&V,2103132655,1000003398
11.08.2020,ADULT SOCIAL CARE,ELEANOR NURSING AND SOCIAL CARE LTD,917.04,PHY LTS 65+,HOMECARE - SPOT,2103132645,1000081695
11.08.2020,ADULT SOCIAL CARE,LONDON CARE LTD,"1,020.00",PHY LTS 65+,HOMECARE - C&V,2103132658,1000003398
11.08.2020,ADULT SOCIAL CARE,ELEANOR NURSING AND SOCIAL CARE LTD,"1,193.84",PHY LTS 65+,HOMECARE - SPOT,2103132635,1000081695
11.08.2020,ADULT SOCIAL CARE,ELEANOR NURSING AND SOCIAL CARE LTD,"1,522.68",PHY LTS 65+,HOMECARE - SPOT,2103132643,1000081695
11.08.2020,ADULT SOCIAL CARE,METRO HOMECARE LTD,296.82,PHY STS 18-64,HOMECARE - IC,2103132648,1000070695
11.08.2020,ADULT SOCIAL CARE,ELEANOR NURSING AND SOCIAL CARE LTD,917.04,SEN LTS 65+,HOMECARE - SPOT,2103132636,1000081695
11.08.2020,ADULT SOCIAL CARE,SOMEWHERE HOUSE,"10,900.00",SUB LTS 18-64,PLACEMENTS - REHAB,2103132626,1000052779
11.08.2020,ASSET MANAGEMENT,CAPITAL SERVICES LONDON LTD,"7,666.67",COMMERCIAL (QS),PROFESSIONAL FEES,5902427323,1000082548
11.08.2020,ASSET MANAGEMENT,LPS CONSULTING (LONDON) LIMITED,"12,600.00",COMMERCIAL (QS),PROFESSIONAL FEES,5902428070,1000084208
11.08.2020,ASSET MANAGEMENT,AVONLINE PLC,762.08,ENG CONTRACTS (NORTH),TV AERIALS R&M,5902428035,1000068672
11.08.2020,ASSET MANAGEMENT,AVONLINE PLC,"1,080.30",ENG CONTRACTS (NORTH),TV AERIALS R&M,5902428073,1000068672
11.08.2020,ASSET MANAGEMENT,CHRIS DAVIS CONSULTANCY LTD,"6,467.50",REPAIRS OPERATIONS,PROFESSIONAL FEES,5902427250,1000084202
11.08.2020,ASSET MANAGEMENT,P J COFFEY LTD,"13,350.00",REPAIRS OPERATIONS,PROFESSIONAL FEES,5902427331,1000084701
11.08.2020,CHIEF EXECUTIVE'S OFFICE,ANCA IONESCU,"2,000.00",DISCRETIONARY GRANTS,GRANTS,2103132687,1000085114
11.08.2020,CHIEF EXECUTIVE'S OFFICE,SUCHDE PHARMA LTD,"2,377.00",DISCRETIONARY GRANTS,GRANTS,2103132697,1000085054
11.08.2020,CHIEF EXECUTIVE'S OFFICE,PLANARAMA LTD,"2,500.00",DISCRETIONARY GRANTS,GRANTS,2103132688,1000038421
11.08.2020,CHIEF EXECUTIVE'S OFFICE,TOP GIFT LTD,"5,000.00",DISCRETIONARY GRANTS,GRANTS,2103132684,1000084750
11.08.2020,CHIEF EXECUTIVE'S OFFICE,ALPHABET KIDZ LIMITED,"5,000.00",DISCRETIONARY GRANTS,GRANTS,2103132693,1000085035
11.08.2020,CHIEF EXECUTIVE'S OFFICE,MOSES PROPERTY SERVICES LIMITED,"5,000.00",DISCRETIONARY GRANTS,GRANTS,2103132696,1000085036
11.08.2020,CHIEF EXECUTIVE'S OFFICE,SIOBHAN DAVIES DANCE COMPANY,"10,000.00",DISCRETIONARY GRANTS,GRANTS,2103132698,1000051803
11.08.2020,CHIEF EXECUTIVE'S OFFICE,SIMON & SIMON INT LTD,"10,000.00",DISCRETIONARY GRANTS,GRANTS,2103132695,1000084939
11.08.2020,CHIEF EXECUTIVE'S OFFICE,URBAN EYE CONTRACTORS,"25,000.00",DISCRETIONARY GRANTS,GRANTS,2103132685,1000048686
11.08.2020,CHIEF EXECUTIVE'S OFFICE,CHANGE PLEASE CIC,"25,000.00",DISCRETIONARY GRANTS,GRANTS,2103132691,1000079296
11.08.2020,CHIEF EXECUTIVE'S OFFICE,F. E. BURMAN LTD,"25,000.00",DISCRETIONARY GRANTS,GRANTS,2103132692,1000083546
11.08.2020,CHIEF EXECUTIVE'S OFFICE,ARABICA BOROUGH LIMITED,"25,000.00",DISCRETIONARY GRANTS,GRANTS,2103132694,1000084940
11.08.2020,CHIEF EXECUTIVE'S OFFICE,GERAGHTY TAYLOR LTD,"25,000.00",DISCRETIONARY GRANTS,GRANTS,2103132686,1000084946
11.08.2020,CHIEF EXECUTIVE'S OFFICE,LXA CONSTRUCTION LTD,"25,000.00",DISCRETIONARY GRANTS,GRANTS,2103132690,1000085104
11.08.2020,CHIEF EXECUTIVE'S OFFICE,BAY DINING LTD,"25,000.00",DISCRETIONARY GRANTS,GRANTS,2103132699,1000085144
11.08.2020,CHIEF EXECUTIVE'S OFFICE,WILL KIPPAX,850.00,SOUTHWARK PIONEER FUND,GRANTS,2103132668,1000085061
11.08.2020,CHIEF EXECUTIVE'S OFFICE,DAN VR LTD,"1,700.00",SOUTHWARK PIONEER FUND,GRANTS,2103132681,1000085179
11.08.2020,CHIEF EXECUTIVE'S OFFICE,CHANGE THE PICTURE LTD,"2,500.00",SOUTHWARK PIONEER FUND,GRANTS,2103132669,1000077495
11.08.2020,CHIEF EXECUTIVE'S OFFICE,NUTKIN KITCHEN LTD,"2,500.00",SOUTHWARK PIONEER FUND,GRANTS,2103132679,1000084524
11.08.2020,CHIEF EXECUTIVE'S OFFICE,AMY LORD,"2,500.00",SOUTHWARK PIONEER FUND,GRANTS,2103132671,1000085077
11.08.2020,CHIEF EXECUTIVE'S OFFICE,SHANE WILLIAMS,"2,500.00",SOUTHWARK PIONEER FUND,GRANTS,2103132673,1000085121
11.08.2020,CHIEF EXECUTIVE'S OFFICE,PROFAD QUALITY INVESTMENTS LTD,"3,150.00",SOUTHWARK PIONEER FUND,GRANTS,2103132683,1000085178
11.08.2020,CHIEF EXECUTIVE'S OFFICE,CHAPEAU TOWER BRIDGE LTD,"5,000.00",SOUTHWARK PIONEER FUND,GRANTS,2103132674,1000082561
11.08.2020,CHIEF EXECUTIVE'S OFFICE,SPREAD THE HAPPINESS LTD,"5,000.00",SOUTHWARK PIONEER FUND,GRANTS,2103132676,1000084999
11.08.2020,CHIEF EXECUTIVE'S OFFICE,EHRANAUS LIMITED,"5,000.00",SOUTHWARK PIONEER FUND,GRANTS,2103132672,1000085067
11.08.2020,CHIEF EXECUTIVE'S OFFICE,DESIGNERS BOUTIK LIMITED,"5,000.00",SOUTHWARK PIONEER FUND,GRANTS,2103132675,1000085120
11.08.2020,CHIEF EXECUTIVE'S OFFICE,LITTLE BEARS 4 LMITED T/A LITTLE BEARS IN ELEPHANT CENTRE,"10,000.00",SOUTHWARK PIONEER FUND,GRANTS,2103132677,1000082505
11.08.2020,CHIEF EXECUTIVE'S OFFICE,CHOCOLATE FACTORY PRODUCTIONS,"10,000.00",SOUTHWARK PIONEER FUND,GRANTS,2103132670,1000085040
11.08.2020,CHIEF EXECUTIVE'S OFFICE,EMA CATERING LTD,"10,000.00",SOUTHWARK PIONEER FUND,GRANTS,2103132678,1000085108
11.08.2020,CHILDREN'S SERVICES,ZENITH CARS LTD,265.00,AI TEAMS E-G & KFT,HIRED VEHICLES,5902428151,1000070570
11.08.2020,CHILDREN'S SERVICES,ALBION PRIMARY SCHOOL,"191,065.00",ALBION PRIMARY SCHOOL,SCHOOLS CAPITATION,5902427840,5001000000
11.08.2020,CHILDREN'S SERVICES,ALFRED SALTER PRIMARY SCHOOL,"170,539.00",ALFRED SALTER PRIMARY SCHOOL,SCHOOLS CAPITATION,5902427843,5001000005
11.08.2020,CHILDREN'S SERVICES,WINCHMORE TUTORS LTD,800.00,ALTERNATIVE PROVISION,EXTERNAL AGENCIES AND BODIES,5902428050,1000075298
11.08.2020,CHILDREN'S SERVICES,WINCHMORE TUTORS LTD,"1,000.00",ALTERNATIVE PROVISION,EXTERNAL AGENCIES AND BODIES,5902428048,1000075298
11.08.2020,CHILDREN'S SERVICES,WINCHMORE TUTORS LTD,"1,400.00",ALTERNATIVE PROVISION,EXTERNAL AGENCIES AND BODIES,5902428047,1000075298
11.08.2020,CHILDREN'S SERVICES,ANN BERNADT NURSERY SCHOOL,"48,173.00",ANN BERNADT (SUMNER),EARLY YEARS - 3 AND 4 YEAR OLDS,5902428015,5001000085
11.08.2020,CHILDREN'S SERVICES,BELLENDEN PRIMARY SCHOOL,"102,650.00",BELLENDEN PRIMARY SCHOOL,SCHOOLS CAPITATION,5902427846,5001000007
11.08.2020,CHILDREN'S SERVICES,BEORMUND PRIMARY SCHOOL,"69,155.00",BEORMUND PRIMARY SCHOOL,HIGH NEEDS - TOP UP FUNDING,5902427849,5001000008
11.08.2020,CHILDREN'S SERVICES,BESSEMER GRANGE PRIMARY SCHOOL,"247,363.00",BESSEMER GRANGE PRIMARY SCHOOL,SCHOOLS CAPITATION,5902427850,5001000009
11.08.2020,CHILDREN'S SERVICES,BOUCHER C OF E PRIMARY SCHOOL,"96,207.00",BOUTCHER CE PRIMARY SCHOOL,SCHOOLS CAPITATION,5902427854,5001000011
11.08.2020,CHILDREN'S SERVICES,BRUNSWICK PARK PRIMARY SCHOOL,"175,907.00",BRUNSWICK PARK PRIMARY SCHOOL,SCHOOLS CAPITATION,5902427856,5001000013
11.08.2020,CHILDREN'S SERVICES,CAMELOT PRIMARY SCHOOL,"161,506.00",CAMELOT PRIMARY SCHOOL,SCHOOLS CAPITATION,5902427860,5001000014
11.08.2020,CHILDREN'S SERVICES,CHARLOTTE  SHARMAN PRIMARY SCHOOL,"172,354.00",CHARLOTTE SHARMAN PRIMARY SCHOOL,SCHOOLS CAPITATION,5902427863,5001000016
11.08.2020,CHILDREN'S SERVICES,CHERRY GARDEN SCHOOL,"178,560.00",CHERRY GARDEN PRIMARY SCHOOL,HIGH NEEDS - TOP UP FUNDING,5902427872,5001000020
11.08.2020,CHILDREN'S SERVICES,SMARTCARE SERVICES LTD,"2,285.71",CHILDREN�S RESID,EXTERNAL AGENCIES AND BODIES,2103132605,1000080461
11.08.2020,CHILDREN'S SERVICES,DURHAM COUNTY COUNCIL,"32,705.00",CHILDREN�S RESID,EXTERNAL AGENCIES AND BODIES,2103132606,1000023294
11.08.2020,CHILDREN'S SERVICES,COBOURG PRIMARY SCHOOL,"144,891.00",COBOURG PRIMARY SCHOOL,SCHOOLS CAPITATION,5902427873,5001000021
11.08.2020,CHILDREN'S SERVICES,COMBER GROVE PRIMARY SCHOOL,"130,936.00",COMBER GROVE PRIMARY SCHOOL,SCHOOLS CAPITATION,5902427876,5001000022
11.08.2020,CHILDREN'S SERVICES,CRAMPTON PRIMARY SCHOOL,"98,889.00",CRAMPTON PRIMARY SCHOOL,SCHOOLS CAPITATION,5902427879,5001000023
11.08.2020,CHILDREN'S SERVICES,CRAWFORD PRIMARY SCHOOL,"222,697.00",CRAWFORD PRIMARY SCHOOL,SCHOOLS CAPITATION,5902427881,5001000024
11.08.2020,CHILDREN'S SERVICES,REDACTED PERSONAL DATA,300.00,DISABILITY & HIV,OTHER PAYMENTS FOR CLIENTS,REDACTED,REDACTED
11.08.2020,CHILDREN'S SERVICES,DOG KENNEL HILL PRIMARY SCHOOL,"161,068.00",DOG KENNEL HILL PRIMARY SCHOOL,SCHOOLS CAPITATION,5902427884,5001000025
11.08.2020,CHILDREN'S SERVICES,DULWICH VILLAGE CE INFANTS SCHOOL,"112,361.00",DULWICH VILLAGE CE INFANTS' SCHOOL,SCHOOLS CAPITATION,5902427887,5001000027
11.08.2020,CHILDREN'S SERVICES,DULWICH WOOD CHILDRENS CENTRE,"57,561.00",DULWICH WOOD NURSERY SCHOOL,EARLY YEARS - 3 AND 4 YEAR OLDS,5902428032,5001000099
11.08.2020,CHILDREN'S SERVICES,DULWICH WOOD PRIMARY SCHOOL,"151,457.00",DULWICH WOOD PRIMARY SCHOOL,SCHOOLS CAPITATION,5902427923,5001000042
11.08.2020,CHILDREN'S SERVICES,PETER ROGERS,"1,450.00",EDUCATIONAL TRADE SERVICES,PRINTING,5902427735,1000085132
11.08.2020,CHILDREN'S SERVICES,ENGLISH MARTYRS RC PRIMARY SCHOOL,"138,986.00",ENGLISH MARTYRS RC PRIMARY SCHOOL,SCHOOLS CAPITATION,5902427895,5001000030
11.08.2020,CHILDREN'S SERVICES,EVELINA HOSPITAL SCHOOL,"87,569.00",EVELINA HOSPITAL SCHOOL,HIGH NEEDS - TOP UP FUNDING,5902427898,5001000031
11.08.2020,CHILDREN'S SERVICES,FRIARS PRIMARY SCHOOL,"85,268.00",FRIARS FOUNDATION PRIMARY SCHOOL,SCHOOLS CAPITATION,5902427902,5001000033
11.08.2020,CHILDREN'S SERVICES,HELP ME GROW FOSTERING SERVICES LTD,-976.00,FRIENDS & FAMILY FOSTERING,EXTERNAL AGENCIES AND BODIES,2103132613,1000079302
11.08.2020,CHILDREN'S SERVICES,NATIONAL FOSTERING AGENCY,535.00,FRIENDS & FAMILY FOSTERING,EXTERNAL AGENCIES AND BODIES,2103132621,1000038868
11.08.2020,CHILDREN'S SERVICES,NATIONAL FOSTERING AGENCY,"1,470.00",FRIENDS & FAMILY FOSTERING,EXTERNAL AGENCIES AND BODIES,2103132609,1000038868
11.08.2020,CHILDREN'S SERVICES,NATIONAL FOSTERING AGENCY,"1,819.00",FRIENDS & FAMILY FOSTERING,EXTERNAL AGENCIES AND BODIES,2103132623,1000038868
11.08.2020,CHILDREN'S SERVICES,FLOURISH FOSTERING LTD,"2,261.74",FRIENDS & FAMILY FOSTERING,EXTERNAL AGENCIES AND BODIES,2103132612,1000084796
11.08.2020,CHILDREN'S SERVICES,TACT,"3,162.00",FRIENDS & FAMILY FOSTERING,EXTERNAL AGENCIES AND BODIES,2103132610,1000012941
11.08.2020,CHILDREN'S SERVICES,NATIONAL FOSTERING AGENCY,"3,250.66",FRIENDS & FAMILY FOSTERING,EXTERNAL AGENCIES AND BODIES,2103132614,1000038868
11.08.2020,CHILDREN'S SERVICES,NATIONAL FOSTERING AGENCY,"3,317.00",FRIENDS & FAMILY FOSTERING,EXTERNAL AGENCIES AND BODIES,2103132607,1000038868
11.08.2020,CHILDREN'S SERVICES,NATIONAL FOSTERING AGENCY,"3,317.00",FRIENDS & FAMILY FOSTERING,EXTERNAL AGENCIES AND BODIES,2103132622,1000038868
11.08.2020,CHILDREN'S SERVICES,NATIONAL FOSTERING AGENCY,"3,317.00",FRIENDS & FAMILY FOSTERING,EXTERNAL AGENCIES AND BODIES,2103132625,1000038868
11.08.2020,CHILDREN'S SERVICES,SUNBEAM FOSTERING AGENCY LTD,"3,432.14",FRIENDS & FAMILY FOSTERING,EXTERNAL AGENCIES AND BODIES,2103132608,1000041457
11.08.2020,CHILDREN'S SERVICES,NATIONAL FOSTERING AGENCY,"3,520.67",FRIENDS & FAMILY FOSTERING,EXTERNAL AGENCIES AND BODIES,2103132618,1000038868
11.08.2020,CHILDREN'S SERVICES,NATIONAL FOSTERING AGENCY,"3,520.67",FRIENDS & FAMILY FOSTERING,EXTERNAL AGENCIES AND BODIES,2103132620,1000038868
11.08.2020,CHILDREN'S SERVICES,HELP ME GROW FOSTERING SERVICES LTD,"3,782.00",FRIENDS & FAMILY FOSTERING,EXTERNAL AGENCIES AND BODIES,2103132619,1000079302
11.08.2020,CHILDREN'S SERVICES,NATIONAL FOSTERING AGENCY,"4,406.34",FRIENDS & FAMILY FOSTERING,EXTERNAL AGENCIES AND BODIES,2103132615,1000038868
11.08.2020,CHILDREN'S SERVICES,NATIONAL FOSTERING AGENCY,"4,557.00",FRIENDS & FAMILY FOSTERING,EXTERNAL AGENCIES AND BODIES,2103132624,1000038868
11.08.2020,CHILDREN'S SERVICES,NATIONAL FOSTERING AGENCY,"4,627.68",FRIENDS & FAMILY FOSTERING,EXTERNAL AGENCIES AND BODIES,2103132617,1000038868
11.08.2020,CHILDREN'S SERVICES,AIM HIGH FOSTERING SERVICES LTD,"5,314.02",FRIENDS & FAMILY FOSTERING,EXTERNAL AGENCIES AND BODIES,2103132616,1000082607
11.08.2020,CHILDREN'S SERVICES,GOODRICH PRIMARY SCHOOL,"230,541.00",GOODRICH PRIMARY SCHOOL,SCHOOLS CAPITATION,5902427889,5001000028
11.08.2020,CHILDREN'S SERVICES,GRANGE PRIMARY SCHOOL,"173,974.00",GRANGE PRIMARY SCHOOL,SCHOOLS CAPITATION,5902427892,5001000029
11.08.2020,CHILDREN'S SERVICES,HAYMERLE SCHOOL,"153,516.00",HAYMERLE PRIMARY SCHOOL,HIGH NEEDS - TOP UP FUNDING,5902427929,5001000045
11.08.2020,CHILDREN'S SERVICES,HEBER PRIMARY SCHOOL,"154,146.00",HEBER PRIMARY SCHOOL,SCHOOLS CAPITATION,5902427905,5001000035
11.08.2020,CHILDREN'S SERVICES,HIGHSHORE SCHOOL,"251,249.00",HIGHSHORE,HIGH NEEDS - TOP UP FUNDING,5902427930,5001000046
11.08.2020,CHILDREN'S SERVICES,HOLLYDALE PRIMARY SCHOOL,"91,078.00",HOLLYDALE PRIMARY SCHOOL,SCHOOLS CAPITATION,5902427908,5001000036
11.08.2020,CHILDREN'S SERVICES,ILDERTON PRIMARY SCHOOL,"154,642.00",ILDERTON PRIMARY SCHOOL,SCHOOLS CAPITATION,5902427910,5001000037
11.08.2020,CHILDREN'S SERVICES,NELL GWYNN NURSERY SCHOOL,314.00,IN YEAR STATEMENTS,SCHOOLS CAPITATION,5902427937,5001000049
11.08.2020,CHILDREN'S SERVICES,GRANGE PRIMARY SCHOOL,439.00,IN YEAR STATEMENTS,SCHOOLS CAPITATION,5902427894,5001000029
11.08.2020,CHILDREN'S SERVICES,ST JOSEPHS RC JUNIOR  SCHOOL,603.00,IN YEAR STATEMENTS,SCHOOLS CAPITATION,5902427867,5001000017
11.08.2020,CHILDREN'S SERVICES,DULWICH WOOD CHILDRENS CENTRE,636.00,IN YEAR STATEMENTS,SCHOOLS CAPITATION,5902428033,5001000099
11.08.2020,CHILDREN'S SERVICES,ST JOSEPHS CATHOLIC PRIMARY SCHOOL,667.00,IN YEAR STATEMENTS,SCHOOLS CAPITATION,5902428007,5001000078
11.08.2020,CHILDREN'S SERVICES,DULWICH VILLAGE CE INFANTS SCHOOL,715.00,IN YEAR STATEMENTS,SCHOOLS CAPITATION,5902427888,5001000027
11.08.2020,CHILDREN'S SERVICES,ANN BERNADT NURSERY SCHOOL,756.00,IN YEAR STATEMENTS,SCHOOLS CAPITATION,5902428016,5001000085
11.08.2020,CHILDREN'S SERVICES,HOLLYDALE PRIMARY SCHOOL,836.00,IN YEAR STATEMENTS,SCHOOLS CAPITATION,5902427909,5001000036
11.08.2020,CHILDREN'S SERVICES,VICTORY SCHOOL,906.00,IN YEAR STATEMENTS,SCHOOLS CAPITATION,5902428031,5001000098
11.08.2020,CHILDREN'S SERVICES,CATHEDRAL SCHOOL OF ST SAVIOUR & MARY,"1,000.00",IN YEAR STATEMENTS,SCHOOLS CAPITATION,5902428019,5001000088
11.08.2020,CHILDREN'S SERVICES,ST JUDES CHURCH OF ENGLAND PRIMARY,"1,060.00",IN YEAR STATEMENTS,SCHOOLS CAPITATION,5902427871,5001000019
11.08.2020,CHILDREN'S SERVICES,ST SAVIOURS & ST OLAVES SCHOOL,"1,086.00",IN YEAR STATEMENTS,SCHOOLS CAPITATION,5902428014,5001000084
11.08.2020,CHILDREN'S SERVICES,CHARLOTTE  SHARMAN PRIMARY SCHOOL,"1,190.00",IN YEAR STATEMENTS,SCHOOLS CAPITATION,5902427865,5001000016
11.08.2020,CHILDREN'S SERVICES,ST PETERS CE SCHOOL,"1,707.00",IN YEAR STATEMENTS,SCHOOLS CAPITATION,5902428012,5001000083
11.08.2020,CHILDREN'S SERVICES,PETER HILLS CE SCHOOL,"1,752.00",IN YEAR STATEMENTS,SCHOOLS CAPITATION,5902427945,5001000053
11.08.2020,CHILDREN'S SERVICES,RYE OAK PRIMARY SCHOOL,"1,974.00",IN YEAR STATEMENTS,SCHOOLS CAPITATION,5902427961,5001000059
11.08.2020,CHILDREN'S SERVICES,ST GEORGES CE SCHOOL,"2,220.00",IN YEAR STATEMENTS,SCHOOLS CAPITATION,5902427982,5001000069
11.08.2020,CHILDREN'S SERVICES,LYNDHURST PRIMARY SCHOOL,"2,314.00",IN YEAR STATEMENTS,SCHOOLS CAPITATION,5902427928,5001000043
11.08.2020,CHILDREN'S SERVICES,BOUCHER C OF E PRIMARY SCHOOL,"2,351.00",IN YEAR STATEMENTS,SCHOOLS CAPITATION,5902427855,5001000011
11.08.2020,CHILDREN'S SERVICES,CRAMPTON PRIMARY SCHOOL,"2,374.00",IN YEAR STATEMENTS,SCHOOLS CAPITATION,5902427880,5001000023
11.08.2020,CHILDREN'S SERVICES,ROBERT BROWNING PRIMARY SCHOOL,"2,419.00",IN YEAR STATEMENTS,SCHOOLS CAPITATION,5902427954,5001000057
11.08.2020,CHILDREN'S SERVICES,ST GEORGES RC SCHOOL,"2,543.00",IN YEAR STATEMENTS,SCHOOLS CAPITATION,5902427980,5001000068
11.08.2020,CHILDREN'S SERVICES,ST JOSEPHS CATHOLIC SCHOOL,"2,786.00",IN YEAR STATEMENTS,SCHOOLS CAPITATION,5902428001,5001000076
11.08.2020,CHILDREN'S SERVICES,DULWICH WOOD PRIMARY SCHOOL,"2,831.00",IN YEAR STATEMENTS,SCHOOLS CAPITATION,5902427924,5001000042
11.08.2020,CHILDREN'S SERVICES,BELLENDEN PRIMARY SCHOOL,"2,927.00",IN YEAR STATEMENTS,SCHOOLS CAPITATION,5902427848,5001000007
11.08.2020,CHILDREN'S SERVICES,COMBER GROVE PRIMARY SCHOOL,"3,000.00",IN YEAR STATEMENTS,SCHOOLS CAPITATION,5902427878,5001000022
11.08.2020,CHILDREN'S SERVICES,ST MARY MAGDALENE CE SCHOOL,"3,059.00",IN YEAR STATEMENTS,SCHOOLS CAPITATION,5902428009,5001000080
11.08.2020,CHILDREN'S SERVICES,ST JOHNS RC PRIMARY SCHOOL,"3,119.00",IN YEAR STATEMENTS,SCHOOLS CAPITATION,5902427998,5001000075
11.08.2020,CHILDREN'S SERVICES,ILDERTON PRIMARY SCHOOL,"3,188.00",IN YEAR STATEMENTS,SCHOOLS CAPITATION,5902427912,5001000037
11.08.2020,CHILDREN'S SERVICES,ST FRANCIS'S RC PRIMARY SCHOOL,"3,512.00",IN YEAR STATEMENTS,SCHOOLS CAPITATION,5902427977,5001000067
11.08.2020,CHILDREN'S SERVICES,KINTORE WAY CHILDRENS CENTRE,"3,523.00",IN YEAR STATEMENTS,SCHOOLS CAPITATION,5902427932,5001000047
11.08.2020,CHILDREN'S SERVICES,OLIVER GOLDSMITH PRIMARY SCHOOL,"3,726.00",IN YEAR STATEMENTS,SCHOOLS CAPITATION,5902427942,5001000051
11.08.2020,CHILDREN'S SERVICES,DOG KENNEL HILL PRIMARY SCHOOL,"3,767.00",IN YEAR STATEMENTS,SCHOOLS CAPITATION,5902427886,5001000025
11.08.2020,CHILDREN'S SERVICES,COBOURG PRIMARY SCHOOL,"3,831.00",IN YEAR STATEMENTS,SCHOOLS CAPITATION,5902427875,5001000021
11.08.2020,CHILDREN'S SERVICES,ST JOHNS WALWORTH CE SCHOOL,"3,936.00",IN YEAR STATEMENTS,SCHOOLS CAPITATION,5902427990,5001000072
11.08.2020,CHILDREN'S SERVICES,ENGLISH MARTYRS RC PRIMARY SCHOOL,"4,091.00",IN YEAR STATEMENTS,SCHOOLS CAPITATION,5902427897,5001000030
11.08.2020,CHILDREN'S SERVICES,TOWNSEND PRIMARY SCHOOL,"4,178.00",IN YEAR STATEMENTS,SCHOOLS CAPITATION,5902428027,5001000096
11.08.2020,CHILDREN'S SERVICES,ST FRANCESCA CABRINI PRIMARY SCHOOL,"4,238.00",IN YEAR STATEMENTS,SCHOOLS CAPITATION,5902427974,5001000065
11.08.2020,CHILDREN'S SERVICES,ST ANTHONYS RC SCHOOL,"4,269.00",IN YEAR STATEMENTS,SCHOOLS CAPITATION,5902427971,5001000064
11.08.2020,CHILDREN'S SERVICES,THE GROVE CHILDRENS CENTRE,"4,582.00",IN YEAR STATEMENTS,SCHOOLS CAPITATION,5902428021,5001000090
11.08.2020,CHILDREN'S SERVICES,FRIARS PRIMARY SCHOOL,"4,593.00",IN YEAR STATEMENTS,SCHOOLS CAPITATION,5902427904,5001000033
11.08.2020,CHILDREN'S SERVICES,PILGRIM'S WAY PRIMARY SCHOOL,"4,640.00",IN YEAR STATEMENTS,SCHOOLS CAPITATION,5902427948,5001000054
11.08.2020,CHILDREN'S SERVICES,KEYWORTH PRIMARY SCHOOL,"4,789.00",IN YEAR STATEMENTS,SCHOOLS CAPITATION,5902427922,5001000041
11.08.2020,CHILDREN'S SERVICES,GOODRICH PRIMARY SCHOOL,"4,831.00",IN YEAR STATEMENTS,SCHOOLS CAPITATION,5902427891,5001000028
11.08.2020,CHILDREN'S SERVICES,MICHAEL FARADAY PRIMARY SCHOOL,"4,926.00",IN YEAR STATEMENTS,SCHOOLS CAPITATION,5902427935,5001000048
11.08.2020,CHILDREN'S SERVICES,TOWER BRIDGE PRIMARY SCHOOL,"5,119.00",IN YEAR STATEMENTS,SCHOOLS CAPITATION,5902428024,5001000095
11.08.2020,CHILDREN'S SERVICES,SNOWSFIELDS PRIMARY SCHOOL,"6,032.00",IN YEAR STATEMENTS,SCHOOLS CAPITATION,5902427965,5001000061
11.08.2020,CHILDREN'S SERVICES,CRAWFORD PRIMARY SCHOOL,"6,268.00",IN YEAR STATEMENTS,SCHOOLS CAPITATION,5902427883,5001000024
11.08.2020,CHILDREN'S SERVICES,ST JOSEPHS RC PRIMARY SCHOOL,"6,297.00",IN YEAR STATEMENTS,SCHOOLS CAPITATION,5902428004,5001000077
11.08.2020,CHILDREN'S SERVICES,SOUTHWARK PARK PRIMARY SCHOOL,"6,589.00",IN YEAR STATEMENTS,SCHOOLS CAPITATION,5902427968,5001000062
11.08.2020,CHILDREN'S SERVICES,ST JOHNS & ST CLEMENTS CE SCHOOL,"6,982.00",IN YEAR STATEMENTS,SCHOOLS CAPITATION,5902427993,5001000073
11.08.2020,CHILDREN'S SERVICES,HEBER PRIMARY SCHOOL,"7,145.00",IN YEAR STATEMENTS,SCHOOLS CAPITATION,5902427907,5001000035
11.08.2020,CHILDREN'S SERVICES,ST JAMES CE SCHOOL,"7,188.00",IN YEAR STATEMENTS,SCHOOLS CAPITATION,5902427985,5001000070
11.08.2020,CHILDREN'S SERVICES,ST JAMES THE GREAT RC SCHOOL,"7,452.00",IN YEAR STATEMENTS,SCHOOLS CAPITATION,5902427988,5001000071
11.08.2020,CHILDREN'S SERVICES,BESSEMER GRANGE PRIMARY SCHOOL,"7,726.00",IN YEAR STATEMENTS,SCHOOLS CAPITATION,5902427852,5001000009
11.08.2020,CHILDREN'S SERVICES,IVYDALE PRIMARY SCHOOL,"7,995.00",IN YEAR STATEMENTS,SCHOOLS CAPITATION,5902427915,5001000038
11.08.2020,CHILDREN'S SERVICES,RIVERSIDE PRIMARY SCHOOL,"8,630.00",IN YEAR STATEMENTS,SCHOOLS CAPITATION,5902427951,5001000056
11.08.2020,CHILDREN'S SERVICES,CAMELOT PRIMARY SCHOOL,"8,752.00",IN YEAR STATEMENTS,SCHOOLS CAPITATION,5902427862,5001000014
11.08.2020,CHILDREN'S SERVICES,BRUNSWICK PARK PRIMARY SCHOOL,"9,165.00",IN YEAR STATEMENTS,SCHOOLS CAPITATION,5902427859,5001000013
11.08.2020,CHILDREN'S SERVICES,ALBION PRIMARY SCHOOL,"9,174.00",IN YEAR STATEMENTS,SCHOOLS CAPITATION,5902427842,5001000000
11.08.2020,CHILDREN'S SERVICES,JOHN RUSKIN PRIMARY SCHOOL,"9,238.00",IN YEAR STATEMENTS,SCHOOLS CAPITATION,5902427919,5001000040
11.08.2020,CHILDREN'S SERVICES,PHOENIX PRIMARY SCHOOL,"9,542.00",IN YEAR STATEMENTS,SCHOOLS CAPITATION,5902427901,5001000032
11.08.2020,CHILDREN'S SERVICES,NOTRE DAME RC GIRLS SCHOOL,"9,618.00",IN YEAR STATEMENTS,SCHOOLS CAPITATION,5902427939,5001000050
11.08.2020,CHILDREN'S SERVICES,ROTHERHITHE PRIMARY SCHOOL,"9,781.00",IN YEAR STATEMENTS,SCHOOLS CAPITATION,5902427957,5001000058
11.08.2020,CHILDREN'S SERVICES,THE ST THOMAS THE APOSTLE COLLEGE,"13,243.00",IN YEAR STATEMENTS,SCHOOLS CAPITATION,5902427995,5001000074
11.08.2020,CHILDREN'S SERVICES,ALFRED SALTER PRIMARY SCHOOL,"15,372.00",IN YEAR STATEMENTS,SCHOOLS CAPITATION,5902427845,5001000005
11.08.2020,CHILDREN'S SERVICES,LYNDHURST PRIMARY SCHOOL,"15,407.00",IN YEAR STATEMENTS,SCHOOLS CAPITATION,5902427927,5001000043
11.08.2020,CHILDREN'S SERVICES,ST JOHNS & ST CLEMENTS CE SCHOOL,"16,685.00",IN YEAR STATEMENTS,SCHOOLS CAPITATION,5902427992,5001000073
11.08.2020,CHILDREN'S SERVICES,JOHN RUSKIN PRIMARY SCHOOL,"22,012.00",IN YEAR STATEMENTS,SCHOOLS CAPITATION,5902427918,5001000040
11.08.2020,CHILDREN'S SERVICES,SNOWSFIELDS PRIMARY SCHOOL,"22,186.00",IN YEAR STATEMENTS,SCHOOLS CAPITATION,5902427964,5001000061
11.08.2020,CHILDREN'S SERVICES,BRUNSWICK PARK PRIMARY SCHOOL,"26,415.00",IN YEAR STATEMENTS,SCHOOLS CAPITATION,5902427858,5001000013
11.08.2020,CHILDREN'S SERVICES,RYE OAK PRIMARY SCHOOL,"27,504.00",IN YEAR STATEMENTS,SCHOOLS CAPITATION,5902427960,5001000059
11.08.2020,CHILDREN'S SERVICES,IVYDALE PRIMARY SCHOOL,"220,255.00",IVYDALE PRIMARY SCHOOL,SCHOOLS CAPITATION,5902427913,5001000038
11.08.2020,CHILDREN'S SERVICES,JOHN RUSKIN PRIMARY SCHOOL,"195,146.00",JOHN RUSKIN PRIMARY SCHOOL,SCHOOLS CAPITATION,5902427916,5001000040
11.08.2020,CHILDREN'S SERVICES,KEYWORTH PRIMARY SCHOOL,"157,484.00",KEYWORTH PRIMARY SCHOOL,SCHOOLS CAPITATION,5902427920,5001000041
11.08.2020,CHILDREN'S SERVICES,KINTORE WAY CHILDRENS CENTRE,"84,026.00",KINTORE WAY CHILDRENS CENTRE,EARLY YEARS - 3 AND 4 YEAR OLDS,5902427931,5001000047
11.08.2020,CHILDREN'S SERVICES,DRUMHEAD LTD,800.00,LEA MUSIC SERVICE(310) - 5018566,CONSULTANTS SERVICES,5902427793,1000051656
11.08.2020,CHILDREN'S SERVICES,LYNDHURST PRIMARY SCHOOL,"172,776.00",LYNDHURST PRIMARY SCHOOL,SCHOOLS CAPITATION,5902427925,5001000043
11.08.2020,CHILDREN'S SERVICES,BETHLEM & MAUDSLEY HOSPITAL SCHOOL,"134,245.00",MAUDSLEY & BETHLEM,HIGH NEEDS - TOP UP FUNDING,5902427853,5001000010
11.08.2020,CHILDREN'S SERVICES,MICHAEL FARADAY PRIMARY SCHOOL,"188,127.00",MICHAEL FARADAY PRIMARY SCHOOL,SCHOOLS CAPITATION,5902427933,5001000048
11.08.2020,CHILDREN'S SERVICES,NELL GWYNN NURSERY SCHOOL,"53,592.00",NELL GWYNN CHILDRENS CENTRE,EARLY YEARS - 3 AND 4 YEAR OLDS,5902427936,5001000049
11.08.2020,CHILDREN'S SERVICES,NOTRE DAME RC GIRLS SCHOOL,"405,988.00",NOTRE DAME RC GIRLS' SCHOOL,SCHOOLS CAPITATION,5902427938,5001000050
11.08.2020,CHILDREN'S SERVICES,TOWNSEND PRIMARY SCHOOL,"1,182.00",NURSERY ED GRANT 3 AND 4 YR OLDS,EARLY YEARS - 3 AND 4 YEAR OLDS,5902428026,5001000096
11.08.2020,CHILDREN'S SERVICES,VICTORY SCHOOL,"2,553.00",NURSERY ED GRANT 3 AND 4 YR OLDS,EARLY YEARS - 3 AND 4 YEAR OLDS,5902428030,5001000098
11.08.2020,CHILDREN'S SERVICES,COMBER GROVE PRIMARY SCHOOL,"3,721.00",NURSERY ED GRANT 3 AND 4 YR OLDS,EARLY YEARS - 3 AND 4 YEAR OLDS,5902427877,5001000022
11.08.2020,CHILDREN'S SERVICES,FRIARS PRIMARY SCHOOL,"3,815.00",NURSERY ED GRANT 3 AND 4 YR OLDS,EARLY YEARS - 3 AND 4 YEAR OLDS,5902427903,5001000033
11.08.2020,CHILDREN'S SERVICES,RIVERSIDE PRIMARY SCHOOL,"4,064.00",NURSERY ED GRANT 3 AND 4 YR OLDS,EARLY YEARS - 3 AND 4 YEAR OLDS,5902427950,5001000056
11.08.2020,CHILDREN'S SERVICES,GRANGE PRIMARY SCHOOL,"4,427.00",NURSERY ED GRANT 3 AND 4 YR OLDS,EARLY YEARS - 3 AND 4 YEAR OLDS,5902427893,5001000029
11.08.2020,CHILDREN'S SERVICES,ST PETERS CE SCHOOL,"4,788.00",NURSERY ED GRANT 3 AND 4 YR OLDS,EARLY YEARS - 3 AND 4 YEAR OLDS,5902428011,5001000083
11.08.2020,CHILDREN'S SERVICES,TOWER BRIDGE PRIMARY SCHOOL,"5,159.00",NURSERY ED GRANT 3 AND 4 YR OLDS,EARLY YEARS - 3 AND 4 YEAR OLDS,5902428023,5001000095
11.08.2020,CHILDREN'S SERVICES,CHARLOTTE  SHARMAN PRIMARY SCHOOL,"5,162.00",NURSERY ED GRANT 3 AND 4 YR OLDS,EARLY YEARS - 3 AND 4 YEAR OLDS,5902427864,5001000016
11.08.2020,CHILDREN'S SERVICES,SNOWSFIELDS PRIMARY SCHOOL,"5,431.00",NURSERY ED GRANT 3 AND 4 YR OLDS,EARLY YEARS - 3 AND 4 YEAR OLDS,5902427963,5001000061
11.08.2020,CHILDREN'S SERVICES,PILGRIM'S WAY PRIMARY SCHOOL,"5,490.00",NURSERY ED GRANT 3 AND 4 YR OLDS,EARLY YEARS - 3 AND 4 YEAR OLDS,5902427947,5001000054
11.08.2020,CHILDREN'S SERVICES,ROBERT BROWNING PRIMARY SCHOOL,"6,031.00",NURSERY ED GRANT 3 AND 4 YR OLDS,EARLY YEARS - 3 AND 4 YEAR OLDS,5902427953,5001000057
11.08.2020,CHILDREN'S SERVICES,DOG KENNEL HILL PRIMARY SCHOOL,"6,439.00",NURSERY ED GRANT 3 AND 4 YR OLDS,EARLY YEARS - 3 AND 4 YEAR OLDS,5902427885,5001000025
11.08.2020,CHILDREN'S SERVICES,COBOURG PRIMARY SCHOOL,"6,450.00",NURSERY ED GRANT 3 AND 4 YR OLDS,EARLY YEARS - 3 AND 4 YEAR OLDS,5902427874,5001000021
11.08.2020,CHILDREN'S SERVICES,PETER HILLS CE SCHOOL,"6,476.00",NURSERY ED GRANT 3 AND 4 YR OLDS,EARLY YEARS - 3 AND 4 YEAR OLDS,5902427944,5001000053
11.08.2020,CHILDREN'S SERVICES,ST FRANCIS'S RC PRIMARY SCHOOL,"6,993.00",NURSERY ED GRANT 3 AND 4 YR OLDS,EARLY YEARS - 3 AND 4 YEAR OLDS,5902427976,5001000067
11.08.2020,CHILDREN'S SERVICES,ST GEORGES RC SCHOOL,"7,214.00",NURSERY ED GRANT 3 AND 4 YR OLDS,EARLY YEARS - 3 AND 4 YEAR OLDS,5902427979,5001000068
11.08.2020,CHILDREN'S SERVICES,OLIVER GOLDSMITH PRIMARY SCHOOL,"7,375.00",NURSERY ED GRANT 3 AND 4 YR OLDS,EARLY YEARS - 3 AND 4 YEAR OLDS,5902427941,5001000051
11.08.2020,CHILDREN'S SERVICES,CATHEDRAL SCHOOL OF ST SAVIOUR & MARY,"7,770.00",NURSERY ED GRANT 3 AND 4 YR OLDS,EARLY YEARS - 3 AND 4 YEAR OLDS,5902428018,5001000088
11.08.2020,CHILDREN'S SERVICES,BRUNSWICK PARK PRIMARY SCHOOL,"7,916.00",NURSERY ED GRANT 3 AND 4 YR OLDS,EARLY YEARS - 3 AND 4 YEAR OLDS,5902427857,5001000013
11.08.2020,CHILDREN'S SERVICES,IVYDALE PRIMARY SCHOOL,"8,266.00",NURSERY ED GRANT 3 AND 4 YR OLDS,EARLY YEARS - 3 AND 4 YEAR OLDS,5902427914,5001000038
11.08.2020,CHILDREN'S SERVICES,ST FRANCESCA CABRINI PRIMARY SCHOOL,"8,285.00",NURSERY ED GRANT 3 AND 4 YR OLDS,EARLY YEARS - 3 AND 4 YEAR OLDS,5902427973,5001000065
11.08.2020,CHILDREN'S SERVICES,ILDERTON PRIMARY SCHOOL,"8,681.00",NURSERY ED GRANT 3 AND 4 YR OLDS,EARLY YEARS - 3 AND 4 YEAR OLDS,5902427911,5001000037
11.08.2020,CHILDREN'S SERVICES,ST JAMES THE GREAT RC SCHOOL,"8,765.00",NURSERY ED GRANT 3 AND 4 YR OLDS,EARLY YEARS - 3 AND 4 YEAR OLDS,5902427987,5001000071
11.08.2020,CHILDREN'S SERVICES,ALFRED SALTER PRIMARY SCHOOL,"8,998.00",NURSERY ED GRANT 3 AND 4 YR OLDS,EARLY YEARS - 3 AND 4 YEAR OLDS,5902427844,5001000005
11.08.2020,CHILDREN'S SERVICES,ST JOSEPHS CATHOLIC SCHOOL,"9,016.00",NURSERY ED GRANT 3 AND 4 YR OLDS,EARLY YEARS - 3 AND 4 YEAR OLDS,5902428000,5001000076
11.08.2020,CHILDREN'S SERVICES,ST JOSEPHS RC PRIMARY SCHOOL,"9,065.00",NURSERY ED GRANT 3 AND 4 YR OLDS,EARLY YEARS - 3 AND 4 YEAR OLDS,5902428003,5001000077
11.08.2020,CHILDREN'S SERVICES,ROTHERHITHE PRIMARY SCHOOL,"9,446.00",NURSERY ED GRANT 3 AND 4 YR OLDS,EARLY YEARS - 3 AND 4 YEAR OLDS,5902427956,5001000058
11.08.2020,CHILDREN'S SERVICES,ST JOHNS RC PRIMARY SCHOOL,"9,506.00",NURSERY ED GRANT 3 AND 4 YR OLDS,EARLY YEARS - 3 AND 4 YEAR OLDS,5902427997,5001000075
11.08.2020,CHILDREN'S SERVICES,ENGLISH MARTYRS RC PRIMARY SCHOOL,"9,851.00",NURSERY ED GRANT 3 AND 4 YR OLDS,EARLY YEARS - 3 AND 4 YEAR OLDS,5902427896,5001000030
11.08.2020,CHILDREN'S SERVICES,BELLENDEN PRIMARY SCHOOL,"9,876.00",NURSERY ED GRANT 3 AND 4 YR OLDS,EARLY YEARS - 3 AND 4 YEAR OLDS,5902427847,5001000007
11.08.2020,CHILDREN'S SERVICES,ST JOSEPHS CATHOLIC PRIMARY SCHOOL,"10,303.00",NURSERY ED GRANT 3 AND 4 YR OLDS,EARLY YEARS - 3 AND 4 YEAR OLDS,5902428006,5001000078
11.08.2020,CHILDREN'S SERVICES,ST ANTHONYS RC SCHOOL,"10,640.00",NURSERY ED GRANT 3 AND 4 YR OLDS,EARLY YEARS - 3 AND 4 YEAR OLDS,5902427970,5001000064
11.08.2020,CHILDREN'S SERVICES,HEBER PRIMARY SCHOOL,"10,671.00",NURSERY ED GRANT 3 AND 4 YR OLDS,EARLY YEARS - 3 AND 4 YEAR OLDS,5902427906,5001000035
11.08.2020,CHILDREN'S SERVICES,CRAWFORD PRIMARY SCHOOL,"10,900.00",NURSERY ED GRANT 3 AND 4 YR OLDS,EARLY YEARS - 3 AND 4 YEAR OLDS,5902427882,5001000024
11.08.2020,CHILDREN'S SERVICES,KEYWORTH PRIMARY SCHOOL,"10,924.00",NURSERY ED GRANT 3 AND 4 YR OLDS,EARLY YEARS - 3 AND 4 YEAR OLDS,5902427921,5001000041
11.08.2020,CHILDREN'S SERVICES,LYNDHURST PRIMARY SCHOOL,"11,310.00",NURSERY ED GRANT 3 AND 4 YR OLDS,EARLY YEARS - 3 AND 4 YEAR OLDS,5902427926,5001000043
11.08.2020,CHILDREN'S SERVICES,CAMELOT PRIMARY SCHOOL,"11,570.00",NURSERY ED GRANT 3 AND 4 YR OLDS,EARLY YEARS - 3 AND 4 YEAR OLDS,5902427861,5001000014
11.08.2020,CHILDREN'S SERVICES,PHOENIX PRIMARY SCHOOL,"12,815.00",NURSERY ED GRANT 3 AND 4 YR OLDS,EARLY YEARS - 3 AND 4 YEAR OLDS,5902427900,5001000032
11.08.2020,CHILDREN'S SERVICES,SOUTHWARK PARK PRIMARY SCHOOL,"15,985.00",NURSERY ED GRANT 3 AND 4 YR OLDS,EARLY YEARS - 3 AND 4 YEAR OLDS,5902427967,5001000062
11.08.2020,CHILDREN'S SERVICES,MICHAEL FARADAY PRIMARY SCHOOL,"16,221.00",NURSERY ED GRANT 3 AND 4 YR OLDS,EARLY YEARS - 3 AND 4 YEAR OLDS,5902427934,5001000048
11.08.2020,CHILDREN'S SERVICES,BESSEMER GRANGE PRIMARY SCHOOL,"16,750.00",NURSERY ED GRANT 3 AND 4 YR OLDS,EARLY YEARS - 3 AND 4 YEAR OLDS,5902427851,5001000009
11.08.2020,CHILDREN'S SERVICES,ALBION PRIMARY SCHOOL,"18,571.00",NURSERY ED GRANT 3 AND 4 YR OLDS,EARLY YEARS - 3 AND 4 YEAR OLDS,5902427841,5001000000
11.08.2020,CHILDREN'S SERVICES,GOODRICH PRIMARY SCHOOL,"19,110.00",NURSERY ED GRANT 3 AND 4 YR OLDS,EARLY YEARS - 3 AND 4 YEAR OLDS,5902427890,5001000028
11.08.2020,CHILDREN'S SERVICES,ST JAMES CE SCHOOL,"19,967.00",NURSERY ED GRANT 3 AND 4 YR OLDS,EARLY YEARS - 3 AND 4 YEAR OLDS,5902427984,5001000070
11.08.2020,CHILDREN'S SERVICES,RYE OAK PRIMARY SCHOOL,"20,667.00",NURSERY ED GRANT 3 AND 4 YR OLDS,EARLY YEARS - 3 AND 4 YEAR OLDS,5902427959,5001000059
11.08.2020,CHILDREN'S SERVICES,JOHN RUSKIN PRIMARY SCHOOL,"21,918.00",NURSERY ED GRANT 3 AND 4 YR OLDS,EARLY YEARS - 3 AND 4 YEAR OLDS,5902427917,5001000040
11.08.2020,CHILDREN'S SERVICES,OLIVER GOLDSMITH PRIMARY SCHOOL,"175,663.00",OLIVER GOLDSMITH PRIMARY SCHOOL,SCHOOLS CAPITATION,5902427940,5001000051
11.08.2020,CHILDREN'S SERVICES,PETER HILLS CE SCHOOL,"75,255.00",PETER HILLS CE PRIMARY SCHOOL,SCHOOLS CAPITATION,5902427943,5001000053
11.08.2020,CHILDREN'S SERVICES,PHOENIX PRIMARY SCHOOL,"261,726.00",PHOENIX PRIMARY SCHOOL,SCHOOLS CAPITATION,5902427899,5001000032
11.08.2020,CHILDREN'S SERVICES,PILGRIM'S WAY PRIMARY SCHOOL,"99,847.00",PILGRIMS WAY PRIMARY SCHOOL,SCHOOLS CAPITATION,5902427946,5001000054
11.08.2020,CHILDREN'S SERVICES,RIVERSIDE PRIMARY SCHOOL,"142,701.00",RIVERSIDE PRIMARY SCHOOL,SCHOOLS CAPITATION,5902427949,5001000056
11.08.2020,CHILDREN'S SERVICES,ROBERT BROWNING PRIMARY SCHOOL,"107,398.00",ROBERT BROWNING PRIMARY SCHOOL,SCHOOLS CAPITATION,5902427952,5001000057
11.08.2020,CHILDREN'S SERVICES,ROTHERHITHE PRIMARY SCHOOL,"187,556.00",ROTHERHITHE PRIMARY SCHOOL,SCHOOLS CAPITATION,5902427955,5001000058
11.08.2020,CHILDREN'S SERVICES,RYE OAK PRIMARY SCHOOL,"139,853.00",RYE OAK PRIMARY SCHOOL,SCHOOLS CAPITATION,5902427958,5001000059
11.08.2020,CHILDREN'S SERVICES,IDEAL CARE SOLUTIONS LTD,265.71,SEMI INDEPENDENT CARE LEAVERS,OTHER PAYMENTS FOR CLIENTS,2103132604,1000080804
11.08.2020,CHILDREN'S SERVICES,REDACTED PERSONAL DATA,300.00,SEMI INDEPENDENT CARE LEAVERS,OTHER PAYMENTS FOR CLIENTS,REDACTED,REDACTED
11.08.2020,CHILDREN'S SERVICES,THE SALVATION ARMY,"1,184.82",SEMI INDEPENDENT CARE LEAVERS,EXTERNAL AGENCIES AND BODIES,2103132590,1000016253
11.08.2020,CHILDREN'S SERVICES,THE SALVATION ARMY,"1,260.15",SEMI INDEPENDENT CARE LEAVERS,EXTERNAL AGENCIES AND BODIES,2103132593,1000016253
11.08.2020,CHILDREN'S SERVICES,THE SALVATION ARMY,"1,274.41",SEMI INDEPENDENT CARE LEAVERS,EXTERNAL AGENCIES AND BODIES,2103132592,1000016253
11.08.2020,CHILDREN'S SERVICES,NEXT STEP CARE MANAGEMENT LTD,"2,103.57",SEMI INDEPENDENT CARE LEAVERS,EXTERNAL AGENCIES AND BODIES,2103132595,1825556
11.08.2020,CHILDREN'S SERVICES,NEXT STEP CARE MANAGEMENT LTD,"2,967.14",SEMI INDEPENDENT CARE LEAVERS,EXTERNAL AGENCIES AND BODIES,2103132591,1825556
11.08.2020,CHILDREN'S SERVICES,NEXT STEP CARE MANAGEMENT LTD,"2,989.29",SEMI INDEPENDENT CARE LEAVERS,EXTERNAL AGENCIES AND BODIES,2103132596,1825556
11.08.2020,CHILDREN'S SERVICES,BRIGHT YOUNG FUTURES LTD,"4,207.13",SEMI INDEPENDENT CARE LEAVERS,EXTERNAL AGENCIES AND BODIES,2103132601,1000083958
11.08.2020,CHILDREN'S SERVICES,REDACTED PERSONAL DATA,450.00,SEMI INDEPENDENT LAC,OTHER PAYMENTS FOR CLIENTS,REDACTED,REDACTED
11.08.2020,CHILDREN'S SERVICES,REDACTED PERSONAL DATA,"1,089.69",SEMI INDEPENDENT LAC,OTHER PAYMENTS FOR CLIENTS,REDACTED,REDACTED
11.08.2020,CHILDREN'S SERVICES,SNOWSFIELDS PRIMARY SCHOOL,"91,929.00",SNOWSFIELDS PRIMARY SCHOOL,SCHOOLS CAPITATION,5902427962,5001000061
11.08.2020,CHILDREN'S SERVICES,SOUTHWARK PARK PRIMARY SCHOOL,"178,774.00",SOUTHWARK PARK PRIMARY SCHOOL,SCHOOLS CAPITATION,5902427966,5001000062
11.08.2020,CHILDREN'S SERVICES,ST ANTHONYS RC SCHOOL,"160,830.00",ST ANTHONY'S CATHOLIC PRIMARY SCHOOL,SCHOOLS CAPITATION,5902427969,5001000064
11.08.2020,CHILDREN'S SERVICES,ST FRANCESCA CABRINI PRIMARY SCHOOL,"118,614.00",ST FRANCESCA CABRINI PRIMARY SCHOOL,SCHOOLS CAPITATION,5902427972,5001000065
11.08.2020,CHILDREN'S SERVICES,ST FRANCIS'S RC PRIMARY SCHOOL,"170,680.00",ST FRANCIS RC PRIMARY SCHOOL,SCHOOLS CAPITATION,5902427975,5001000067
11.08.2020,CHILDREN'S SERVICES,ST GEORGES RC SCHOOL,"93,320.00",ST GEORGE'S CATHEDRAL RC PRIMARY SCHOOL,SCHOOLS CAPITATION,5902427978,5001000068
11.08.2020,CHILDREN'S SERVICES,ST GEORGES CE SCHOOL,"72,854.00",ST GEORGE'S CE PRIMARY SCHOOL,SCHOOLS CAPITATION,5902427981,5001000069
11.08.2020,CHILDREN'S SERVICES,ST JAMES CE SCHOOL,"216,334.00",ST JAMES' CE PRIMARY SCHOOL,SCHOOLS CAPITATION,5902427983,5001000070
11.08.2020,CHILDREN'S SERVICES,ST JAMES THE GREAT RC SCHOOL,"93,240.00",ST JAMES THE GREAT RC PRIMARY SCHOOL,SCHOOLS CAPITATION,5902427986,5001000071
11.08.2020,CHILDREN'S SERVICES,ST JOHNS & ST CLEMENTS CE SCHOOL,"154,319.00",ST JOHN'S & ST CLEMENT'S CE PRIMARY SCHO,SCHOOLS CAPITATION,5902427991,5001000073
11.08.2020,CHILDREN'S SERVICES,ST JOHNS RC PRIMARY SCHOOL,"96,442.00",ST JOHN'S RC PRIMARY SCHOOL,SCHOOLS CAPITATION,5902427996,5001000075
11.08.2020,CHILDREN'S SERVICES,ST JOHNS WALWORTH CE SCHOOL,"91,642.00",ST JOHN'S WALWORTH CE PRIMARY SCHOOL,SCHOOLS CAPITATION,5902427989,5001000072
11.08.2020,CHILDREN'S SERVICES,ST JOSEPHS RC PRIMARY SCHOOL,"136,289.00",ST JOSEPHS RC (3475) PRIMARY SCHOOL,SCHOOLS CAPITATION,5902428002,5001000077
11.08.2020,CHILDREN'S SERVICES,ST JOSEPHS CATHOLIC PRIMARY SCHOOL,"94,676.00",ST JOSEPHS RC (3476) PRIMARY SCHOOL,SCHOOLS CAPITATION,5902428005,5001000078
11.08.2020,CHILDREN'S SERVICES,ST JOSEPHS CATHOLIC SCHOOL,"94,736.00",ST JOSEPHS RC (3484) SCHOOL,SCHOOLS CAPITATION,5902427999,5001000076
11.08.2020,CHILDREN'S SERVICES,ST JOSEPHS CATHOLIC INFANTS SCHOOL,"80,115.00",ST JOSEPHS RC INFANT(5204),SCHOOLS CAPITATION,5902427868,5001000018
11.08.2020,CHILDREN'S SERVICES,ST JOSEPHS RC JUNIOR  SCHOOL,"104,936.00",ST JOSEPHS RC JUNIOR(5203) SCHOOL,SCHOOLS CAPITATION,5902427866,5001000017
11.08.2020,CHILDREN'S SERVICES,ST JUDES CHURCH OF ENGLAND PRIMARY,"49,292.00",ST JUDE'S CE PRIMARY SCHOOL,SCHOOLS CAPITATION,5902427869,5001000019
11.08.2020,CHILDREN'S SERVICES,ST MARY MAGDALENE CE SCHOOL,"76,863.00",ST MARY MAGDALENE CE PRIMARY SCHOOL,SCHOOLS CAPITATION,5902428008,5001000080
11.08.2020,CHILDREN'S SERVICES,ST PETERS CE SCHOOL,"79,459.00",ST PETER'S CE PRIMARY SCHOOL,SCHOOLS CAPITATION,5902428010,5001000083
11.08.2020,CHILDREN'S SERVICES,ST SAVIOURS & ST OLAVES SCHOOL,"397,578.00",ST SAVIOUR & OLAVE'S CE,SCHOOLS CAPITATION,5902428013,5001000084
11.08.2020,CHILDREN'S SERVICES,NATIONAL FOSTERING AGENCY,"1,380.00",STAYING PUT,EXTERNAL AGENCIES AND BODIES,2103132598,1000038868
11.08.2020,CHILDREN'S SERVICES,TACT,"1,549.69",STAYING PUT,EXTERNAL AGENCIES AND BODIES,2103132600,1000012941
11.08.2020,CHILDREN'S SERVICES,ALPHA BIOLABORATORIES LTD,395.00,TEAM A,OTHER PAYMENTS FOR CLIENTS,5902428153,1000070674
11.08.2020,CHILDREN'S SERVICES,ZENITH CARS LTD,320.00,TEAM B,OTHER PAYMENTS FOR CLIENTS,5902428151,1000070570
11.08.2020,CHILDREN'S SERVICES,CITYGLEN LTD,540.00,TEAM B,EXTERNAL AGENCIES AND BODIES,2103132649,1000026239
11.08.2020,CHILDREN'S SERVICES,CARE O LINE,650.00,TEAM B,OTHER PAYMENTS FOR CLIENTS,2103132650,11241743
11.08.2020,CHILDREN'S SERVICES,ZENITH CARS LTD,445.00,TEAM D,HIRED VEHICLES,5902428151,1000070570
11.08.2020,CHILDREN'S SERVICES,E4 LAW LTD,845.00,TEAM D,OTHER PAYMENTS FOR CLIENTS,5902428155,1000072222
11.08.2020,CHILDREN'S SERVICES,CATHEDRAL SCHOOL OF ST SAVIOUR & MARY,"90,554.00",THE CATHEDRAL OF ST. SAVIOUR & ST OLAVES,SCHOOLS CAPITATION,5902428017,5001000088
11.08.2020,CHILDREN'S SERVICES,THE GROVE CHILDRENS CENTRE,"39,502.00",THE GROVE NURSERY SCHOOL,EARLY YEARS - 3 AND 4 YEAR OLDS,5902428020,5001000090
11.08.2020,CHILDREN'S SERVICES,THE ST THOMAS THE APOSTLE COLLEGE,"513,849.00",THE ST THOMAS THE APOSTLE COLLEGE,SCHOOLS CAPITATION,5902427994,5001000074
11.08.2020,CHILDREN'S SERVICES,TOWER BRIDGE PRIMARY SCHOOL,"89,590.00",TOWER BRIDGE PRIMARY SCHOOL,SCHOOLS CAPITATION,5902428022,5001000095
11.08.2020,CHILDREN'S SERVICES,TOWNSEND PRIMARY SCHOOL,"82,599.00",TOWNSEND PRIMARY SCHOOL,SCHOOLS CAPITATION,5902428025,5001000096
11.08.2020,CHILDREN'S SERVICES,TUKE SCHOOL,"187,485.00",TUKE SCHOOL,HIGH NEEDS - TOP UP FUNDING,5902428028,5001000097
11.08.2020,CHILDREN'S SERVICES,THE SALVATION ARMY,"1,012.33",UASC CARE LEAVERS,EXTERNAL AGENCIES AND BODIES,2103132597,1000016253
11.08.2020,CHILDREN'S SERVICES,THE SALVATION ARMY,"1,197.62",UASC CARE LEAVERS,EXTERNAL AGENCIES AND BODIES,2103132589,1000016253
11.08.2020,CHILDREN'S SERVICES,THE SALVATION ARMY,"1,274.41",UASC CARE LEAVERS,EXTERNAL AGENCIES AND BODIES,2103132588,1000016253
11.08.2020,CHILDREN'S SERVICES,THE SALVATION ARMY,"1,274.41",UASC CARE LEAVERS,EXTERNAL AGENCIES AND BODIES,2103132603,1000016253
11.08.2020,CHILDREN'S SERVICES,THE SALVATION ARMY,"1,329.90",UASC CARE LEAVERS,EXTERNAL AGENCIES AND BODIES,2103132602,1000016253
11.08.2020,CHILDREN'S SERVICES,NEXT STEP CARE MANAGEMENT LTD,"2,413.57",UASC CARE LEAVERS,EXTERNAL AGENCIES AND BODIES,2103132594,1825556
11.08.2020,CHILDREN'S SERVICES,LOOK AHEAD CARE AND SUPPORT LTD,"2,798.01",UASC CARE LEAVERS,EXTERNAL AGENCIES AND BODIES,2103132599,1000047299
11.08.2020,CHILDREN'S SERVICES,LOOK AHEAD CARE AND SUPPORT LTD,"2,960.91",UASC CARE LEAVERS,EXTERNAL AGENCIES AND BODIES,2103132587,1000047299
11.08.2020,CHILDREN'S SERVICES,VICTORY SCHOOL,"70,740.00",VICTORY PRIMARY SCHOOL,SCHOOLS CAPITATION,5902428029,5001000098
11.08.2020,COMMUNITIES,BROWNING EST MGMT ASSN,363.52,BROWNING EMB,M&M ALLOWANCE CO-OPS,5902427819,1000059362
11.08.2020,COMMUNITIES,GROVE HOTEL LTD,"1,395.00",NO RECOURSE TO PUBLIC FUNDS,ACCOMMODATION CHARGES,5902427822,1000043663
11.08.2020,COMMUNITIES,NORBURY PROPERTY SERVICES (LONDON) LTD,"4,759.00",NO RECOURSE TO PUBLIC FUNDS,ACCOMMODATION CHARGES,5902427823,1000075566
11.08.2020,COMMUNITIES,WILLOW ESTATE AGENTS (LONDON) LTD,"5,952.00",NO RECOURSE TO PUBLIC FUNDS,ACCOMMODATION CHARGES,5902427827,1000060607
11.08.2020,COMMUNITIES,HOMELY HOUSING LETS LTD,"22,963.67",NO RECOURSE TO PUBLIC FUNDS,ACCOMMODATION CHARGES,5902427825,1000050013
11.08.2020,COMMUNITIES,INSPIRE AT ST PETER'S LTD,"3,000.00",SOUTHWARK ANTI VIOLENCE UNIT,GRANTS,5902428040,1000041565
11.08.2020,COMMUNITIES,TRIDENT BUSINESS CENTRE LTD,"4,666.40",SOUTHWARK ANTI VIOLENCE UNIT,GRANTS,5902428041,1000079602
11.08.2020,COMMUNITIES,2-3 DEGREES LTD,"4,666.40",SOUTHWARK ANTI VIOLENCE UNIT,GRANTS,5902428037,1000083009
11.08.2020,COMMUNITIES,MOTIVEZ LTD,"4,666.40",SOUTHWARK ANTI VIOLENCE UNIT,GRANTS,5902428039,1000083010
11.08.2020,CUSTOMER EXPERIENCE HGF,BEAM UP LTD,"8,000.00",HOUSING OPTIONS,CONSULTANTS SERVICES,5902426552,1000083178
11.08.2020,CUSTOMER EXPERIENCE HGF,GOLDSTONE ESTATES LTD,"11,395.00",NIGHTLY TA (NSC),EXTERNAL AGENCIES AND BODIES,5902428066,1000076548
11.08.2020,CUSTOMER EXPERIENCE HGF,RELIANCE RESIDENTIAL,"3,502.38",PSL PLACEMENTS,EXTERNAL AGENCIES AND BODIES,5902427468,1000084814
11.08.2020,CUSTOMER EXPERIENCE HGF,TUNSTALL HEALTHCARE (UK) LTD,"-4,718.30",SMART MOBILE RESPONSE TEAM,EQUIPMENT PURCHASE & REPAIR,5902428362,1012297
11.08.2020,CUSTOMER EXPERIENCE HGF,TUNSTALL HEALTHCARE (UK) LTD,"4,718.30",SMART MOBILE RESPONSE TEAM,EQUIPMENT PURCHASE & REPAIR,5902428286,1012297
11.08.2020,ENVIRONMENT AND LEISURE,GEOTECHNICS LTD,"16,117.30",CAPITAL PS (LEISURE),CONSTR'N SUB CONTRACT - NON CERTIFICATED,5902428054,1000084098
11.08.2020,ENVIRONMENT DIRECTORATE,GREENHAM TRADING LTD,"1,116.63",ESTATE CLEANING-GENERAL,MATERIALS,5902428081,1000006610
11.08.2020,ENVIRONMENT DIRECTORATE,APCOA PARKING (UK) LTD,"57,087.58",PARKING OVERHEADS,OTHER CONTRACTORS,5902427816,1718645
11.08.2020,ENVIRONMENT DIRECTORATE,APCOA PARKING (UK) LTD,"238,618.13",PARKING OVERHEADS,OTHER CONTRACTORS,5902427813,1718645
11.08.2020,EXCHEQUER SERVICES,CAPITA BUSINESS SERVICES LTD,"10,455.11",CAPITA,OTHER CONTRACTORS,5902428056,1000049446
11.08.2020,EXCHEQUER SERVICES,CAPITA BUSINESS SERVICES LTD,"29,800.78",CAPITA,OTHER CONTRACTORS,5902428057,1000049446
11.08.2020,EXCHEQUER SERVICES,SWK DISABLEMENT ASSN,"1,000.00",SESS,OTHER PAYMENTS FOR CLIENTS,2103132575,1000011698
11.08.2020,EXCHEQUER SERVICES,QUEENSBOROUGH COMMUNITY CENTRE,"2,000.00",SESS,OTHER PAYMENTS FOR CLIENTS,2103132574,1000050780
11.08.2020,EXCHEQUER SERVICES,BREATHE ARTS HEALTH RESEARCH,"2,500.00",SESS,OTHER PAYMENTS FOR CLIENTS,2103132576,1000085139
11.08.2020,EXCHEQUER SERVICES,SOUTHWARK LAW CENTRE,"5,000.00",SESS,OTHER PAYMENTS FOR CLIENTS,2103132573,1981325
11.08.2020,EXTERNAL AFFAIRS,DENMAUR INDEPENDENT PAPERS LTD,"4,242.42",SOUTHWARK LIFE,MARKETING & PUBLICITY SERVICES,5902428046,1000064794
11.08.2020,FINANCE & GOVERNANCE,STAFFINO,"1,425.00",ADMINISTRATION SUPPORT,SOFTWARE,6101947653,INTERNATIONAL PAYMENT
11.08.2020,FINANCE & GOVERNANCE,STAFFINO,"1,092.50",HOME OWNERSHIP,SOFTWARE,6101947653,INTERNATIONAL PAYMENT
11.08.2020,FINANCE DIRECTOR,TRANSUNION INTERNATIONAL UK LTD,"4,800.00",ANTI-FRAUD AND INVESTIGATIONS,PAYMENTS FOR FINANCIAL SERVICES,5902427639,1000069615
11.08.2020,HOUSING GENERAL FUND,WOODLANDS PETCARE LTD,"1,667.10",CAPITAL PS (HOUSING GF),CONSTRUCTION SITE COSTS,5902428038,1000063009
11.08.2020,HOUSING GENERAL FUND,STONEGROVE LIMITED,"-20,286.00",CAPITAL PS (REGEN),CONSTRUCTION MAIN CONTRACT,5902428358,3000001525
11.08.2020,HOUSING GENERAL FUND,STONEGROVE LIMITED,"20,286.00",CAPITAL PS (REGEN),CONSTRUCTION MAIN CONTRACT,5902428315,3000001525
11.08.2020,HOUSING HRA,PRB ESTATES LTD,"39,406.57",CAPITAL PS (HRA),CONSTRUCTION MAIN CONTRACT,2103132567,3000001691
11.08.2020,HOUSING HRA,NEILCOTT SPECIAL WORKS LTD,"57,997.06",CAPITAL PS (HRA),CONSTRUCTION MAIN CONTRACT -CERTIFICATED,2103132700,3000000770
11.08.2020,HOUSING HRA,WYG ENVIRONMENT PLANNING TRANSPORT LTD,470.00,CAPITAL PS (REGEN),CONSTRUCTION FEES  - EXTERNAL,5902427818,1000078157
11.08.2020,HOUSING HRA,WYG ENVIRONMENT PLANNING TRANSPORT LTD,"3,700.00",CAPITAL PS (REGEN),CONSTRUCTION FEES - ENGINEER,5902427834,1000078157
11.08.2020,LEISURE DIRECTORATE,SIMPLY HIRE LTD,431.79,FACILITIES MAINTENANCE,BUILDING R&M,5902427803,1000018354
11.08.2020,LEISURE DIRECTORATE,SIMPLY HIRE LTD,602.29,FACILITIES MAINTENANCE,BUILDING R&M,5902427804,1000018354
11.08.2020,MODERNISATION HGF,VEOLIA ES (UK)LTD,"-4,263.09",REFUSE - VEOLIA,WASTE DISPOSAL CONTRACT,5902427837,1824835
11.08.2020,MODERNISATION HGF,VEOLIA ES (UK)LTD,"-4,263.09",REFUSE - VEOLIA,WASTE DISPOSAL CONTRACT,5902427838,1824835
11.08.2020,MODERNISATION HGF,VEOLIA ES (UK)LTD,-587.40,REFUSE - VEOLIA,WASTE DISPOSAL CONTRACT,5902427839,1824835
11.08.2020,MODERNISATION HGF,VEOLIA ES (UK)LTD,-407.52,REFUSE - VEOLIA,WASTE DISPOSAL CONTRACT,5902428076,1824835
11.08.2020,MODERNISATION HGF,VEOLIA ES (UK)LTD,"1,597.00",REFUSE - VEOLIA,WASTE DISPOSAL CONTRACT,5902427832,1824835
11.08.2020,MODERNISATION HGF,VEOLIA ES (UK)LTD,"1,865.92",REFUSE - VEOLIA,WASTE DISPOSAL CONTRACT,5902428075,1824835
11.08.2020,MODERNISATION HGF,VEOLIA ES (UK)LTD,"7,458.63",REFUSE - VEOLIA,WASTE DISPOSAL CONTRACT,5902428084,1824835
11.08.2020,MODERNISATION HGF,VEOLIA ES (UK)LTD,"7,656.70",REFUSE - VEOLIA,WASTE DISPOSAL CONTRACT,5902427835,1824835
11.08.2020,PLANNING AND TRANSPORT,SOUTHWARK NEWSPAPER LTD,504.00,DEVELOPMENT CONTROL ADMINSTRATION,MARKETING & PUBLICITY SERVICES,5902427820,1556957
11.08.2020,PLANNING AND TRANSPORT,SOUTHWARK NEWSPAPER LTD,504.00,DEVELOPMENT CONTROL ADMINSTRATION,MARKETING & PUBLICITY SERVICES,5902427821,1556957
11.08.2020,REGENERATION,PRICEWATERHOUSECOOPERS LLP,"6,850.00",CANADA WATER,PROFESSIONAL FEES,5902427830,1000022906
11.08.2020,REGENERATION,PRICEWATERHOUSECOOPERS LLP,"8,250.00",CANADA WATER,PROFESSIONAL FEES,5902427829,1000022906
11.08.2020,RESIDENT SERVICES,EDF ENERGY PLC,-454.04,OPERATIONS/OFFICES ACCOMMODATION,ELECTRICITY,5902428361,1008746
11.08.2020,RESIDENT SERVICES,BRITISH GAS TRADING LTD,261.37,OPERATIONS/OFFICES ACCOMMODATION,ELECTRICITY,5902428068,1000055977
11.08.2020,RESIDENT SERVICES,EDF ENERGY PLC,454.04,OPERATIONS/OFFICES ACCOMMODATION,ELECTRICITY,5902428350,1008746
11.08.2020,RESIDENT SERVICES,EDF ENERGY PLC,996.15,OPERATIONS/OFFICES ACCOMMODATION,ELECTRICITY,5902428112,1008746
11.08.2020,RESIDENT SERVICES,PINNACLE POWER LTD,"2,999.50",PRIVATE SERVICE CHARGES,SERVICE CHARGES,5902428058,1000081494
11.08.2020,RESIDENT SERVICES,CROWN HOUSING LTD,"1,410.50",TA PLACEMENTS,EXTERNAL AGENCIES AND BODIES,5902427411,1000075070
11.08.2020,RESIDENT SERVICES,NATIONWIDE ACCOMMODATION,"6,956.82",TA PLACEMENTS,EXTERNAL AGENCIES AND BODIES,5902428060,1000076112
11.08.2020,SBS OPERATIONS,TRAVIS PERKINS TRADING COMPANY LTD,304.17,NUNHEAD DD,MATERIALS,5902428148,1514319
11.08.2020,SBS OPERATIONS,TRAVIS PERKINS TRADING COMPANY LTD,335.90,SBS AIDS AND ADAPTATIONS,MATERIALS,5902428103,1514319
11.08.2020,SBS OPERATIONS,TRAVIS PERKINS TRADING COMPANY LTD,961.53,SBS AIDS AND ADAPTATIONS,MATERIALS,5902428100,1514319
11.08.2020,SBS SUPPORT,TRAVIS PERKINS TRADING COMPANY LTD,262.44,R & M OVERHEADS,MATERIALS,5902428090,1514319
11.08.2020,SBS SUPPORT,ACCLAIM HANDLING PLC,346.66,STORES / LOGISTICS,"CLOTHING, UNIFORMS & LAUNDRY",5902427165,1000008515
11.08.2020,SOUTHWARK BUILDING SERVICES,TRAVIS PERKINS TRADING COMPANY LTD,251.80,STORES/LOGISTICS,CREDITORS -GR/IR CLEARING ACCOUNT,5902428052,1514319
11.08.2020,SOUTHWARK BUILDING SERVICES,TRAVIS PERKINS TRADING COMPANY LTD,252.00,STORES/LOGISTICS,CREDITORS -GR/IR CLEARING ACCOUNT,5902427800,1514319
11.08.2020,SOUTHWARK BUILDING SERVICES,TRAVIS PERKINS TRADING COMPANY LTD,254.00,STORES/LOGISTICS,CREDITORS -GR/IR CLEARING ACCOUNT,5902428052,1514319
11.08.2020,SOUTHWARK BUILDING SERVICES,TRAVIS PERKINS TRADING COMPANY LTD,254.40,STORES/LOGISTICS,CREDITORS -GR/IR CLEARING ACCOUNT,5902428052,1514319
11.08.2020,SOUTHWARK BUILDING SERVICES,TRAVIS PERKINS TRADING COMPANY LTD,275.40,STORES/LOGISTICS,CREDITORS -GR/IR CLEARING ACCOUNT,5902428052,1514319
11.08.2020,SOUTHWARK BUILDING SERVICES,TRAVIS PERKINS TRADING COMPANY LTD,276.00,STORES/LOGISTICS,CREDITORS -GR/IR CLEARING ACCOUNT,5902428052,1514319
11.08.2020,SOUTHWARK BUILDING SERVICES,TRAVIS PERKINS TRADING COMPANY LTD,280.00,STORES/LOGISTICS,CREDITORS -GR/IR CLEARING ACCOUNT,5902428052,1514319
11.08.2020,SOUTHWARK BUILDING SERVICES,TRAVIS PERKINS TRADING COMPANY LTD,285.00,STORES/LOGISTICS,CREDITORS -GR/IR CLEARING ACCOUNT,5902428052,1514319
11.08.2020,SOUTHWARK BUILDING SERVICES,TRAVIS PERKINS TRADING COMPANY LTD,292.20,STORES/LOGISTICS,CREDITORS -GR/IR CLEARING ACCOUNT,5902428052,1514319
11.08.2020,SOUTHWARK BUILDING SERVICES,TRAVIS PERKINS TRADING COMPANY LTD,310.80,STORES/LOGISTICS,CREDITORS -GR/IR CLEARING ACCOUNT,5902427800,1514319
11.08.2020,SOUTHWARK BUILDING SERVICES,TRAVIS PERKINS TRADING COMPANY LTD,317.50,STORES/LOGISTICS,CREDITORS -GR/IR CLEARING ACCOUNT,5902427801,1514319
11.08.2020,SOUTHWARK BUILDING SERVICES,TRAVIS PERKINS TRADING COMPANY LTD,317.50,STORES/LOGISTICS,CREDITORS -GR/IR CLEARING ACCOUNT,5902428052,1514319
11.08.2020,SOUTHWARK BUILDING SERVICES,TRAVIS PERKINS TRADING COMPANY LTD,324.00,STORES/LOGISTICS,CREDITORS -GR/IR CLEARING ACCOUNT,5902427800,1514319
11.08.2020,SOUTHWARK BUILDING SERVICES,TRAVIS PERKINS TRADING COMPANY LTD,325.80,STORES/LOGISTICS,CREDITORS -GR/IR CLEARING ACCOUNT,5902428052,1514319
11.08.2020,SOUTHWARK BUILDING SERVICES,TRAVIS PERKINS TRADING COMPANY LTD,338.60,STORES/LOGISTICS,CREDITORS -GR/IR CLEARING ACCOUNT,5902428052,1514319
11.08.2020,SOUTHWARK BUILDING SERVICES,TRAVIS PERKINS TRADING COMPANY LTD,344.96,STORES/LOGISTICS,CREDITORS -GR/IR CLEARING ACCOUNT,5902427801,1514319
11.08.2020,SOUTHWARK BUILDING SERVICES,TRAVIS PERKINS TRADING COMPANY LTD,359.04,STORES/LOGISTICS,CREDITORS -GR/IR CLEARING ACCOUNT,5902428052,1514319
11.08.2020,SOUTHWARK BUILDING SERVICES,TRAVIS PERKINS TRADING COMPANY LTD,367.71,STORES/LOGISTICS,CREDITORS -GR/IR CLEARING ACCOUNT,5902427792,1514319
11.08.2020,SOUTHWARK BUILDING SERVICES,TRAVIS PERKINS TRADING COMPANY LTD,374.49,STORES/LOGISTICS,CREDITORS -GR/IR CLEARING ACCOUNT,5902427795,1514319
11.08.2020,SOUTHWARK BUILDING SERVICES,TRAVIS PERKINS TRADING COMPANY LTD,399.00,STORES/LOGISTICS,CREDITORS -GR/IR CLEARING ACCOUNT,5902428052,1514319
11.08.2020,SOUTHWARK BUILDING SERVICES,TRAVIS PERKINS TRADING COMPANY LTD,406.35,STORES/LOGISTICS,CREDITORS -GR/IR CLEARING ACCOUNT,5902427801,1514319
11.08.2020,SOUTHWARK BUILDING SERVICES,TRAVIS PERKINS TRADING COMPANY LTD,409.40,STORES/LOGISTICS,CREDITORS -GR/IR CLEARING ACCOUNT,5902428052,1514319
11.08.2020,SOUTHWARK BUILDING SERVICES,TRAVIS PERKINS TRADING COMPANY LTD,420.00,STORES/LOGISTICS,CREDITORS -GR/IR CLEARING ACCOUNT,5902428052,1514319
11.08.2020,SOUTHWARK BUILDING SERVICES,TRAVIS PERKINS TRADING COMPANY LTD,470.00,STORES/LOGISTICS,CREDITORS -GR/IR CLEARING ACCOUNT,5902428052,1514319
11.08.2020,SOUTHWARK BUILDING SERVICES,TRAVIS PERKINS TRADING COMPANY LTD,500.00,STORES/LOGISTICS,CREDITORS -GR/IR CLEARING ACCOUNT,5902428052,1514319
11.08.2020,SOUTHWARK BUILDING SERVICES,TRAVIS PERKINS TRADING COMPANY LTD,504.00,STORES/LOGISTICS,CREDITORS -GR/IR CLEARING ACCOUNT,5902427800,1514319
11.08.2020,SOUTHWARK BUILDING SERVICES,TRAVIS PERKINS TRADING COMPANY LTD,540.00,STORES/LOGISTICS,CREDITORS -GR/IR CLEARING ACCOUNT,5902427792,1514319
11.08.2020,SOUTHWARK BUILDING SERVICES,TRAVIS PERKINS TRADING COMPANY LTD,546.40,STORES/LOGISTICS,CREDITORS -GR/IR CLEARING ACCOUNT,5902427801,1514319
11.08.2020,SOUTHWARK BUILDING SERVICES,TRAVIS PERKINS TRADING COMPANY LTD,576.00,STORES/LOGISTICS,CREDITORS -GR/IR CLEARING ACCOUNT,5902427800,1514319
11.08.2020,SOUTHWARK BUILDING SERVICES,TRAVIS PERKINS TRADING COMPANY LTD,612.00,STORES/LOGISTICS,CREDITORS -GR/IR CLEARING ACCOUNT,5902428052,1514319
11.08.2020,SOUTHWARK BUILDING SERVICES,TRAVIS PERKINS TRADING COMPANY LTD,629.70,STORES/LOGISTICS,CREDITORS -GR/IR CLEARING ACCOUNT,5902428052,1514319
11.08.2020,SOUTHWARK BUILDING SERVICES,TRAVIS PERKINS TRADING COMPANY LTD,632.60,STORES/LOGISTICS,CREDITORS -GR/IR CLEARING ACCOUNT,5902428052,1514319
11.08.2020,SOUTHWARK BUILDING SERVICES,TRAVIS PERKINS TRADING COMPANY LTD,660.54,STORES/LOGISTICS,CREDITORS -GR/IR CLEARING ACCOUNT,5902427801,1514319
11.08.2020,SOUTHWARK BUILDING SERVICES,TRAVIS PERKINS TRADING COMPANY LTD,765.00,STORES/LOGISTICS,CREDITORS -GR/IR CLEARING ACCOUNT,5902428052,1514319
11.08.2020,SOUTHWARK BUILDING SERVICES,TRAVIS PERKINS TRADING COMPANY LTD,850.00,STORES/LOGISTICS,CREDITORS -GR/IR CLEARING ACCOUNT,5902428052,1514319
11.08.2020,SOUTHWARK BUILDING SERVICES,TRAVIS PERKINS TRADING COMPANY LTD,873.00,STORES/LOGISTICS,CREDITORS -GR/IR CLEARING ACCOUNT,5902428052,1514319
11.08.2020,SOUTHWARK BUILDING SERVICES,TRAVIS PERKINS TRADING COMPANY LTD,877.50,STORES/LOGISTICS,CREDITORS -GR/IR CLEARING ACCOUNT,5902427795,1514319
11.08.2020,SOUTHWARK BUILDING SERVICES,TRAVIS PERKINS TRADING COMPANY LTD,878.00,STORES/LOGISTICS,CREDITORS -GR/IR CLEARING ACCOUNT,5902427792,1514319
11.08.2020,SOUTHWARK BUILDING SERVICES,TRAVIS PERKINS TRADING COMPANY LTD,890.00,STORES/LOGISTICS,CREDITORS -GR/IR CLEARING ACCOUNT,5902428052,1514319
11.08.2020,SOUTHWARK BUILDING SERVICES,TRAVIS PERKINS TRADING COMPANY LTD,924.00,STORES/LOGISTICS,CREDITORS -GR/IR CLEARING ACCOUNT,5902427792,1514319
11.08.2020,SOUTHWARK BUILDING SERVICES,TRAVIS PERKINS TRADING COMPANY LTD,"1,068.36",STORES/LOGISTICS,CREDITORS -GR/IR CLEARING ACCOUNT,5902427792,1514319
11.08.2020,SOUTHWARK BUILDING SERVICES,TRAVIS PERKINS TRADING COMPANY LTD,"1,080.00",STORES/LOGISTICS,CREDITORS -GR/IR CLEARING ACCOUNT,5902428052,1514319
11.08.2020,SOUTHWARK BUILDING SERVICES,TRAVIS PERKINS TRADING COMPANY LTD,"1,197.00",STORES/LOGISTICS,CREDITORS -GR/IR CLEARING ACCOUNT,5902428052,1514319
11.08.2020,SOUTHWARK BUILDING SERVICES,TRAVIS PERKINS TRADING COMPANY LTD,"1,232.00",STORES/LOGISTICS,CREDITORS -GR/IR CLEARING ACCOUNT,5902428052,1514319
11.08.2020,SOUTHWARK BUILDING SERVICES,TRAVIS PERKINS TRADING COMPANY LTD,"1,245.00",STORES/LOGISTICS,CREDITORS -GR/IR CLEARING ACCOUNT,5902428052,1514319
11.08.2020,SOUTHWARK BUILDING SERVICES,TRAVIS PERKINS TRADING COMPANY LTD,"1,900.80",STORES/LOGISTICS,CREDITORS -GR/IR CLEARING ACCOUNT,5902427801,1514319
11.08.2020,SOUTHWARK BUILDING SERVICES,TRAVIS PERKINS TRADING COMPANY LTD,"1,912.80",STORES/LOGISTICS,CREDITORS -GR/IR CLEARING ACCOUNT,5902427801,1514319
11.08.2020,SOUTHWARK BUILDING SERVICES,TRAVIS PERKINS TRADING COMPANY LTD,"2,178.00",STORES/LOGISTICS,CREDITORS -GR/IR CLEARING ACCOUNT,5902428052,1514319
11.08.2020,SOUTHWARK BUILDING SERVICES,AGENTIS WORKWEAR LTD,"2,860.00",STORES/LOGISTICS,CREDITORS -GR/IR CLEARING ACCOUNT,5902427805,1000065833
11.08.2020,SOUTHWARK BUILDING SERVICES,TRAVIS PERKINS TRADING COMPANY LTD,"7,502.00",STORES/LOGISTICS,CREDITORS -GR/IR CLEARING ACCOUNT,5902428052,1514319
11.08.2020,SOUTHWARK BUILDING SERVICES,AGENTIS WORKWEAR LTD,"171,600.00",STORES/LOGISTICS,CREDITORS -GR/IR CLEARING ACCOUNT,5902427806,1000065833
12.08.2020,ADULT SOCIAL CARE,HOUSING 21,774.64,APPOINTEESHIPS,OTHER PAYMENTS FOR CLIENTS,2103133652,1000037120
12.08.2020,ADULT SOCIAL CARE,INSPIRE SUPPORT WORKERS LTD,"1,944.00",DISCHARGE TO ACCESS,SUPPORTED LIVING,2103133626,1000080725
12.08.2020,ADULT SOCIAL CARE,REDACTED PERSONAL DATA,314.00,FAMILY LINK,PAYMENTS TO CARERS,REDACTED,REDACTED
12.08.2020,ADULT SOCIAL CARE,INSPIRE SUPPORT WORKERS LTD,324.00,LD LTS 18-64,SUPPORTED LIVING,2103133628,1000080725
12.08.2020,ADULT SOCIAL CARE,CONTACT PROFESSIONALS,465.00,LD LTS 18-64,SUPPORTED LIVING,2103133630,1000057263
12.08.2020,ADULT SOCIAL CARE,INSPIRE SUPPORT WORKERS LTD,486.00,LD LTS 18-64,SUPPORTED LIVING,2103133629,1000080725
12.08.2020,ADULT SOCIAL CARE,INSPIRE SUPPORT WORKERS LTD,720.00,LD LTS 18-64,SUPPORTED LIVING,2103133633,1000080725
12.08.2020,ADULT SOCIAL CARE,INSPIRE SUPPORT WORKERS LTD,"5,775.00",LD LTS 18-64,SUPPORTED LIVING,2103133631,1000080725
12.08.2020,ADULT SOCIAL CARE,BUDDI LTD,420.00,MH LTS 18-64,EQUIPMENT PURCHASE & REPAIR,2103133618,1000067243
12.08.2020,ADULT SOCIAL CARE,SERVESOUL LTD,262.87,PHY LTS 65+,HOMECARE - SPOT,2103133595,1000081503
12.08.2020,ADULT SOCIAL CARE,SERVESOUL LTD,292.08,PHY LTS 65+,HOMECARE - SPOT,2103133601,1000081503
12.08.2020,ADULT SOCIAL CARE,SERVESOUL LTD,346.32,PHY LTS 65+,HOMECARE - SPOT,2103133605,1000081503
12.08.2020,ADULT SOCIAL CARE,SERVESOUL LTD,425.60,PHY LTS 65+,HOMECARE - SPOT,2103133596,1000081503
12.08.2020,ADULT SOCIAL CARE,SERVESOUL LTD,525.74,PHY LTS 65+,HOMECARE - SPOT,2103133610,1000081503
12.08.2020,ADULT SOCIAL CARE,SERVESOUL LTD,525.74,PHY LTS 65+,HOMECARE - SPOT,2103133611,1000081503
12.08.2020,ADULT SOCIAL CARE,SERVESOUL LTD,525.74,PHY LTS 65+,HOMECARE - SPOT,2103133612,1000081503
12.08.2020,ADULT SOCIAL CARE,SERVESOUL LTD,588.32,PHY LTS 65+,HOMECARE - SPOT,2103133608,1000081503
12.08.2020,ADULT SOCIAL CARE,SERVESOUL LTD,650.91,PHY LTS 65+,HOMECARE - SPOT,2103133609,1000081503
12.08.2020,ADULT SOCIAL CARE,SERVESOUL LTD,671.77,PHY LTS 65+,HOMECARE - SPOT,2103133593,1000081503
12.08.2020,ADULT SOCIAL CARE,REDACTED PERSONAL DATA,"6,162.53",PHY LTS 65+,NURSING PLACEMENTS FEES,REDACTED,REDACTED
12.08.2020,ADULT SOCIAL CARE,RIVERSIDE,"62,259.24",S75 SUPHSG SCH LBS LEAD,EXTERNAL AGENCIES AND BODIES,5902428297,11134939
12.08.2020,ASSET MANAGEMENT,BELSHAW & CURTIN SOLICITORS,500.00,DISREPAIR,PAYMENTS FOR LEGAL SERVICES,2103133639,1767379
12.08.2020,ASSET MANAGEMENT,ASHFORDS LLP,795.77,DISREPAIR,PAYMENTS FOR LEGAL SERVICES,2103133636,1000055865
12.08.2020,ASSET MANAGEMENT,CHESHIRE ESTATE AND LEGAL LTD,941.68,DISREPAIR,PAYMENTS FOR LEGAL SERVICES,2103133644,1000081908
12.08.2020,ASSET MANAGEMENT,ASHFORDS LLP,"1,000.00",DISREPAIR,PAYMENTS FOR LEGAL SERVICES,2103133638,1000055865
12.08.2020,ASSET MANAGEMENT,ASHFORDS LLP,"1,000.00",DISREPAIR,PAYMENTS FOR LEGAL SERVICES,2103133640,1000055865
12.08.2020,ASSET MANAGEMENT,CHESHIRE ESTATE AND LEGAL LTD,"1,359.74",DISREPAIR,PAYMENTS FOR LEGAL SERVICES,2103133643,1000081908
12.08.2020,ASSET MANAGEMENT,ASHFORDS LLP,"5,000.00",DISREPAIR,PAYMENTS FOR LEGAL SERVICES,2103133642,1000055865
12.08.2020,ASSET MANAGEMENT,OSBORNES SOLICITORS,"8,000.00",DISREPAIR,PAYMENTS FOR LEGAL SERVICES,2103133637,1000052598
12.08.2020,ASSET MANAGEMENT,SOUTHWARK LAW CENTRE,"9,000.00",DISREPAIR,PAYMENTS FOR LEGAL SERVICES,2103133645,1931684
12.08.2020,ASSET MANAGEMENT,CAMBRIDGE HOUSE & TALBOT,"18,419.64",DISREPAIR,PAYMENTS FOR LEGAL SERVICES,2103133641,1139414
12.08.2020,CENTRAL FUNCTIONS,CALFORD SEADEN LLP,"10,478.43",LEDBURY ESTATE,PLANNED MAINTENANCE,5902428281,1061592
12.08.2020,CHIEF EXECUTIVE,MORRIS + COMPANY LTD,"3,020.00",CAPITAL PS (REGEN),CONSTRUCTION FEES,5902428292,1000084228
12.08.2020,CHIEF EXECUTIVE,MORRIS + COMPANY LTD,"7,296.00",CAPITAL PS (REGEN),CONSTRUCTION FEES,5902428293,1000084228
12.08.2020,CHIEF EXECUTIVE,TURKINGTON DESIGN STUDIO LTD,"8,950.00",CAPITAL PS (REGEN),CONSTRUCTION FEES - ARCHITECT,5902428333,1000082900
12.08.2020,CHILDREN'S SERVICES,REDACTED PERSONAL DATA,251.12,ADOPTION ALLOWANCES,PAYMENTS TO CARERS,REDACTED,REDACTED
12.08.2020,CHILDREN'S SERVICES,REDACTED PERSONAL DATA,251.94,ADOPTION ALLOWANCES,PAYMENTS TO CARERS,REDACTED,REDACTED
12.08.2020,CHILDREN'S SERVICES,REDACTED PERSONAL DATA,252.90,ADOPTION ALLOWANCES,PAYMENTS TO CARERS,REDACTED,REDACTED
12.08.2020,CHILDREN'S SERVICES,REDACTED PERSONAL DATA,253.56,ADOPTION ALLOWANCES,PAYMENTS TO CARERS,REDACTED,REDACTED
12.08.2020,CHILDREN'S SERVICES,REDACTED PERSONAL DATA,255.22,ADOPTION ALLOWANCES,PAYMENTS TO CARERS,REDACTED,REDACTED
12.08.2020,CHILDREN'S SERVICES,REDACTED PERSONAL DATA,269.22,ADOPTION ALLOWANCES,PAYMENTS TO CARERS,REDACTED,REDACTED
12.08.2020,CHILDREN'S SERVICES,REDACTED PERSONAL DATA,278.54,ADOPTION ALLOWANCES,PAYMENTS TO CARERS,REDACTED,REDACTED
12.08.2020,CHILDREN'S SERVICES,REDACTED PERSONAL DATA,293.98,ADOPTION ALLOWANCES,PAYMENTS TO CARERS,REDACTED,REDACTED
12.08.2020,CHILDREN'S SERVICES,REDACTED PERSONAL DATA,319.36,ADOPTION ALLOWANCES,PAYMENTS TO CARERS,REDACTED,REDACTED
12.08.2020,CHILDREN'S SERVICES,REDACTED PERSONAL DATA,351.42,ADOPTION ALLOWANCES,PAYMENTS TO CARERS,REDACTED,REDACTED
12.08.2020,CHILDREN'S SERVICES,REDACTED PERSONAL DATA,359.44,ADOPTION ALLOWANCES,PAYMENTS TO CARERS,REDACTED,REDACTED
12.08.2020,CHILDREN'S SERVICES,REDACTED PERSONAL DATA,368.52,ADOPTION ALLOWANCES,PAYMENTS TO CARERS,REDACTED,REDACTED
12.08.2020,CHILDREN'S SERVICES,REDACTED PERSONAL DATA,375.54,ADOPTION ALLOWANCES,PAYMENTS TO CARERS,REDACTED,REDACTED
12.08.2020,CHILDREN'S SERVICES,REDACTED PERSONAL DATA,375.54,ADOPTION ALLOWANCES,PAYMENTS TO CARERS,REDACTED,REDACTED
12.08.2020,CHILDREN'S SERVICES,REDACTED PERSONAL DATA,375.54,ADOPTION ALLOWANCES,PAYMENTS TO CARERS,REDACTED,REDACTED
12.08.2020,CHILDREN'S SERVICES,REDACTED PERSONAL DATA,375.54,ADOPTION ALLOWANCES,PAYMENTS TO CARERS,REDACTED,REDACTED
12.08.2020,CHILDREN'S SERVICES,REDACTED PERSONAL DATA,375.54,ADOPTION ALLOWANCES,PAYMENTS TO CARERS,REDACTED,REDACTED
12.08.2020,CHILDREN'S SERVICES,REDACTED PERSONAL DATA,375.54,ADOPTION ALLOWANCES,PAYMENTS TO CARERS,REDACTED,REDACTED
12.08.2020,CHILDREN'S SERVICES,REDACTED PERSONAL DATA,375.54,ADOPTION ALLOWANCES,PAYMENTS TO CARERS,REDACTED,REDACTED
12.08.2020,CHILDREN'S SERVICES,REDACTED PERSONAL DATA,375.54,ADOPTION ALLOWANCES,PAYMENTS TO CARERS,REDACTED,REDACTED
12.08.2020,CHILDREN'S SERVICES,REDACTED PERSONAL DATA,382.30,ADOPTION ALLOWANCES,PAYMENTS TO CARERS,REDACTED,REDACTED
12.08.2020,CHILDREN'S SERVICES,REDACTED PERSONAL DATA,382.30,ADOPTION ALLOWANCES,PAYMENTS TO CARERS,REDACTED,REDACTED
12.08.2020,CHILDREN'S SERVICES,REDACTED PERSONAL DATA,382.30,ADOPTION ALLOWANCES,PAYMENTS TO CARERS,REDACTED,REDACTED
12.08.2020,CHILDREN'S SERVICES,REDACTED PERSONAL DATA,382.30,ADOPTION ALLOWANCES,PAYMENTS TO CARERS,REDACTED,REDACTED
12.08.2020,CHILDREN'S SERVICES,REDACTED PERSONAL DATA,386.00,ADOPTION ALLOWANCES,PAYMENTS TO CARERS,REDACTED,REDACTED
12.08.2020,CHILDREN'S SERVICES,REDACTED PERSONAL DATA,386.00,ADOPTION ALLOWANCES,PAYMENTS TO CARERS,REDACTED,REDACTED
12.08.2020,CHILDREN'S SERVICES,REDACTED PERSONAL DATA,400.84,ADOPTION ALLOWANCES,PAYMENTS TO CARERS,REDACTED,REDACTED
12.08.2020,CHILDREN'S SERVICES,REDACTED PERSONAL DATA,451.80,ADOPTION ALLOWANCES,PAYMENTS TO CARERS,REDACTED,REDACTED
12.08.2020,CHILDREN'S SERVICES,REDACTED PERSONAL DATA,457.14,ADOPTION ALLOWANCES,PAYMENTS TO CARERS,REDACTED,REDACTED
12.08.2020,CHILDREN'S SERVICES,REDACTED PERSONAL DATA,465.48,ADOPTION ALLOWANCES,PAYMENTS TO CARERS,REDACTED,REDACTED
12.08.2020,CHILDREN'S SERVICES,REDACTED PERSONAL DATA,465.52,ADOPTION ALLOWANCES,PAYMENTS TO CARERS,REDACTED,REDACTED
12.08.2020,CHILDREN'S SERVICES,REDACTED PERSONAL DATA,465.54,ADOPTION ALLOWANCES,PAYMENTS TO CARERS,REDACTED,REDACTED
12.08.2020,CHILDREN'S SERVICES,REDACTED PERSONAL DATA,465.54,ADOPTION ALLOWANCES,PAYMENTS TO CARERS,REDACTED,REDACTED
12.08.2020,CHILDREN'S SERVICES,REDACTED PERSONAL DATA,465.54,ADOPTION ALLOWANCES,PAYMENTS TO CARERS,REDACTED,REDACTED
12.08.2020,CHILDREN'S SERVICES,REDACTED PERSONAL DATA,484.92,ADOPTION ALLOWANCES,PAYMENTS TO CARERS,REDACTED,REDACTED
12.08.2020,CHILDREN'S SERVICES,REDACTED PERSONAL DATA,485.22,ADOPTION ALLOWANCES,PAYMENTS TO CARERS,REDACTED,REDACTED
12.08.2020,CHILDREN'S SERVICES,REDACTED PERSONAL DATA,500.00,ADOPTION ALLOWANCES,PAYMENTS TO CARERS,REDACTED,REDACTED
12.08.2020,CHILDREN'S SERVICES,REDACTED PERSONAL DATA,502.00,ADOPTION ALLOWANCES,PAYMENTS TO CARERS,REDACTED,REDACTED
12.08.2020,CHILDREN'S SERVICES,REDACTED PERSONAL DATA,510.96,ADOPTION ALLOWANCES,PAYMENTS TO CARERS,REDACTED,REDACTED
12.08.2020,CHILDREN'S SERVICES,REDACTED PERSONAL DATA,512.02,ADOPTION ALLOWANCES,PAYMENTS TO CARERS,REDACTED,REDACTED
12.08.2020,CHILDREN'S SERVICES,REDACTED PERSONAL DATA,530.00,ADOPTION ALLOWANCES,PAYMENTS TO CARERS,REDACTED,REDACTED
12.08.2020,CHILDREN'S SERVICES,REDACTED PERSONAL DATA,559.06,ADOPTION ALLOWANCES,PAYMENTS TO CARERS,REDACTED,REDACTED
12.08.2020,CHILDREN'S SERVICES,REDACTED PERSONAL DATA,588.42,ADOPTION ALLOWANCES,PAYMENTS TO CARERS,REDACTED,REDACTED
12.08.2020,CHILDREN'S SERVICES,REDACTED PERSONAL DATA,618.60,ADOPTION ALLOWANCES,PAYMENTS TO CARERS,REDACTED,REDACTED
12.08.2020,CHILDREN'S SERVICES,REDACTED PERSONAL DATA,623.94,ADOPTION ALLOWANCES,PAYMENTS TO CARERS,REDACTED,REDACTED
12.08.2020,CHILDREN'S SERVICES,REDACTED PERSONAL DATA,635.34,ADOPTION ALLOWANCES,PAYMENTS TO CARERS,REDACTED,REDACTED
12.08.2020,CHILDREN'S SERVICES,REDACTED PERSONAL DATA,640.90,ADOPTION ALLOWANCES,PAYMENTS TO CARERS,REDACTED,REDACTED
12.08.2020,CHILDREN'S SERVICES,REDACTED PERSONAL DATA,652.90,ADOPTION ALLOWANCES,PAYMENTS TO CARERS,REDACTED,REDACTED
12.08.2020,CHILDREN'S SERVICES,REDACTED PERSONAL DATA,652.90,ADOPTION ALLOWANCES,PAYMENTS TO CARERS,REDACTED,REDACTED
12.08.2020,CHILDREN'S SERVICES,REDACTED PERSONAL DATA,653.06,ADOPTION ALLOWANCES,PAYMENTS TO CARERS,REDACTED,REDACTED
12.08.2020,CHILDREN'S SERVICES,REDACTED PERSONAL DATA,660.00,ADOPTION ALLOWANCES,PAYMENTS TO CARERS,REDACTED,REDACTED
12.08.2020,CHILDREN'S SERVICES,REDACTED PERSONAL DATA,660.00,ADOPTION ALLOWANCES,PAYMENTS TO CARERS,REDACTED,REDACTED
12.08.2020,CHILDREN'S SERVICES,REDACTED PERSONAL DATA,682.30,ADOPTION ALLOWANCES,PAYMENTS TO CARERS,REDACTED,REDACTED
12.08.2020,CHILDREN'S SERVICES,REDACTED PERSONAL DATA,682.30,ADOPTION ALLOWANCES,PAYMENTS TO CARERS,REDACTED,REDACTED
12.08.2020,CHILDREN'S SERVICES,REDACTED PERSONAL DATA,695.12,ADOPTION ALLOWANCES,PAYMENTS TO CARERS,REDACTED,REDACTED
12.08.2020,CHILDREN'S SERVICES,REDACTED PERSONAL DATA,705.24,ADOPTION ALLOWANCES,PAYMENTS TO CARERS,REDACTED,REDACTED
12.08.2020,CHILDREN'S SERVICES,REDACTED PERSONAL DATA,712.30,ADOPTION ALLOWANCES,PAYMENTS TO CARERS,REDACTED,REDACTED
12.08.2020,CHILDREN'S SERVICES,REDACTED PERSONAL DATA,717.14,ADOPTION ALLOWANCES,PAYMENTS TO CARERS,REDACTED,REDACTED
12.08.2020,CHILDREN'S SERVICES,REDACTED PERSONAL DATA,738.32,ADOPTION ALLOWANCES,PAYMENTS TO CARERS,REDACTED,REDACTED
12.08.2020,CHILDREN'S SERVICES,REDACTED PERSONAL DATA,767.68,ADOPTION ALLOWANCES,PAYMENTS TO CARERS,REDACTED,REDACTED
12.08.2020,CHILDREN'S SERVICES,REDACTED PERSONAL DATA,777.36,ADOPTION ALLOWANCES,PAYMENTS TO CARERS,REDACTED,REDACTED
12.08.2020,CHILDREN'S SERVICES,REDACTED PERSONAL DATA,908.00,ADOPTION ALLOWANCES,PAYMENTS TO CARERS,REDACTED,REDACTED
12.08.2020,CHILDREN'S SERVICES,REDACTED PERSONAL DATA,"1,053.20",ADOPTION ALLOWANCES,PAYMENTS TO CARERS,REDACTED,REDACTED
12.08.2020,CHILDREN'S SERVICES,LEARNING UNLIMITED,"7,500.00",ALC COMMUNITY LEARNING,GRANTS,5902428320,1000068095
12.08.2020,CHILDREN'S SERVICES,REDACTED PERSONAL DATA,278.64,CARE LEAVERS SERVICES 16+,OTHER PAYMENTS FOR CLIENTS,REDACTED,REDACTED
12.08.2020,CHILDREN'S SERVICES,REDACTED PERSONAL DATA,-421.00,DISABILITY & HIV,PAYMENTS TO CARERS,REDACTED,REDACTED
12.08.2020,CHILDREN'S SERVICES,REDACTED PERSONAL DATA,-407.00,DISABILITY & HIV,PAYMENTS TO CARERS,REDACTED,REDACTED
12.08.2020,CHILDREN'S SERVICES,REDACTED PERSONAL DATA,-374.57,DISABILITY & HIV,PAYMENTS TO CARERS,REDACTED,REDACTED
12.08.2020,CHILDREN'S SERVICES,REDACTED PERSONAL DATA,300.00,DISABILITY & HIV,ADDITIONAL PAYMENTS TO AGENCIES/CARERS,REDACTED,REDACTED
12.08.2020,CHILDREN'S SERVICES,REDACTED PERSONAL DATA,300.00,DISABILITY & HIV,ADDITIONAL PAYMENTS TO AGENCIES/CARERS,REDACTED,REDACTED
12.08.2020,CHILDREN'S SERVICES,REDACTED PERSONAL DATA,315.72,DISABILITY & HIV,OTHER PAYMENTS FOR CLIENTS,REDACTED,REDACTED
12.08.2020,CHILDREN'S SERVICES,REDACTED PERSONAL DATA,350.00,DISABILITY & HIV,PAYMENTS TO CARERS,REDACTED,REDACTED
12.08.2020,CHILDREN'S SERVICES,REDACTED PERSONAL DATA,400.00,DISABILITY & HIV,ADDITIONAL PAYMENTS TO AGENCIES/CARERS,REDACTED,REDACTED
12.08.2020,CHILDREN'S SERVICES,REDACTED PERSONAL DATA,400.00,DISABILITY & HIV,ADDITIONAL PAYMENTS TO AGENCIES/CARERS,REDACTED,REDACTED
12.08.2020,CHILDREN'S SERVICES,REDACTED PERSONAL DATA,400.00,DISABILITY & HIV,ADDITIONAL PAYMENTS TO AGENCIES/CARERS,REDACTED,REDACTED
12.08.2020,CHILDREN'S SERVICES,REDACTED PERSONAL DATA,400.00,DISABILITY & HIV,ADDITIONAL PAYMENTS TO AGENCIES/CARERS,REDACTED,REDACTED
12.08.2020,CHILDREN'S SERVICES,REDACTED PERSONAL DATA,400.00,DISABILITY & HIV,ADDITIONAL PAYMENTS TO AGENCIES/CARERS,REDACTED,REDACTED
12.08.2020,CHILDREN'S SERVICES,REDACTED PERSONAL DATA,400.00,DISABILITY & HIV,ADDITIONAL PAYMENTS TO AGENCIES/CARERS,REDACTED,REDACTED
12.08.2020,CHILDREN'S SERVICES,REDACTED PERSONAL DATA,400.00,DISABILITY & HIV,ADDITIONAL PAYMENTS TO AGENCIES/CARERS,REDACTED,REDACTED
12.08.2020,CHILDREN'S SERVICES,REDACTED PERSONAL DATA,400.00,DISABILITY & HIV,ADDITIONAL PAYMENTS TO AGENCIES/CARERS,REDACTED,REDACTED
12.08.2020,CHILDREN'S SERVICES,REDACTED PERSONAL DATA,400.00,DISABILITY & HIV,ADDITIONAL PAYMENTS TO AGENCIES/CARERS,REDACTED,REDACTED
12.08.2020,CHILDREN'S SERVICES,REDACTED PERSONAL DATA,400.00,DISABILITY & HIV,ADDITIONAL PAYMENTS TO AGENCIES/CARERS,REDACTED,REDACTED
12.08.2020,CHILDREN'S SERVICES,REDACTED PERSONAL DATA,400.00,DISABILITY & HIV,ADDITIONAL PAYMENTS TO AGENCIES/CARERS,REDACTED,REDACTED
12.08.2020,CHILDREN'S SERVICES,REDACTED PERSONAL DATA,400.00,DISABILITY & HIV,ADDITIONAL PAYMENTS TO AGENCIES/CARERS,REDACTED,REDACTED
12.08.2020,CHILDREN'S SERVICES,REDACTED PERSONAL DATA,400.00,DISABILITY & HIV,ADDITIONAL PAYMENTS TO AGENCIES/CARERS,REDACTED,REDACTED
12.08.2020,CHILDREN'S SERVICES,REDACTED PERSONAL DATA,400.00,DISABILITY & HIV,ADDITIONAL PAYMENTS TO AGENCIES/CARERS,REDACTED,REDACTED
12.08.2020,CHILDREN'S SERVICES,REDACTED PERSONAL DATA,400.00,DISABILITY & HIV,ADDITIONAL PAYMENTS TO AGENCIES/CARERS,REDACTED,REDACTED
12.08.2020,CHILDREN'S SERVICES,REDACTED PERSONAL DATA,400.00,DISABILITY & HIV,ADDITIONAL PAYMENTS TO AGENCIES/CARERS,REDACTED,REDACTED
12.08.2020,CHILDREN'S SERVICES,REDACTED PERSONAL DATA,400.00,DISABILITY & HIV,ADDITIONAL PAYMENTS TO AGENCIES/CARERS,REDACTED,REDACTED
12.08.2020,CHILDREN'S SERVICES,REDACTED PERSONAL DATA,400.00,DISABILITY & HIV,ADDITIONAL PAYMENTS TO AGENCIES/CARERS,REDACTED,REDACTED
12.08.2020,CHILDREN'S SERVICES,REDACTED PERSONAL DATA,400.00,DISABILITY & HIV,COMPUTER CONSUMABLES,REDACTED,REDACTED
12.08.2020,CHILDREN'S SERVICES,REDACTED PERSONAL DATA,500.00,DISABILITY & HIV,COMPUTER CONSUMABLES,REDACTED,REDACTED
12.08.2020,CHILDREN'S SERVICES,REDACTED PERSONAL DATA,510.00,DISABILITY & HIV,ADDITIONAL PAYMENTS TO AGENCIES/CARERS,REDACTED,REDACTED
12.08.2020,CHILDREN'S SERVICES,REDACTED PERSONAL DATA,660.00,DISABILITY & HIV,PAYMENTS TO CARERS,REDACTED,REDACTED
12.08.2020,CHILDREN'S SERVICES,REDACTED PERSONAL DATA,666.00,DISABILITY & HIV,PAYMENTS TO CARERS,REDACTED,REDACTED
12.08.2020,CHILDREN'S SERVICES,REDACTED PERSONAL DATA,666.00,DISABILITY & HIV,PAYMENTS TO CARERS,REDACTED,REDACTED
12.08.2020,CHILDREN'S SERVICES,REDACTED PERSONAL DATA,696.00,DISABILITY & HIV,PAYMENTS TO CARERS,REDACTED,REDACTED
12.08.2020,CHILDREN'S SERVICES,REDACTED PERSONAL DATA,696.00,DISABILITY & HIV,PAYMENTS TO CARERS,REDACTED,REDACTED
12.08.2020,CHILDREN'S SERVICES,REDACTED PERSONAL DATA,696.00,DISABILITY & HIV,PAYMENTS TO CARERS,REDACTED,REDACTED
12.08.2020,CHILDREN'S SERVICES,REDACTED PERSONAL DATA,696.00,DISABILITY & HIV,PAYMENTS TO CARERS,REDACTED,REDACTED
12.08.2020,CHILDREN'S SERVICES,REDACTED PERSONAL DATA,696.00,DISABILITY & HIV,PAYMENTS TO CARERS,REDACTED,REDACTED
12.08.2020,CHILDREN'S SERVICES,REDACTED PERSONAL DATA,696.00,DISABILITY & HIV,PAYMENTS TO CARERS,REDACTED,REDACTED
12.08.2020,CHILDREN'S SERVICES,REDACTED PERSONAL DATA,696.00,DISABILITY & HIV,PAYMENTS TO CARERS,REDACTED,REDACTED
12.08.2020,CHILDREN'S SERVICES,REDACTED PERSONAL DATA,696.00,DISABILITY & HIV,PAYMENTS TO CARERS,REDACTED,REDACTED
12.08.2020,CHILDREN'S SERVICES,REDACTED PERSONAL DATA,696.00,DISABILITY & HIV,PAYMENTS TO CARERS,REDACTED,REDACTED
12.08.2020,CHILDREN'S SERVICES,REDACTED PERSONAL DATA,696.00,DISABILITY & HIV,PAYMENTS TO CARERS,REDACTED,REDACTED
12.08.2020,CHILDREN'S SERVICES,REDACTED PERSONAL DATA,696.00,DISABILITY & HIV,PAYMENTS TO CARERS,REDACTED,REDACTED
12.08.2020,CHILDREN'S SERVICES,REDACTED PERSONAL DATA,696.00,DISABILITY & HIV,PAYMENTS TO CARERS,REDACTED,REDACTED
12.08.2020,CHILDREN'S SERVICES,REDACTED PERSONAL DATA,696.00,DISABILITY & HIV,PAYMENTS TO CARERS,REDACTED,REDACTED
12.08.2020,CHILDREN'S SERVICES,REDACTED PERSONAL DATA,696.00,DISABILITY & HIV,PAYMENTS TO CARERS,REDACTED,REDACTED
12.08.2020,CHILDREN'S SERVICES,REDACTED PERSONAL DATA,696.00,DISABILITY & HIV,PAYMENTS TO CARERS,REDACTED,REDACTED
12.08.2020,CHILDREN'S SERVICES,REDACTED PERSONAL DATA,712.30,DISABILITY & HIV,PAYMENTS TO CARERS,REDACTED,REDACTED
12.08.2020,CHILDREN'S SERVICES,REDACTED PERSONAL DATA,716.00,DISABILITY & HIV,PAYMENTS TO CARERS,REDACTED,REDACTED
12.08.2020,CHILDREN'S SERVICES,REDACTED PERSONAL DATA,716.00,DISABILITY & HIV,PAYMENTS TO CARERS,REDACTED,REDACTED
12.08.2020,CHILDREN'S SERVICES,REDACTED PERSONAL DATA,716.00,DISABILITY & HIV,PAYMENTS TO CARERS,REDACTED,REDACTED
